Workbook

Sheet AER only (hidden)
B1: Data in these columns used for data validation and database purposes.
B2: Date last modified:
B3: 14 April 2015 | C3: merged cell C46/47
B4: 17 April 2015 | C4: adjusted dms_RYE to automate based on dms_Model (NB: EB & CA refer to CRCP_y5)
B5: 14 May 2015 | C5: adapted this cover for use in CA & EB RINs
B7: USES NAMED RANGES FLAG | C7: yes
B9: dms_Model_List | C9: dms_Worksheet_List | E9: dms_RYE_List1 | F9: dms_RYE_List2
B10: CA | C10: CATEGORY ANALYSIS | E10: dms_RYE | F10: =CONCATENATE(LEFT(CRY, 2) &IF(CRY>"2009-10",,"") &RIGHT(CRY,2)) -> 2016
B11: CAM/Service change Backcast | C11: REGULATORY REPORTING STATEMENT | E11: dms_RYE | F11: =CONCATENATE(LEFT(CRCP_y5, 2) &IF(CRCP_y5>"2009-10",,"") &RIGHT(CRCP_y5,2)) -> 2017
B12: CPI | C12: CPI | E12: dms_RYE | F12: =CONCATENATE(LEFT(CRCP_y5, 2) &IF(CRCP_y5>"2009-10",,"") &RIGHT(CRCP_y5,2)) -> 2017
B13: EB | C13: ECONOMIC BENCHMARKING | E13: dms_RYE | F13: =CONCATENATE(LEFT(CRY, 2) &IF(CRY>"2009-10",,"") &RIGHT(CRY,2)) -> 2016
B14: PTRM | C14: POST TAX REVENUE MODEL | E14: FRCP | F14: =CONCATENATE(LEFT(FRCP_y5, 2) &IF(FRCP_y1>"2009-10",,"") &RIGHT(FRCP_y5,2)) -> 2022
B15: Reset | C15: REGULATORY REPORTING STATEMENT | E15: FRCP | F15: =CONCATENATE(LEFT(FRCP_y5, 2) &IF(FRCP_y1>"2009-10",,"") &RIGHT(FRCP_y5,2)) -> 2022
B16: RFM | C16: ROLL FORWARD MODEL | E16: CRCP | F16: =CONCATENATE(LEFT(CRCP_y5, 2) &IF(CRCP_y1>"2009-10",,"") &RIGHT(CRCP_y5,2)) -> 2017
B17: WACC | C17: WEIGHTED AVERAGE COST OF CAPITAL | E17: dms_RYE | F17: =CONCATENATE(LEFT(CRCP_y5, 2) &IF(CRCP_y5>"2009-10",,"") &RIGHT(CRCP_y5,2)) -> 2017
B20: dms_TradingName_List | C20: dms_TradingNameFull_List | D20: dms_ABN_List | E20: dms_State_List | F20: dms_Sector_List | G20: dms_Segment_List | H20: dms_FormControl | I20: dms_CRCPlength_List | J20: dms_FRCPlength_List | K20: dms_JurisdictionList | L20: dms_663_List | M20: dms_DeterminationRef_List
B21: ActewAGL Distribution | C21: ActewAGL Distribution | D21: 76670568688 | E21: ACT | F21: Electricity | G21: Distribution | H21: Revenue cap | I21: 5 | J21: 6 | K21: ACT | L21: 5 | M21: 2014-19 Distribution Determination
B22: ActewAGL Distribution (Tx Assets) | C22: ActewAGL Distribution (Tx Assets) | D22: 76670568688 | E22: ACT | F22: Electricity | G22: Distribution | H22: Revenue cap | I22: 5 | J22: 5 | K22: ACT | L22: 5 | M22: distribution determination
B23: AGN | C23: AGN | D23: 78551685 | E23: SA | F23: Gas | G23: Distribution | H23: Revenue cap | I23: 5 | J23: 5 | K23: SA | L23: 5 | M23: distribution determination
B24: Ausgrid | C24: Ausgrid | D24: 67505337385 | E24: NSW | F24: Electricity | G24: Distribution | H24: Revenue cap | I24: 5 | J24: 5 | K24: NSW | L24: 5 | M24: 2014-19 Distribution Determination
B25: Ausgrid (Tx Assets) | C25: Ausgrid (Tx Assets) | D25: 67505337385 | E25: NSW | F25: Electricity | G25: Distribution | H25: Revenue cap | I25: 5 | J25: 5 | K25: NSW | L25: 5 | M25: distribution determination
B26: AusNet (D) | C26: AusNet Services (D) | D26: 91064651118 | E26: Vic | F26: Electricity | G26: Distribution | H26: Revenue cap | I26: 5 | J26: 5 | K26: Vic | L26: 2 | M26: 2016-20 Distribution Determination
B27: AusNet (T) | C27: AusNet (T) | D27: 78079798173 | E27: Vic | F27: Electricity | G27: Transmission | H27: Revenue cap | I27: 5 | J27: 5 | K27: Vic | L27: 2 | M27: distribution determination
B28: Australian Distribution Co. | C28: Australian Distribution Co. | D28: 11222333444 | E28: - | F28: Electricity | G28: Distribution | H28: Revenue cap | I28: 5 | J28: 5 | K28: - | L28: 2 | M28: distribution determination
B29: Australian Transmission Co. | C29: Australian Transmission Co. | D29: 11222333444 | E29: - | F29: Electricity | G29: Transmission | H29: Revenue cap | I29: 5 | J29: 5 | K29: - | L29: 5 | M29: distribution determination
B30: CitiPower | C30: CitiPower | D30: 76064651056 | E30: Vic | F30: Electricity | G30: Distribution | H30: Revenue cap | I30: 5 | J30: 5 | K30: Vic | L30: 2 | M30: 2016-20 Distribution Determination
B31: Directlink | C31: Directlink | D31: 16779340889 | E31: NSW | F31: Electricity | G31: Transmission | H31: Revenue cap | I31: 10 | J31: 5 | K31: Qld | L31: 5 | M31: distribution determination
B32: ElectraNet | C32: ElectraNet | D32: 41094482416 | E32: SA | F32: Electricity | G32: Transmission | H32: Revenue cap | I32: 5 | J32: 5 | K32: SA | L32: 5 | M32: distribution determination
B33: Endeavour Energy | C33: Endeavour Energy | D33: 59253130878 | E33: NSW | F33: Electricity | G33: Distribution | H33: Revenue cap | I33: 5 | J33: 5 | K33: NSW | L33: 5 | M33: 2014-19 Distribution Determination
B34: Energex | C34: Energex | D34: 40078849055 | E34: Qld | F34: Electricity | G34: Distribution | H34: Revenue cap | I34: 5 | J34: 5 | K34: Qld | L34: 5 | M34: 2015-20 Distribution Determination
B35: Ergon Energy | C35: Ergon Energy | D35: 50087646062 | E35: Qld | F35: Electricity | G35: Distribution | H35: Revenue cap | I35: 5 | J35: 5 | K35: Qld | L35: 5 | M35: 2015-20 Distribution Determination
B36: Essential Energy | C36: Essential Energy | D36: 37428185226 | E36: NSW | F36: Electricity | G36: Distribution | H36: Revenue cap | I36: 5 | J36: 5 | K36: NSW | L36: 5 | M36: 2014-19 Distribution Determination
B37: Jemena Electricity | C37: Jemena Electricity | D37: 82064651083 | E37: Vic | F37: Electricity | G37: Distribution | H37: Revenue cap | I37: 5 | J37: 5 | K37: Vic | L37: 2 | M37: 2016-20 Distribution Determination
B38: Murraylink | C38: Murraylink | D38: 79181207909 | E38: NSW | F38: Electricity | G38: Transmission | H38: Revenue cap | I38: 5 | J38: 5 | K38: SA | L38: 5 | M38: distribution determination
B39: Powercor Australia | C39: Powercor Australia | D39: 89064651109 | E39: Vic | F39: Electricity | G39: Distribution | H39: Revenue cap | I39: 5 | J39: 5 | K39: Vic | L39: 2 | M39: 2016-20 Distribution Determination
B40: Powerlink | C40: Queensland Electricity Transmission Corporation Limited trading as Powerlink Queensland | D40: 82078849233 | E40: Qld | F40: Electricity | G40: Transmission | H40: Revenue cap | I40: 5 | J40: 5 | K40: Qld | L40: 5 | M40: distribution determination
B41: Qld,SA &ACT Gas Reset | C41: Qld,SA &ACT Gas Reset | D41: 22222222222 | E41: - | F41: Gas | G41: Distribution | H41: ? | I41: 5 | J41: 5 | K41: - | L41: x | M41: distribution determination
B42: SA Power Networks | C42: SA Power Networks | D42: 13332330749 | E42: SA | F42: Electricity | G42: Distribution | H42: Revenue cap | I42: 5 | J42: 5 | K42: SA | L42: 5 | M42: 2015-20 Distribution Determination
B43: TasNetworks (D) | C43: TasNetworks (D) | D43: 24167357299 | E43: Tas | F43: Electricity | G43: Distribution | H43: Revenue cap | I43: 5 | J43: 5 | K43: Tas | L43: 5 | M43: distribution determination
B44: TasNetworks (T) | C44: TasNetworks (T) | D44: 24167357299 | E44: Tas | F44: Electricity | G44: Transmission | H44: Revenue cap | I44: 5 | J44: 5 | K44: Tas | L44: 5 | M44: distribution determination
B45: TransGrid | C45: TransGrid | D45: 19622755774 | E45: NSW | F45: Electricity | G45: Transmission | H45: Revenue cap | I45: 5 | J45: 5 | K45: NSW | L45: 5 | M45: distribution determination
B46: United Energy | C46: United Energy | D46: 70064651029 | E46: Vic | F46: Electricity | G46: Distribution | H46: Revenue cap | I46: 5 | J46: 5 | K46: Vic | L46: 2 | M46: 2016-20 Distribution Determination
B47: Victorian DNSP Backcasting | C47: Victorian DNSP Backcasting | D47: 33333333666 | E47: Vic | F47: Electricity | G47: Distribution | H47: ? | I47: 5 | J47: 5 | K47: Vic | L47: x | M47: distribution determination
B48: Victorian DNSP Reset | C48: Victorian DNSP Reset | D48: 33333333333 | E48: Vic | F48: Electricity | G48: Distribution | H48: ? | I48: 5 | J48: 5 | K48: Vic | L48: x | M48: distribution determination
B53: dms_SourceList | C53: dms_FormControl_Choices | E53: dms_FRCPlength_Num_List | F53: dms_FinalYear_List | M53: dms_0203_ProjectType
B54: After appeal | C54: Revenue cap | E54: 1 | F54: FRCP_y1 | M54: New line on new route - single circuit
B55: Draft decision | C55: Revenue yield | E55: 2 | F55: FRCP_y2 | M55: New line on new route - dual circuit
B56: Final decision | C56: Weighted average price cap | E56: 3 | F56: FRCP_y3 | M56: New line on new route - other
B57: Pass through decision | E57: 4 | F57: FRCP_y4 | M57: Line rebuild over existing route - single circuit
B58: PTRM annual update | E58: 5 | F58: FRCP_y5 | M58: Line rebuild over existing route - dual circuit
B59: PTRM interim update 1 | E59: 6 | F59: FRCP_y6 | M59: Reconductor - Single circuit
B60: PTRM interim update 2 | E60: 7 | F60: FRCP_y7 | M60: Reconductor - Dual circuit
B61: PTRM interim update 3 | E61: 8 | F61: FRCP_y8
B62: PTRM interim update 4 | E62: 9 | F62: FRCP_y9
B63: Regulatory proposal | E63: 10 | F63: FRCP_y10
B64: Reporting
B65: Revised regulatory proposal
B66: RFM annual update
B67: WACC annual update
B71: Notes
B72: RFM - Base year is usually CRCP_y1 | C72: EG. Victorian 2016-20 - base year = 2011
B73: RFM - Form of Control Field is not relevant
B74: PTRM - capture base year input by NSP | C74: ='[Published version - PTRM - TNSP - version 3 - January 2015 - Appendix A.xlsm]PTRM input'!Q7

Sheet Contents
C1: REGULATORY REPORTING STATEMENT
C2: =dms_TradingName -> Powerlink
C3: =CONCATENATE(FRCP_y1," to ",FRCP_y5) -> 2017-18 to 2021-22
C4: Contents
F7: 1. Business details | M7: 2. Expenditure | T7: 3. Economic benchmarking
F26: 5. Network information | T26: 7. Other templates

Sheet Instructions
B8: =CONCATENATE(dms_Segment," Network Service Provider") -> Transmission Network Service Provider
B9: Regulatory Proposal RIN Template
C11: =CONCATENATE(dms_TradingName," must fill out and submit the regulatory templates in this workbook as part of its revenue proposal") -> Powerlink must fill out and submit the regulatory templates in this workbook as part of its revenue proposal
C14: INSTRUCTIONS
C15: Complete the Business & other details worksheet before entering data or values in any other worksheets. The Business & other details worksheet is linked to other cells within the workbook and automatically generates certain column headings. Please identify whether this is a regulatory proposal or revised regulatory proposal on the Business & other details worksheet.
C16: =CONCATENATE("If ",dms_TradingName," needs to amend any data please resubmit this completed workbook in its entirety after making any necessary amendments and provide a brief description of those amendments and the reason for any amendments on the Business and other details worksheet.") -> If Powerlink needs to amend any data please resubmit this completed workbook in its entirety after making any necessary amendments and provide a brief description of those amendments and the reason for any amendments on the Business and other details worksheet.
C18: Identifying CONFIDENTIAL INFORMATION: Please use the macro at the top of each worksheet to identify confidential information.
C19: -Do this by selecting the cell or cells that contain confidential information and then run the Mark selected cells as CONFIDENTIAL macro. This will format the cells a specific colour that is identified by the AER's database which in turn marks that information as confidential. -To reverse this, select the cell or cells and run the Return cells to NON-CONFIDENTIAL macro
C21: All amounts are to be reported on a one for one basis: that is 1000 is to be entered as '1000' not '1' as in previous templates. Colour coding of input sheets:
D22: Yellow = input cells
D23: Orange = optional Input cells
D24: Grey = Not applicable/No inputs required
D25: Leave coloured cells blank if no information exists. PLEASE DO NOT ENTER TEXT unless specifically requested to do so.
C28: Returning completed responses Please return two (2) files to the AER: 1. A confidential (consolidated) version which must contain a complete set of all responses with confidential information marked using the Mark selected cells CONFIDENTIAL macro and which has been completed using the locked template file provided by the AER. 2. A public version with confidential information either removed completely or aggregated in some form together with writtten consent to disclose the public version of the response. Use the drop down box on the Business & other details worksheet to identify the file as either confidential ('consolidated') or public

Sheet Business & other details
A1: HIDE THIS COLUMN | C1: =(LOOKUP(dms_Model,dms_Model_List,dms_Worksheet_List)) -> REGULATORY REPORTING STATEMENT
C2: =INDEX(dms_TradingNameFull_List,MATCH(dms_TradingName,dms_TradingName_List)) -> Queensland Electricity Transmission Corporation Limited trading as Powerlink Queensland
C3: =CONCATENATE(FRCP_y1," to ",dms_FRCP_FinalYear_Num) -> 2017-18 to 2021-22
C4: BUSINESS & OTHER DETAILS
C7: Instructions
C8: Complete the following business details regulatory template before entering data or values in any other regulatory template. This regulatory template is linked to other cells within the spreadsheet and automatically generates column headings.
C10: SUBMISSION PARTICULARS INPUT SHEETS
C12: Entity details
C14: Short name | D14: Powerlink
C15: ACN / ABN | D15: =INDEX(dms_ABN_List,MATCH(dms_TradingName,dms_TradingName_List)) -> 82078849233
C18: Business address | D18: Address 1 | F18: 33 Harold Street
E19: Address 2
D20: Suburb | F20: Virginia
E21: State | F21: =INDEX(dms_State_List,MATCH(dms_TradingName,dms_TradingName_List)) -> Qld | G21: p/code | H21: 4014
C23: Postal address | D23: Address 1 | F23: 33 Harold Street
E24: Address 2
D25: Suburb | F25: Virginia
E26: State | F26: Qld | G26: p/code | H26: 4014
C29: Contact name/s | D29: Mr Ian Lowry
C30: Contact phone/s | D30: 738661553
C31: Contact email address/s | D31: ilowry@powerlink.com.au
A33: KEEP VISIBLE FOR RESET, PTRM & RFMS | C33: Regulatory control period details
C35: Forthcoming regulatory control period | D35: 2017-18 | E35: =IF(dms_RPT="financial",VALUE(LEFT(D35,4)+1)&"-"&VALUE(MID(D35,3,2)+2),VALUE(LEFT(D35,4)+1)) -> 2018-19 | F35: =IF(dms_RPT="financial",VALUE(LEFT(E35,4)+1)&"-"&VALUE(MID(E35,3,2)+2),VALUE(LEFT(E35,4)+1)) -> 2019-20 | G35: =IF(dms_RPT="financial",VALUE(LEFT(F35,4)+1)&"-"&VALUE(MID(F35,3,2)+2),VALUE(LEFT(F35,4)+1)) -> 2020-21 | H35: =IF(dms_RPT="financial",VALUE(LEFT(G35,4)+1)&"-"&VALUE(MID(G35,3,2)+2),VALUE(LEFT(G35,4)+1)) -> 2021-22
A37: HIDE
C38: Current regulatory control period | D38: =IF(dms_RPT="financial",VALUE(LEFT(E38,4)-1)&"-"&TEXT(VALUE(RIGHT(E38,2)-1),"0#"),VALUE(LEFT(E38,4)-1)) -> 2012-13 | E38: =IF(dms_RPT="financial",VALUE(LEFT(F38,4)-1)&"-"&TEXT(VALUE(RIGHT(F38,2)-1),"0#"),VALUE(LEFT(F38,4)-1)) -> 2013-14 | F38: =IF(dms_RPT="financial",VALUE(LEFT(G38,4)-1)&"-"&TEXT(VALUE(RIGHT(G38,2)-1),"0#"),VALUE(LEFT(G38,4)-1)) -> 2014-15 | G38: =IF(dms_RPT="financial",VALUE(LEFT(H38,4)-1)&"-"&TEXT(VALUE(RIGHT(H38,2)-1),"0#"),VALUE(LEFT(H38,4)-1)) -> 2015-16 | H38: =IF(dms_RPT="financial",VALUE(LEFT(D35,4)-1)&"-"&TEXT(VALUE(RIGHT(D35,2)-1),"0#"),VALUE(LEFT(D35,4)-1)) -> 2016-17
C41: Previous regulatory control period | D41: =IF(dms_RPT="financial",VALUE(LEFT(E41,4)-1)&"-"&TEXT(VALUE(MID(E41,3,2)),"0#"),VALUE(LEFT(E41,4)-1)) -> 2007-08 | E41: =IF(dms_RPT="financial",VALUE(LEFT(F41,4)-1)&"-"&TEXT(VALUE(MID(F41,3,2)),"0#"),VALUE(LEFT(F41,4)-1)) -> 2008-09 | F41: =IF(dms_RPT="financial",VALUE(LEFT(G41,4)-1)&"-"&TEXT(VALUE(MID(G41,3,2)),"0#"),VALUE(LEFT(G41,4)-1)) -> 2009-10 | G41: =IF(dms_RPT="financial",VALUE(LEFT(H41,4)-1)&"-"&TEXT(VALUE(RIGHT(H41,2)-1),"0#"),VALUE(LEFT(H41,4)-1)) -> 2010-11 | H41: =IF(dms_RPT="financial",VALUE(LEFT(D38,4)-1)&"-"&VALUE(MID(D38,3,2)),VALUE(LEFT(D38,4)-1)) -> 2011-12
A44: KEEP VISIBLE FOR CA & EB ONLY
C45: Current regulatory year | D45: 2015-16
A50: HIDE | C50: Sector | D50: =INDEX(dms_Sector_List,MATCH(dms_TradingName,dms_TradingName_List)) -> Electricity
C51: Segment | D51: =INDEX(dms_Segment_List,MATCH(dms_TradingName,dms_TradingName_List)) -> Transmission
A52: KEEP VISIBLE | C52: Source | D52: Regulatory proposal
C53: Regulatory Year Ending | D53: =LEFT(dms_FRCP_FinalYear_Num,2)&RIGHT(dms_FRCP_FinalYear_Num,2) -> 2022
C54: Reporting Period Type | D54: =IF(LEN(FRCP_y1)>4,"Financial","Calendar") -> Financial
C55: Model or RIN Type | D55: Reset
C56: Security Classification | D56: Public
A57: KEEP VISIBLE | C57: Data quality (Public, Consolidated (confidential)) | D57: Public
C58: EBSS - First application of scheme in forthcoming period? | D58: No
C59: Amended RIN submission - amendment reason
A60: HIDE THESE ROWS | C60: Template - version no. | D60: 2
C61: Dollar $ real (the last month before the FRCP_y1) | D61: =CONCATENATE(IF(dms_RPT="Financial","June ","December "),VALUE((LEFT(FRCP_y1,2))&RIGHT(FRCP_y1,2))-1) -> June 2017
C62: Form of control | D62: =INDEX(dms_FormControl_List,MATCH(dms_TradingName,dms_TradingName_List)) -> Revenue cap
C63: Length of current reg control period | D63: =INDEX(dms_CRCPlength_List,MATCH(dms_TradingName,dms_TradingName_List)) -> 5
C64: Length of forthcoming reg control period | D64: =INDEX(dms_FRCPlength_List,MATCH(dms_TradingName,dms_TradingName_List)) -> 5
C65: RIN response - version no. | D65: 1
C66: Jurisdiction | D66: =INDEX(dms_JurisdictionList,MATCH(dms_TradingName,dms_TradingName_List)) -> Qld
C67: FRCP length in years | D67: 5
C68: FRCP Final Year Reference | D68: FRCP_y5
C69: FRCP Final Year | D69: =INDIRECT(dms_FRCP_FinalYear) -> 2021-22

Sheet 2.1 Expenditure summary
B1: =(LOOKUP(dms_Model,dms_Model_List,dms_Worksheet_List)) -> REGULATORY REPORTING STATEMENT
B2: =INDEX(dms_TradingNameFull_List,MATCH(dms_TradingName,dms_TradingName_List)) -> Queensland Electricity Transmission Corporation Limited trading as Powerlink Queensland
B3: =CONCATENATE(FRCP_y1," to ",FRCP_y5) -> 2017-18 to 2021-22
B4: 2.1 Cost summary and reconciliation
B7: 2.1.1 - Prescribed transmission services capex (as incurred)
C8: =CONCATENATE("Forecast ($0's. real ",dms_DollarReal,")") -> Forecast ($0's. real June 2017)
C9: =CRCP_y4 -> 2015-16 | D9: =CRCP_y5 -> 2016-17 | E9: =FRCP_y1 -> 2017-18 | F9: =FRCP_y2 -> 2018-19 | G9: =FRCP_y3 -> 2019-20 | H9: =FRCP_y4 -> 2020-21 | I9: =FRCP_y5 -> 2021-22
B10: Replacement expenditure | C10: 75965831.23 | D10: 136729276.5 | E10: 140090718.1 | F10: 188579081.4 | G10: 84903993.71 | H10: 100224389.2 | I10: 186669042.5
B11: Connections | C11: 0 | D11: 0 | E11: 0 | F11: 0 | G11: 0 | H11: 0 | I11: 0
B12: Augmentation Expenditure | C12: 4064867.419 | D12: 2784714.568 | E12: 0 | F12: 0 | G12: 2842690.413 | H12: 0 | I12: 0
B13: Non-network | C13: 25973235.97 | D13: 22186115.47 | E13: 16801327.11 | F13: 17882504.35 | G13: 22942193.04 | H13: 22899564.54 | I13: 16298831.21
B14: capitalised network overheads | C14: 0 | D14: 0 | E14: 0 | F14: 0 | G14: 0 | H14: 0 | I14: 0
B15: capitalised corporate overheads | C15: 8666778.034 | D15: 11417971.53 | E15: 11874022.49 | F15: 15783573.37 | G15: 8340925.925 | H15: 9164689.99 | I15: 16053097.25
B16: balancing item | C16: 50938207.29 | D16: 40761313.9 | E16: 29418668.41 | F16: -28045136.72 | G16: 72356119.11 | H16: 59770732.59 | I16: -37757077.86
B17: TOTAL CAPEX | C17: =SUM(C10:C16) -> 165608919.9 | D17: 213879392 | E17: 198184736.1 | F17: 194200022.4 | G17: 191385922.2 | H17: 192059376.3 | I17: 181263893.2
B19: 2.1.2 - Prescribed transmission services opex
C20: =CONCATENATE("Forecast ($0's, real ",dms_DollarReal,")") -> Forecast ($0's, real June 2017)
C21: =CRCP_y4 -> 2015-16 | D21: =CRCP_y5 -> 2016-17
B22: Vegetation management | C22: 11355397.62 | D22: 11157414.25
B23: Maintenance | C23: 80545645.49 | D23: 89006174.31
B24: Non-network | C24: 31600796.56 | D24: 30222706.89
B25: network overheads | C25: 48238958.7 | D25: 49114513.62
B26: corporate overheads | C26: 98585079.99 | D26: 85806028.05
B27: balancing item | C27: -45883207.05 | D27: -46578492.18
B28: TOTAL OPEX | C28: =SUM(C22:C27) -> 224442671.3 | D28: =SUM(D22:D27) -> 218728344.9

Sheet 2.1 Balancing Item
A1: Reconciliation of Balancing Item from Template 2.1
A3: Reconciliation to Powerlink's Revenue Proposal
A5: Prescribed transmission services capex (as incurred) | B5: 2015-16 | C5: 2016-17 | D5: 2017-18 | E5: 2018-19 | F5: 2019-20 | G5: 2020-21 | H5: 2021-22
A7: Total Capex as per RIN Templates | B7: 106003934.6 | C7: 161700106.6 | D7: 156892045.2 | E7: 206461585.8 | F7: 110688877.2 | G7: 123123953.8 | H7: 202967873.8
A9: Capitalised Corporate Overhead as per RIN Definition | B9: 8666778.034 | C9: 11417971.53 | D9: 11874022.49 | E9: 15783573.37 | F9: 8340925.925 | G9: 9164689.99 | H9: 16053097.25
A11: Balancing Items
A12: - Capex "As Incurred" Project Adjustment (Prior year as incurred cost and current year not commissioned) | B12: 30722801.9 | C12: 27435867.02 | D12: 11081424.76 | E12: -39400552.79 | F12: 61441765.89 | G12: 51643082.3 | H12: -45573204.59
A13: - CAPEX not Covered by RIN (Projects not covered by RIN) | B13: 12154153.64 | C13: 12021406.04 | D13: 17815091.31 | E13: 11355416.07 | F13: 10914353.22 | G13: 8127650.298 | H13: 7816126.731
A14: - Post Commissioning Cost | B14: 8061251.747 | C14: 1304040.836 | D14: 522152.3389 | E14: 0 | F14: 0 | G14: 0 | H14: 0
A15: Total Balancing Item | B15: =SUM(B12:B14) -> 50938207.29 | C15: =SUM(C12:C14) -> 40761313.9 | D15: 29418668.41 | E15: -28045136.72 | F15: 72356119.11 | G15: 59770732.59 | H15: -37757077.86
A17: Total Capex - Table 2.1.1 | B17: =+B7+B9+B15 -> 165608919.9 | C17: =+C7+C9+C15 -> 213879392 | D17: 198184736.1 | E17: 194200022.4 | F17: 191385922.2 | G17: 192059376.3 | H17: 181263893.2
A19: Total Regulated Capex - Powerlink's Post-Tax Revenue Model / Revenue Forecast Model | B19: 165608919.9 | C19: 213879392 | D19: 198184736.1 | E19: 194200022.4 | F19: 191385922.2 | G19: 192059376.3 | H19: 181263893.2
A23: Reconciliation to Powerlink's Revenue Proposal
A25: Prescribed transmission services opex by category | B25: 2015-16 | C25: 2016-17
A27: Total Opex as per RIN Templates 2.6.1, 2.12 | B27: 270325878.3 | C27: 265306837.1
A29: Balancing Items
A30: - Capitalised Corporate Overhead as per RIN Definition | B30: -14282410.5 | C30: -16355785.29
A31: - Adjustment for Template 2.5 Double Counting as per RIN Requirement | B31: -31600796.56 | C31: -30222706.89
A32: Total Balancing Item | B32: =SUM(B30:B31) -> -45883207.05 | C32: =SUM(C30:C31) -> -46578492.18
A34: Total Opex as Per Table 2.1.2 | B34: =+B27+B32 -> 224442671.3 | C34: =+C27+C32 -> 218728344.9
A36: Total Regulated Capex - Powerlink's Post-Tax Revenue Model / Revenue Forecast Model | B36: 224442671.3 | C36: 218728344.9

Sheet 2.2 Repex
B1: =(LOOKUP(dms_Model,dms_Model_List,dms_Worksheet_List)) -> REGULATORY REPORTING STATEMENT
B2: =INDEX(dms_TradingNameFull_List,MATCH(dms_TradingName,dms_TradingName_List)) -> Queensland Electricity Transmission Corporation Limited trading as Powerlink Queensland
B3: =CONCATENATE(FRCP_y1," to ",FRCP_y5) -> 2017-18 to 2021-22
B4: 2.2 REPEX
B6: 2.2.1 - REPLACEMENT EXPENDITURE, VOLUMES AND ASSET FAILURES BY ASSET CATEGORY
D7: EXPENDITURE | K7: ASSET REPLACEMENTS | R7: ASSET FAILURES
D8: =CONCATENATE("Forecast ($0's. real ",dms_DollarReal,")") -> Forecast ($0's. real June 2017) | K8: Forecast (0's) | R8: Forecast (0's)
B9: ASSET GROUP | C9: ASSET CATEGORY | D9: =CRCP_y4 -> 2015-16 | E9: =CRCP_y5 -> 2016-17 | F9: =FRCP_y1 -> 2017-18 | G9: =FRCP_y2 -> 2018-19 | H9: =FRCP_y3 -> 2019-20 | I9: =FRCP_y4 -> 2020-21 | J9: =FRCP_y5 -> 2021-22 | K9: =CRCP_y4 -> 2015-16 | L9: =CRCP_y5 -> 2016-17 | M9: =FRCP_y1 -> 2017-18 | N9: =FRCP_y2 -> 2018-19 | O9: =FRCP_y3 -> 2019-20 | P9: =FRCP_y4 -> 2020-21 | Q9: =FRCP_y5 -> 2021-22 | R9: =CRCP_y4 -> 2015-16 | S9: =CRCP_y5 -> 2016-17 | T9: =FRCP_y1 -> 2017-18 | U9: =FRCP_y2 -> 2018-19 | V9: =FRCP_y3 -> 2019-20 | W9: =FRCP_y4 -> 2020-21 | X9: =FRCP_y5 -> 2021-22
B10: TRANSMISSION TOWERS Highest operating voltage; Circuit configuration | C10: < = 33 kV; Single Circuit | K10: 0 | L10: 0 | M10: 0 | N10: 0 | O10: 0 | P10: 0 | Q10: 0
C11: > 33 kV & < = 66 kV ; Single Circuit | K11: 0 | L11: 0 | M11: 0 | N11: 0 | O11: 0 | P11: 0 | Q11: 0
C12: > 66 kV & < = 132 kV ; Single Circuit | K12: 0 | L12: 0 | M12: 0 | N12: 0 | O12: 0 | P12: 0 | Q12: 0
C13: > 132 kV & < = 275 kV ; Single Circuit | K13: 0 | L13: 0 | M13: 0 | N13: 0 | O13: 0 | P13: 0 | Q13: 0
C14: > 275 kV & < = 330 kV ; Single Circuit | K14: 0 | L14: 0 | M14: 0 | N14: 0 | O14: 0 | P14: 0 | Q14: 0
C15: > 330 kV & < = 500 kV ; Single Circuit | K15: 0 | L15: 0 | M15: 0 | N15: 0 | O15: 0 | P15: 0 | Q15: 0
C16: > 500 kV ; Single Circuit | K16: 0 | L16: 0 | M16: 0 | N16: 0 | O16: 0 | P16: 0 | Q16: 0
C17: < = 33 kV; Multiple Circuit | K17: 0 | L17: 0 | M17: 0 | N17: 0 | O17: 0 | P17: 0 | Q17: 0
C18: > 33 kV & < = 66 kV ; Multiple Circuit | K18: 0 | L18: 0 | M18: 0 | N18: 0 | O18: 0 | P18: 0 | Q18: 0
C19: > 66 kV & < = 132 kV ; Multiple Circuit | K19: 0 | L19: 34.6 | M19: 0.6 | N19: 5.6 | O19: 1.6 | P19: 6.6 | Q19: 4.6
C20: > 132 kV & < = 275 kV ; Multiple Circuit | K20: 0 | L20: 0 | M20: 0 | N20: 0 | O20: 0 | P20: 0 | Q20: 0
C21: > 275 kV & < = 330 kV ; Multiple Circuit | K21: 0 | L21: 0 | M21: 0 | N21: 0 | O21: 0 | P21: 0 | Q21: 0
C22: > 330 kV & < = 500 kV ; Multiple Circuit | K22: 0 | L22: 0 | M22: 0 | N22: 0 | O22: 0 | P22: 0 | Q22: 0
C23: > 500 kV ; Multiple Circuit | K23: 0 | L23: 0 | M23: 0 | N23: 0 | O23: 0 | P23: 0 | Q23: 0
C30: Other
B31: TRANSMISSION TOWER SUPPORT STRUCTURES BY: Highest operating voltage; Circuit configuration | C31: < = 33 kV; Single Circuit | K31: 0 | L31: 0 | M31: 0 | N31: 0 | O31: 0 | P31: 0 | Q31: 0
C32: > 33 kV & < = 66 kV ; Single Circuit | K32: 0 | L32: 0 | M32: 0 | N32: 0 | O32: 0 | P32: 0 | Q32: 0
C33: > 66 kV & < = 132 kV ; Single Circuit | K33: 0 | L33: 0 | M33: 0 | N33: 0 | O33: 0 | P33: 0 | Q33: 0
C34: > 132 kV & < = 275 kV ; Single Circuit | K34: 0 | L34: 0 | M34: 0 | N34: 0 | O34: 0 | P34: 0 | Q34: 0
C35: > 275 kV & < = 330 kV ; Single Circuit | K35: 0 | L35: 0 | M35: 0 | N35: 0 | O35: 0 | P35: 0 | Q35: 0
C36: > 330 kV & < = 500 kV ; Single Circuit | K36: 0 | L36: 0 | M36: 0 | N36: 0 | O36: 0 | P36: 0 | Q36: 0
C37: > 500 kV ; Single Circuit | K37: 0 | L37: 0 | M37: 0 | N37: 0 | O37: 0 | P37: 0 | Q37: 0
C38: < = 33 kV; Multiple Circuit | K38: 0 | L38: 0 | M38: 0 | N38: 0 | O38: 0 | P38: 0 | Q38: 0
C39: > 33 kV & < = 66 kV ; Multiple Circuit | K39: 0 | L39: 0 | M39: 0 | N39: 0 | O39: 0 | P39: 0 | Q39: 0
C40: > 66 kV & < = 132 kV ; Multiple Circuit | K40: 0 | L40: 0 | M40: 0 | N40: 0 | O40: 0 | P40: 0 | Q40: 0
C41: > 132 kV & < = 275 kV ; Multiple Circuit | K41: 0 | L41: 0 | M41: 0 | N41: 0 | O41: 0 | P41: 0 | Q41: 0
C42: > 275 kV & < = 330 kV ; Multiple Circuit | K42: 0 | L42: 0 | M42: 0 | N42: 0 | O42: 0 | P42: 0 | Q42: 0
C43: > 330 kV & < = 500 kV ; Multiple Circuit | K43: 0 | L43: 0 | M43: 0 | N43: 0 | O43: 0 | P43: 0 | Q43: 0
C44: > 500 kV ; Multiple Circuit | K44: 0 | L44: 0 | M44: 0 | N44: 0 | O44: 0 | P44: 0 | Q44: 0
C45: Other | K45: 0 | L45: 0 | M45: 0 | N45: 0 | O45: 0 | P45: 0 | Q45: 0
B46: CONDUCTORS BY: Voltage; Maximum continuous rating | C46: < = 33 kV ; < = 100 MVA | K46: 0 | L46: 0 | M46: 0 | N46: 0 | O46: 0 | P46: 0 | Q46: 0
C47: < = 33 kV ; > 100 MVA & < = 400 MVA | K47: 0 | L47: 0 | M47: 0 | N47: 0 | O47: 0 | P47: 0 | Q47: 0
C48: < = 33 kV ; > 400 MVA | K48: 0 | L48: 0 | M48: 0 | N48: 0 | O48: 0 | P48: 0 | Q48: 0
C49: > 33 kV & < = 66 kV ; < = 100 MVA | K49: 0 | L49: 0 | M49: 0 | N49: 0 | O49: 0 | P49: 0 | Q49: 0
C50: > 33 kV & < = 66 kV ; > 100 MVA & < = 400 MVA | K50: 0 | L50: 0 | M50: 0 | N50: 0 | O50: 0 | P50: 0 | Q50: 0
C51: > 33 kV & < = 66 kV ; > 400 MVA | K51: 0 | L51: 0 | M51: 0 | N51: 0 | O51: 0 | P51: 0 | Q51: 0
C52: > 66 kV & < = 132 kV ; < = 100 MVA | K52: 0 | L52: 0 | M52: 0 | N52: 0 | O52: 0 | P52: 0 | Q52: 0
C53: > 66 kV & < = 132 kV ; > 100 MVA & < = 400 MVA | K53: 0 | L53: 0 | M53: 0 | N53: 0 | O53: 0 | P53: 0 | Q53: 0
C54: > 66 kV & < = 132 kV ; > 400 MVA | K54: 0 | L54: 0 | M54: 0 | N54: 0 | O54: 0 | P54: 0 | Q54: 0
C55: > 132 kV & < = 275 kV ; < = 200 MVA | K55: 0 | L55: 0 | M55: 0 | N55: 0 | O55: 0 | P55: 0 | Q55: 0
C56: > 132 kV & < = 275 kV ; > 200 MVA & < = 600 MVA | K56: 0 | L56: 0 | M56: 0 | N56: 0 | O56: 0 | P56: 0 | Q56: 0
C57: > 132 kV & < = 275 kV ; > 600 MVA | K57: 0 | L57: 0 | M57: 0 | N57: 0 | O57: 0 | P57: 0 | Q57: 0
C58: > 275 kV & < = 330 kV ; < = 800 MVA | K58: 0 | L58: 0 | M58: 0 | N58: 0 | O58: 0 | P58: 0 | Q58: 0
C59: > 275 kV & < = 330 kV ; > 800 MVA & < = 1200 MVA | K59: 0 | L59: 0 | M59: 0 | N59: 0 | O59: 0 | P59: 0 | Q59: 0
C60: > 275 kV & < = 330 kV ; > 1200 MVA | K60: 0 | L60: 0 | M60: 0 | N60: 0 | O60: 0 | P60: 0 | Q60: 0
C61: > 330 kV & < = 500 kV ; < = 1000 MVA | K61: 0 | L61: 0 | M61: 0 | N61: 0 | O61: 0 | P61: 0 | Q61: 0
C62: > 330 kV & < = 500 kV ; > 1000 MVA & < = 1500 MVA | K62: 0 | L62: 0 | M62: 0 | N62: 0 | O62: 0 | P62: 0 | Q62: 0
C63: > 330 kV & < = 500 kV ; > 1500 MVA | K63: 0 | L63: 0 | M63: 0 | N63: 0 | O63: 0 | P63: 0 | Q63: 0
C64: > 500 kV ; < = 2000 MVA | K64: 0 | L64: 0 | M64: 0 | N64: 0 | O64: 0 | P64: 0 | Q64: 0
C65: > 500 kV ; > 2000 MVA & < = 3000 MVA | K65: 0 | L65: 0 | M65: 0 | N65: 0 | O65: 0 | P65: 0 | Q65: 0
C66: > 500 kV ; > 3000 MVA | K66: 0 | L66: 0 | M66: 0 | N66: 0 | O66: 0 | P66: 0 | Q66: 0
C67: Other | K67: 0 | L67: 0 | M67: 0 | N67: 0 | O67: 0 | P67: 0 | Q67: 0
B68: TRANSMISSION CABLES BY: Highest operating voltage; Insulation type | C68: < = 33 kV; Oil Filled | D68: 0 | E68: 0 | F68: 0 | G68: 0 | H68: 0 | I68: 0 | J68: 0 | K68: 0 | L68: 0 | M68: 0 | N68: 0 | O68: 0 | P68: 0 | Q68: 0
C69: > 33 kV & < = 66 kV ; Oil Filled | D69: 0 | E69: 0 | F69: 0 | G69: 0 | H69: 0 | I69: 0 | J69: 0 | K69: 0 | L69: 0 | M69: 0 | N69: 0 | O69: 0 | P69: 0 | Q69: 0
C70: > 66 kV & < = 132 kV ; Oil Filled | D70: 0 | E70: 0 | F70: 0 | G70: 0 | H70: 0 | I70: 0 | J70: 0 | K70: 0 | L70: 0 | M70: 0 | N70: 0 | O70: 0 | P70: 0 | Q70: 0
C71: > 132 kV & < = 275 kV ; Oil Filled | D71: 0 | E71: 0 | F71: 0 | G71: 0 | H71: 0 | I71: 0 | J71: 0 | K71: 0 | L71: 0 | M71: 0 | N71: 0 | O71: 0 | P71: 0 | Q71: 0
C72: > 275 kV & < = 330 kV ; Oil Filled | D72: 0 | E72: 0 | F72: 0 | G72: 0 | H72: 0 | I72: 0 | J72: 0 | K72: 0 | L72: 0 | M72: 0 | N72: 0 | O72: 0 | P72: 0 | Q72: 0
C73: > 330 kV & < = 500 kV ; Oil Filled | D73: 0 | E73: 0 | F73: 0 | G73: 0 | H73: 0 | I73: 0 | J73: 0 | K73: 0 | L73: 0 | M73: 0 | N73: 0 | O73: 0 | P73: 0 | Q73: 0
C74: > 500 kV ; Oil Filled | D74: 0 | E74: 0 | F74: 0 | G74: 0 | H74: 0 | I74: 0 | J74: 0 | K74: 0 | L74: 0 | M74: 0 | N74: 0 | O74: 0 | P74: 0 | Q74: 0
C75: < = 33 kV; XLPE Insulated | D75: 0 | E75: 0 | F75: 0 | G75: 0 | H75: 0 | I75: 0 | J75: 0 | K75: 0 | L75: 0 | M75: 0 | N75: 0 | O75: 0 | P75: 0 | Q75: 0
C76: > 33 kV & < = 66 kV ; XLPE Insulated | D76: 0 | E76: 0 | F76: 0 | G76: 0 | H76: 0 | I76: 0 | J76: 0 | K76: 0 | L76: 0 | M76: 0 | N76: 0 | O76: 0 | P76: 0 | Q76: 0
C77: > 66 kV & < = 132 kV ; XLPE Insulated | D77: 0 | E77: 0 | F77: 0 | G77: 0 | H77: 0 | I77: 0 | J77: 0 | K77: 0 | L77: 0 | M77: 0 | N77: 0 | O77: 0 | P77: 0 | Q77: 0
C78: > 132 kV & < = 275 kV ; XLPE Insulated | D78: 0 | E78: 0 | F78: 0 | G78: 0 | H78: 0 | I78: 0 | J78: 0 | K78: 0 | L78: 0 | M78: 0 | N78: 0 | O78: 0 | P78: 0 | Q78: 0
C79: > 275 kV & < = 330 kV ; XLPE Insulated | D79: 0 | E79: 0 | F79: 0 | G79: 0 | H79: 0 | I79: 0 | J79: 0 | K79: 0 | L79: 0 | M79: 0 | N79: 0 | O79: 0 | P79: 0 | Q79: 0
C80: > 330 kV & < = 500 kV ; XLPE Insulated | D80: 0 | E80: 0 | F80: 0 | G80: 0 | H80: 0 | I80: 0 | J80: 0 | K80: 0 | L80: 0 | M80: 0 | N80: 0 | O80: 0 | P80: 0 | Q80: 0
C81: > 500 kV ; XLPE Insulated | D81: 0 | E81: 0 | F81: 0 | G81: 0 | H81: 0 | I81: 0 | J81: 0 | K81: 0 | L81: 0 | M81: 0 | N81: 0 | O81: 0 | P81: 0 | Q81: 0
C82: < = 33 kV; Other Insulated | D82: 0 | E82: 0 | F82: 0 | G82: 0 | H82: 0 | I82: 0 | J82: 0 | K82: 0 | L82: 0 | M82: 0 | N82: 0 | O82: 0 | P82: 0 | Q82: 0
C83: > 33 kV & < = 66 kV ; Other Insulated | D83: 0 | E83: 0 | F83: 0 | G83: 0 | H83: 0 | I83: 0 | J83: 0 | K83: 0 | L83: 0 | M83: 0 | N83: 0 | O83: 0 | P83: 0 | Q83: 0
C84: > 66 kV & < = 132 kV ; Other Insulated | D84: 0 | E84: 0 | F84: 0 | G84: 0 | H84: 0 | I84: 0 | J84: 0 | K84: 0 | L84: 0 | M84: 0 | N84: 0 | O84: 0 | P84: 0 | Q84: 0
C85: > 132 kV & < = 275 kV ; Other Insulated | D85: 0 | E85: 0 | F85: 0 | G85: 0 | H85: 0 | I85: 0 | J85: 0 | K85: 0 | L85: 0 | M85: 0 | N85: 0 | O85: 0 | P85: 0 | Q85: 0
C86: > 275 kV & < = 330 kV ; Other Insulated | D86: 0 | E86: 0 | F86: 0 | G86: 0 | H86: 0 | I86: 0 | J86: 0 | K86: 0 | L86: 0 | M86: 0 | N86: 0 | O86: 0 | P86: 0 | Q86: 0
C87: > 330 kV & < = 500 kV ; Other Insulated | D87: 0 | E87: 0 | F87: 0 | G87: 0 | H87: 0 | I87: 0 | J87: 0 | K87: 0 | L87: 0 | M87: 0 | N87: 0 | O87: 0 | P87: 0 | Q87: 0
C88: > 500 kV ; Other Insulated | D88: 0 | E88: 0 | F88: 0 | G88: 0 | H88: 0 | I88: 0 | J88: 0 | K88: 0 | L88: 0 | M88: 0 | N88: 0 | O88: 0 | P88: 0 | Q88: 0
C89: Other | D89: 0 | E89: 0 | F89: 0 | G89: 0 | H89: 0 | I89: 0 | J89: 0 | K89: 0 | L89: 0 | M89: 0 | N89: 0 | O89: 0 | P89: 0 | Q89: 0
B90: SUBSTATION SWITCHBAYS BY: Highest operating voltage; Switch type | C90: < = 33 kV; Air Insulated circuit Breaker | K90: 0 | L90: 0 | M90: 0 | N90: 0 | O90: 1 | P90: 0 | Q90: 0
C91: > 33 kV & < = 66 kV ; Air Insulated circuit Breaker | K91: 0 | L91: 0 | M91: 0 | N91: 0 | O91: 0 | P91: 0 | Q91: 0
C92: > 66 kV & < = 132 kV ; Air Insulated circuit Breaker | K92: 5 | L92: 21 | M92: 12 | N92: 14 | O92: 14 | P92: 12 | Q92: 10
C93: > 132 kV & < = 275 kV ; Air Insulated circuit Breaker | K93: 1 | L93: 6 | M93: 5 | N93: 5 | O93: 6 | P93: 5 | Q93: 5
C94: > 275 kV & < = 330 kV ; Air Insulated circuit Breaker | K94: 0 | L94: 0 | M94: 0 | N94: 0 | O94: 0 | P94: 0 | Q94: 0
C95: > 330 kV & < = 500 kV ; Air Insulated circuit Breaker | K95: 0 | L95: 0 | M95: 0 | N95: 0 | O95: 0 | P95: 0 | Q95: 0
C96: > 500 kV ; Air Insulated circuit Breaker | K96: 0 | L96: 0 | M96: 0 | N96: 0 | O96: 0 | P96: 0 | Q96: 0
C97: < = 33 kV; Air Insulated Isolators / Earth Switch | K97: 0 | L97: 1 | M97: 1 | N97: 1 | O97: 2 | P97: 0 | Q97: 1
C98: > 33 kV & < = 66 kV ; Air Insulated Isolators / Earth Switch | K98: 0 | L98: 0 | M98: 1 | N98: 0 | O98: 1 | P98: 1 | Q98: 0
C99: > 66 kV & < = 132 kV ; Air Insulated Isolators / Earth Switch | K99: 20 | L99: 59 | M99: 39 | N99: 43 | O99: 46 | P99: 37 | Q99: 35
C100: > 132 kV & < = 275 kV ; Air Insulated Isolators / Earth Switch | K100: 6 | L100: 45 | M100: 33 | N100: 39 | O100: 39 | P100: 37 | Q100: 37
C101: > 275 kV & < = 330 kV ; Air Insulated Isolators / Earth Switch | K101: 0 | L101: 0 | M101: 0 | N101: 0 | O101: 0 | P101: 0 | Q101: 0
C102: > 330 kV & < = 500 kV ; Air Insulated Isolators / Earth Switch | K102: 0 | L102: 0 | M102: 0 | N102: 0 | O102: 0 | P102: 0 | Q102: 0
C103: > 500 kV ; Air Insulated Isolators / Earth Switch | K103: 0 | L103: 0 | M103: 0 | N103: 0 | O103: 0 | P103: 0 | Q103: 0
C104: < = 33 kV; VT | K104: 0 | L104: 1 | M104: 1 | N104: 0 | O104: 1 | P104: 0 | Q104: 1
C105: > 33 kV & < = 66 kV ; VT | K105: 0 | L105: 3 | M105: 3 | N105: 3 | O105: 3 | P105: 2 | Q105: 2
C106: > 66 kV & < = 132 kV ; VT | K106: 18 | L106: 28 | M106: 19 | N106: 21 | O106: 26 | P106: 19 | Q106: 18
C107: > 132 kV & < = 275 kV ; VT | K107: 3 | L107: 17 | M107: 10 | N107: 13 | O107: 11 | P107: 12 | Q107: 10
C108: > 275 kV & < = 330 kV ; VT | K108: 0 | L108: 0 | M108: 0 | N108: 0 | O108: 0 | P108: 0 | Q108: 0
C109: > 330 kV & < = 500 kV ; VT | K109: 0 | L109: 0 | M109: 0 | N109: 0 | O109: 0 | P109: 0 | Q109: 0
C110: > 500 kV ; VT | K110: 0 | L110: 0 | M110: 0 | N110: 0 | O110: 0 | P110: 0 | Q110: 0
C111: < = 33 kV; CT | K111: 0 | L111: 1 | M111: 1 | N111: 0 | O111: 1 | P111: 1 | Q111: 0
C112: > 33 kV & < = 66 kV ; CT | K112: 0 | L112: 3 | M112: 3 | N112: 3 | O112: 2 | P112: 3 | Q112: 2
C113: > 66 kV & < = 132 kV ; CT | K113: 15 | L113: 60 | M113: 39 | N113: 43 | O113: 51 | P113: 36 | Q113: 32
C114: > 132 kV & < = 275 kV ; CT | K114: 6 | L114: 32 | M114: 19 | N114: 22 | O114: 20 | P114: 18 | Q114: 16
C115: > 275 kV & < = 330 kV ; CT | K115: 0 | L115: 0 | M115: 0 | N115: 0 | O115: 0 | P115: 0 | Q115: 0
C116: > 330 kV & < = 500 kV ; CT | K116: 0 | L116: 0 | M116: 0 | N116: 0 | O116: 0 | P116: 0 | Q116: 0
C117: > 500 kV ; CT | K117: 0 | L117: 0 | M117: 0 | N117: 0 | O117: 0 | P117: 0 | Q117: 0
C118: < = 33 kV; GIS Module | K118: 0 | L118: 0 | M118: 0 | N118: 0 | O118: 0 | P118: 0 | Q118: 0
C119: > 33 kV & < = 66 kV ; GIS Module | K119: 0 | L119: 0 | M119: 0 | N119: 0 | O119: 0 | P119: 0 | Q119: 0
C120: > 66 kV & < = 132 kV ; GIS Module | K120: 0 | L120: 0 | M120: 0 | N120: 0 | O120: 0 | P120: 0 | Q120: 0
C121: > 132 kV & < = 275 kV ; GIS Module | K121: 0 | L121: 0 | M121: 0 | N121: 0 | O121: 0 | P121: 0 | Q121: 0
C122: > 275 kV & < = 330 kV ; GIS Module | K122: 0 | L122: 0 | M122: 0 | N122: 0 | O122: 0 | P122: 0 | Q122: 0
C123: > 330 kV & < = 500 kV ; GIS Module | K123: 0 | L123: 0 | M123: 0 | N123: 0 | O123: 0 | P123: 0 | Q123: 0
C124: > 500 kV ; GIS Module | K124: 0 | L124: 0 | M124: 0 | N124: 0 | O124: 0 | P124: 0 | Q124: 0
C125: Other | K125: 0 | L125: 0 | M125: 0 | N125: 0 | O125: 0 | P125: 0 | Q125: 0
B126: SUBSTATION POWER TRANSFORMERS BY: Highest operating voltage; Ampere rating | C126: < = 33 kV ; < = 10 MVA | K126: 0 | L126: 0 | M126: 0 | N126: 0 | O126: 0 | P126: 0 | Q126: 0
C127: < = 33 kV ; > 10 MVA & < = 30 MVA | K127: 0 | L127: 0 | M127: 0 | N127: 0 | O127: 0 | P127: 0 | Q127: 0
C128: < = 33 kV ; > 30 MVA | K128: 0 | L128: 0 | M128: 0 | N128: 0 | O128: 0 | P128: 0 | Q128: 0
C129: > 33 kV & < = 66 kV ; < = 10 MVA | K129: 0 | L129: 0 | M129: 0 | N129: 0 | O129: 0 | P129: 0 | Q129: 0
C130: > 33 kV & < = 66 kV ; > 10 MVA & < = 30 MVA | K130: 0 | L130: 0 | M130: 0 | N130: 0 | O130: 0 | P130: 0 | Q130: 0
C131: > 33 kV & < = 66 kV ; > 30 MVA | K131: 0 | L131: 0 | M131: 0 | N131: 0 | O131: 0 | P131: 0 | Q131: 0
C132: > 66 kV & < = 132 kV ; < = 30 MVA | K132: 2 | L132: 0 | M132: 0 | N132: 0 | O132: 0 | P132: 0 | Q132: 0
C133: > 66 kV & < = 132 kV ; > 30 MVA & < = 60 MVA | K133: 0 | L133: 0 | M133: 0 | N133: 1 | O133: 2 | P133: 0 | Q133: 0
C134: > 66 kV & < = 132 kV ; > 60 MVA | K134: 1 | L134: 1 | M134: 2 | N134: 0 | O134: 2 | P134: 2 | Q134: 1
C135: > 132 kV & < = 220 kV ; < = 50 MVA | K135: 0 | L135: 0 | M135: 0 | N135: 0 | O135: 0 | P135: 0 | Q135: 0
C136: > 132 kV & < = 220 kV ; > 50 MVA & < = 100 MVA | K136: 0 | L136: 0 | M136: 0 | N136: 0 | O136: 0 | P136: 0 | Q136: 0
C137: > 132 kV & < = 220 kV ; > 100 MVA | K137: 0 | L137: 0 | M137: 0 | N137: 0 | O137: 0 | P137: 0 | Q137: 0
C138: > 220 kV & < = 275 kV ; < = 50 MVA | K138: 0 | L138: 0 | M138: 0 | N138: 0 | O138: 0 | P138: 0 | Q138: 0
C139: > 220 kV & < = 275 kV ; > 50 MVA & < = 100 MVA | K139: 0 | L139: 0 | M139: 0 | N139: 0 | O139: 0 | P139: 0 | Q139: 0
C140: > 220 kV & < = 275 kV ; > 100 MVA | K140: 0 | L140: 0 | M140: 2 | N140: 0 | O140: 0 | P140: 0 | Q140: 1
C141: > 275 kV & < = 330 kV ; < = 100 MVA | K141: 0 | L141: 0 | M141: 0 | N141: 0 | O141: 0 | P141: 0 | Q141: 0
C142: > 275 kV & < = 330 kV ; > 100 MVA & < = 250 MVA | K142: 0 | L142: 0 | M142: 0 | N142: 0 | O142: 0 | P142: 0 | Q142: 0
C143: > 275 kV & < = 330 kV ; > 250 MVA | K143: 0 | L143: 0 | M143: 0 | N143: 0 | O143: 0 | P143: 0 | Q143: 0
C144: > 330 kV & < = 500 kV ; < = 150 MVA | K144: 0 | L144: 0 | M144: 0 | N144: 0 | O144: 0 | P144: 0 | Q144: 0
C145: > 330 kV & < = 500 kV ; > 150 MVA & < = 300 MVA | K145: 0 | L145: 0 | M145: 0 | N145: 0 | O145: 0 | P145: 0 | Q145: 0
C146: > 330 kV & < = 500 kV ; > 300 MVA | K146: 0 | L146: 0 | M146: 0 | N146: 0 | O146: 0 | P146: 0 | Q146: 0
C147: > 500 kV ; < = 1000 MVA | K147: 0 | L147: 0 | M147: 0 | N147: 0 | O147: 0 | P147: 0 | Q147: 0
C148: > 500 kV ; > 1000 MVA & < = 1500 MVA | K148: 0 | L148: 0 | M148: 0 | N148: 0 | O148: 0 | P148: 0 | Q148: 0
C149: > 500 kV ; > 1500 MVA | K149: 0 | L149: 0 | M149: 0 | N149: 0 | O149: 0 | P149: 0 | Q149: 0
C150: Other | K150: 0 | L150: 0 | M150: 0 | N150: 0 | O150: 0 | P150: 0 | Q150: 0
B151: SUBSTATION REACTIVE PLANT BY: Highest operating voltage; Function | C151: < = 33 kV; SVCS | D151: 0 | E151: 0 | F151: 0 | G151: 0 | H151: 0 | I151: 0 | J151: 0 | K151: 0 | L151: 0 | M151: 0 | N151: 0 | O151: 0 | P151: 0 | Q151: 0
C152: > 33 kV & < = 66 kV ; SVCS | D152: 0 | E152: 0 | F152: 0 | G152: 0 | H152: 0 | I152: 0 | J152: 0 | K152: 0 | L152: 0 | M152: 0 | N152: 0 | O152: 0 | P152: 0 | Q152: 0
C153: > 66 kV & < = 132 kV ; SVCS | D153: 0 | E153: 0 | F153: 0 | G153: 0 | H153: 0 | I153: 0 | J153: 0 | K153: 0 | L153: 0 | M153: 0 | N153: 0 | O153: 0 | P153: 0 | Q153: 0
C154: > 132 kV & < = 275 kV ; SVCS | D154: 0 | E154: 0 | F154: 0 | G154: 0 | H154: 0 | I154: 0 | J154: 0 | K154: 0 | L154: 0 | M154: 0 | N154: 0 | O154: 0 | P154: 0 | Q154: 0
C155: > 275 kV & < = 330 kV ; SVCS | D155: 0 | E155: 0 | F155: 0 | G155: 0 | H155: 0 | I155: 0 | J155: 0 | K155: 0 | L155: 0 | M155: 0 | N155: 0 | O155: 0 | P155: 0 | Q155: 0
C156: > 330 kV & < = 500 kV ; SVCS | D156: 0 | E156: 0 | F156: 0 | G156: 0 | H156: 0 | I156: 0 | J156: 0 | K156: 0 | L156: 0 | M156: 0 | N156: 0 | O156: 0 | P156: 0 | Q156: 0
C157: > 500 kV ; SVCS | D157: 0 | E157: 0 | F157: 0 | G157: 0 | H157: 0 | I157: 0 | J157: 0 | K157: 0 | L157: 0 | M157: 0 | N157: 0 | O157: 0 | P157: 0 | Q157: 0
C158: < = 33 kV; Capacitors | D158: 0 | E158: 0 | F158: 0 | G158: 0 | H158: 0 | I158: 0 | J158: 0 | K158: 0 | L158: 0 | M158: 0 | N158: 0 | O158: 0 | P158: 0 | Q158: 0
C159: > 33 kV & < = 66 kV ; Capacitors | D159: 0 | E159: 0 | F159: 0 | G159: 0 | H159: 0 | I159: 0 | J159: 0 | K159: 0 | L159: 0 | M159: 0 | N159: 0 | O159: 0 | P159: 0 | Q159: 0
C160: > 66 kV & < = 132 kV ; Capacitors | D160: 0 | E160: 0 | F160: 0 | G160: 0 | H160: 0 | I160: 0 | J160: 0 | K160: 0 | L160: 0 | M160: 0 | N160: 0 | O160: 0 | P160: 0 | Q160: 0
C161: > 132 kV & < = 275 kV ; Capacitors | D161: 0 | E161: 0 | F161: 0 | G161: 0 | H161: 0 | I161: 0 | J161: 0 | K161: 0 | L161: 0 | M161: 0 | N161: 0 | O161: 0 | P161: 0 | Q161: 0
C162: > 275 kV & < = 330 kV ; Capacitors | D162: 0 | E162: 0 | F162: 0 | G162: 0 | H162: 0 | I162: 0 | J162: 0 | K162: 0 | L162: 0 | M162: 0 | N162: 0 | O162: 0 | P162: 0 | Q162: 0
C163: > 330 kV & < = 500 kV ; Capacitors | D163: 0 | E163: 0 | F163: 0 | G163: 0 | H163: 0 | I163: 0 | J163: 0 | K163: 0 | L163: 0 | M163: 0 | N163: 0 | O163: 0 | P163: 0 | Q163: 0
C164: > 500 kV ; Capacitors | D164: 0 | E164: 0 | F164: 0 | G164: 0 | H164: 0 | I164: 0 | J164: 0 | K164: 0 | L164: 0 | M164: 0 | N164: 0 | O164: 0 | P164: 0 | Q164: 0
C165: < = 33 kV; Oil Filled Reactors | D165: 0 | E165: 0 | F165: 0 | G165: 0 | H165: 0 | I165: 0 | J165: 0 | K165: 0 | L165: 0 | M165: 0 | N165: 0 | O165: 0 | P165: 0 | Q165: 0
C166: > 33 kV & < = 66 kV ; Oil Filled Reactors | D166: 0 | E166: 0 | F166: 0 | G166: 0 | H166: 0 | I166: 0 | J166: 0 | K166: 0 | L166: 0 | M166: 0 | N166: 0 | O166: 0 | P166: 0 | Q166: 0
C167: > 66 kV & < = 132 kV ; Oil Filled Reactors | D167: 0 | E167: 0 | F167: 0 | G167: 0 | H167: 0 | I167: 0 | J167: 0 | K167: 0 | L167: 0 | M167: 0 | N167: 0 | O167: 0 | P167: 0 | Q167: 0
C168: > 132 kV & < = 275 kV ; Oil Filled Reactors | D168: 4093220.559 | E168: 0 | F168: 0 | G168: 0 | H168: 0 | I168: 0 | J168: 0 | K168: 1 | L168: 0 | M168: 0 | N168: 0 | O168: 0 | P168: 0 | Q168: 0
C169: > 275 kV & < = 330 kV ; Oil Filled Reactors | D169: 0 | E169: 0 | F169: 0 | G169: 0 | H169: 0 | I169: 0 | J169: 0 | K169: 0 | L169: 0 | M169: 0 | N169: 0 | O169: 0 | P169: 0 | Q169: 0
C170: > 330 kV & < = 500 kV ; Oil Filled Reactors | D170: 0 | E170: 0 | F170: 0 | G170: 0 | H170: 0 | I170: 0 | J170: 0 | K170: 0 | L170: 0 | M170: 0 | N170: 0 | O170: 0 | P170: 0 | Q170: 0
C171: > 500 kV ; Oil Filled Reactors | D171: 0 | E171: 0 | F171: 0 | G171: 0 | H171: 0 | I171: 0 | J171: 0 | K171: 0 | L171: 0 | M171: 0 | N171: 0 | O171: 0 | P171: 0 | Q171: 0
C172: Other | D172: 0 | E172: 0 | F172: 0 | G172: 0 | H172: 0 | I172: 0 | J172: 0 | K172: 0 | L172: 0 | M172: 0 | N172: 0 | O172: 0 | P172: 0 | Q172: 0
B173: SCADA, NETWORK CONTROL AND PROTECTION SYSTEMS BY: Function | C173: Sec Sys - Bay Non Bay | D173: 6163484.687 | E173: 40182674.09 | F173: 68201971.08 | G173: 41615222.01 | H173: 17614331.34 | I173: 35199629.42 | J173: 36275541.86 | K173: 9 | L173: 60 | M173: 91 | N173: 58 | O173: 29 | P173: 49 | Q173: 50
C174: Sec Sys - Metering | D174: 3522283.48 | E174: 8591179.705 | F174: 6975660.833 | G174: 5936362.265 | H174: 5982422.188 | I174: 5504863.307 | J174: 6121767.192 | K174: 6 | L174: 16 | M174: 13 | N174: 11 | O174: 11 | P174: 10 | Q174: 11
C175: Sec Sys - Telecomms | D175: 4698996.761 | E175: 9195889.862 | F175: 12618221.55 | G175: 9955361.527 | H175: 8648458.309 | I175: 8173354.999 | J175: 8315389.137 | K175: 34 | L175: 267 | M175: 345 | N175: 271 | O175: 234 | P175: 219 | Q175: 221
C176: Sec Sys - OPGW | K176: 19.31 | L176: 0 | M176: 0 | N176: 0 | O176: 0 | P176: 0 | Q176: 0
B179: OTHER BY: NSP defined | C179: Other - Buildings | D179: 676167.7522 | E179: 3469609.094 | F179: 3178083.093 | G179: 3190623.313 | H179: 3208204.316 | I179: 2945884.687 | J179: 2619181.513 | K179: 2 | L179: 6 | M179: 6 | N179: 6 | O179: 6 | P179: 6 | Q179: 5
C180: Other - Infrastructure | D180: 1836699.114 | E180: 3814410.205 | F180: 3808529.687 | G180: 3824317.274 | H180: 5769521.642 | I180: 3882229.586 | J180: 3911827.582 | K180: 1 | L180: 2 | M180: 2 | N180: 2 | O180: 3 | P180: 2 | Q180: 2
C181: Other Repex | D181: 27835181.44 | E181: 5275555.969 | F181: 3629682.227 | G181: 4446183.671 | H181: 4452600.639 | I181: 4467360.802 | J181: 21421916.58
C182: Towers - > 66 kV & < = 132 kV ; Single Circuit - REFURBISHED | K182: 0 | L182: 0 | M182: 0 | N182: 0 | O182: 0 | P182: 0 | Q182: 0
C183: Towers - > 132 kV & < = 275 kV ; Single Circuit - REFURBISHED | K183: 0 | L183: 0 | M183: 0 | N183: 371 | O183: 0 | P183: 0 | Q183: 336
C184: Towers - > 275 kV & < = 330 kV ; Single Circuit - REFURBISHED | K184: 0 | L184: 0 | M184: 0 | N184: 0 | O184: 0 | P184: 0 | Q184: 0
C185: Towers - > 66 kV & < = 132 kV ; Multiple Circuit - REFURBISHED | K185: 18 | L185: 108 | M185: 23 | N185: 58 | O185: 15 | P185: 53 | Q185: 0
C186: Towers - > 132 kV & < = 275 kV ; Multiple Circuit - REFURBISHED | K186: 0 | L186: 0 | M186: 0 | N186: 0 | O186: 0 | P186: 0 | Q186: 0
C187: Towers - > 275 kV & < = 330 kV ; Multiple Circuit - REFURBISHED | K187: 0 | L187: 0 | M187: 0 | N187: 0 | O187: 0 | P187: 0 | Q187: 0

Sheet 2.3 Augex project data
B1: =(LOOKUP(dms_Model,dms_Model_List,dms_Worksheet_List)) -> REGULATORY REPORTING STATEMENT | G1: Workbook navigation
B2: =INDEX(dms_TradingNameFull_List,MATCH(dms_TradingName,dms_TradingName_List)) -> Queensland Electricity Transmission Corporation Limited trading as Powerlink Queensland
B3: =CONCATENATE(FRCP_y1," to ",dms_FRCP_FinalYear_Num) -> 2017-18 to 2021-22
B4: 2.3 AUGEX PROJECTS
B6: 2.3.1 - AUGEX ASSET DATA - SUBSTATIONS
B7: NOTE: TNSP MUST PROVIDE EXPENDITURE INFORMATION ON A PROJECT CLOSE BASIS.
A9: AUG231 | H9: ET_AUG231_00001 | I9: ET_AUG231_00002 | J9: ET_AUG231_00003 | K9: ET_AUG231_00004 | L9: ET_AUG231_00005 | M9: ET_AUG231_00006 | O9: ET_AUG231_00007 | Q9: ET_AUG231_00008 | R9: ET_AUG231_00009 | T9: ET_AUG231_00010 | U9: ET_AUG231_00011 | V9: ET_AUG231_00012 | W9: ET_AUG231_00013 | X9: ET_AUG231_00014 | Y9: ET_AUG231_00015 | Z9: ET_AUG231_00016 | AA9: ET_AUG231_00017 | AB9: ET_AUG231_00018 | AC9: ET_AUG231_00019 | AD9: ET_AUG231_00020 | AE9: ET_AUG231_00021 | AF9: ET_AUG231_00022 | AG9: ET_AUG231_00023
B10: SUBSTATION AND PROJECT SUMMARY | L10: PLANT AND EQUIPMENT EXPENDITURE AND VOLUME | Y10: OTHER EXPENDITURE | AA10: TOTAL DIRECT EXPENDITURE ($0's) | AB10: YEARS INCURRED | AC10: RELATED PARTY CONTRACTS | AE10: ALL NON RELATED PARTYCONTRACTS | AF10: LAND AND EASEMENTS
B11: SUBSTATION ID | C11: SUBSTATION TYPE | D11: PROJECT ID | E11: PROJECT TYPE | F11: PROJECT TRIGGER | G11: VOLTAGE (KV) | H11: SUBSTATION RATING NORMAL CYCLIC (MVA) | J11: SUBSTATION RATING N-1 EMERGENCY (MVA) | L11: TRANSFORMERS | P11: SWITCHGEAR | S11: REACTIVE PLANT | V11: OTHER PLANT ITEM | W11: INSTALLATION (LABOUR) | Y11: CIVIL WORKS | Z11: OTHER DIRECT | AC11: RELATED PARTY MARGINS | AD11: TOTAL | AF11: LAND PURCHASES | AG11: EASEMENTS | AH11: Comments
H12: PRE | I12: POST | J12: PRE | K12: POST | L12: Units Added | M12: MVA Added | N12: OLTC INCLUDED? | O12: Expenditure ($0's) | P12: Insulation | Q12: Units Added | R12: Expenditure ($0's) | S12: Plant Type | T12: Units Added | U12: Expenditure ($0's) | V12: Expenditure ($0's) | W12: Volume | X12: Expenditure ($0's) | Y12: Expenditure ($0's) | AC12: Expenditure ($0's) | AF12: Expenditure ($0's)
A13: AUG231_1 | B13: <Enter substation ID>
A14: AUG231_2
A15: AUG231_3
A16: AUG231_4
A17: AUG231_5
A18: AUG231_6
A19: AUG231_7
B20: Project Totals | L20: =SUM(L13:L18) -> 0 | M20: =SUM(M13:M18) -> 0 | O20: =SUM(O13:O18) -> 0 | Q20: =SUM(Q13:Q18) -> 0 | R20: =SUM(R13:R18) -> 0 | T20: =SUM(T13:T18) -> 0 | U20: 0 | V20: 0 | W20: 0 | X20: 0 | Y20: 0 | Z20: 0 | AA20: =O18+R18+U18+V18+SUM(X18:Z18) -> 0 | AC20: =SUM(AC13:AC18) -> 0 | AD20: =SUM(AD13:AD18) -> 0 | AE20: =SUM(AE13:AE18) -> 0 | AF20: =SUM(AF13:AF18) -> 0 | AG20: =SUM(AG13:AG18) -> 0
A21: AUG231_8 | B21: <Enter substation ID>
A22: AUG231_9
A23: AUG231_10
A24: AUG231_11
A25: AUG231_12
A26: AUG231_13
A27: AUG231_14
B28: Project Totals | L28: =SUM(L21:L26) -> 0 | M28: =SUM(M21:M26) -> 0 | O28: =SUM(O21:O26) -> 0 | Q28: =SUM(Q21:Q26) -> 0 | R28: =SUM(R21:R26) -> 0 | T28: =SUM(T21:T26) -> 0 | U28: 0 | V28: 0 | W28: 0 | X28: 0 | Y28: 0 | Z28: 0 | AA28: =O26+R26+U26+V26+SUM(X26:Z26) -> 0 | AC28: =SUM(AC21:AC26) -> 0 | AD28: =SUM(AD21:AD26) -> 0 | AE28: =SUM(AE21:AE26) -> 0 | AF28: =SUM(AF21:AF26) -> 0 | AG28: =SUM(AG21:AG26) -> 0
A29: AUG231_15 | B29: <Enter substation ID>
A30: AUG231_16
A31: AUG231_17
A32: AUG231_18
A33: AUG231_19
A34: AUG231_20
A35: AUG231_21
B36: Project Totals | L36: =SUM(L29:L34) -> 0 | M36: =SUM(M29:M34) -> 0 | O36: =SUM(O29:O34) -> 0 | Q36: =SUM(Q29:Q34) -> 0 | R36: =SUM(R29:R34) -> 0 | T36: =SUM(T29:T34) -> 0 | U36: 0 | V36: 0 | W36: 0 | X36: 0 | Y36: 0 | Z36: 0 | AA36: =O34+R34+U34+V34+SUM(X34:Z34) -> 0 | AC36: =SUM(AC29:AC34) -> 0 | AD36: =SUM(AD29:AD34) -> 0 | AE36: =SUM(AE29:AE34) -> 0 | AF36: =SUM(AF29:AF34) -> 0 | AG36: =SUM(AG29:AG34) -> 0
A37: AUG231_22 | B37: <Enter substation ID>
A38: AUG231_23
A39: AUG231_24
A40: AUG231_25
A41: AUG231_26
A42: AUG231_27
A43: AUG231_28
B44: Project Totals | L44: =SUM(L37:L42) -> 0 | M44: =SUM(M37:M42) -> 0 | O44: =SUM(O37:O42) -> 0 | Q44: =SUM(Q37:Q42) -> 0 | R44: =SUM(R37:R42) -> 0 | T44: =SUM(T37:T42) -> 0 | U44: 0 | V44: 0 | W44: 0 | X44: 0 | Y44: 0 | Z44: 0 | AA44: =O42+R42+U42+V42+SUM(X42:Z42) -> 0 | AC44: =SUM(AC37:AC42) -> 0 | AD44: =SUM(AD37:AD42) -> 0 | AE44: =SUM(AE37:AE42) -> 0 | AF44: =SUM(AF37:AF42) -> 0 | AG44: =SUM(AG37:AG42) -> 0
A45: AUG231_29 | B45: <Enter substation ID>
A46: AUG231_30
A47: AUG231_31
A48: AUG231_32
A49: AUG231_33
A50: AUG231_34
A51: AUG231_35
B52: Project Totals | L52: =SUM(L45:L50) -> 0 | M52: =SUM(M45:M50) -> 0 | O52: =SUM(O45:O50) -> 0 | Q52: =SUM(Q45:Q50) -> 0 | R52: =SUM(R45:R50) -> 0 | T52: =SUM(T45:T50) -> 0 | U52: 0 | V52: 0 | W52: 0 | X52: 0 | Y52: 0 | Z52: 0 | AA52: =O50+R50+U50+V50+SUM(X50:Z50) -> 0 | AC52: =SUM(AC45:AC50) -> 0 | AD52: =SUM(AD45:AD50) -> 0 | AE52: =SUM(AE45:AE50) -> 0 | AF52: =SUM(AF45:AF50) -> 0 | AG52: =SUM(AG45:AG50) -> 0
A53: AUG231_36 | B53: <Enter substation ID>
A54: AUG231_37
A55: AUG231_38
A56: AUG231_39
A57: AUG231_40
A58: AUG231_41
A59: AUG231_42
B60: Project Totals | L60: =SUM(L53:L58) -> 0 | M60: =SUM(M53:M58) -> 0 | O60: =SUM(O53:O58) -> 0 | Q60: =SUM(Q53:Q58) -> 0 | R60: =SUM(R53:R58) -> 0 | T60: =SUM(T53:T58) -> 0 | U60: 0 | V60: 0 | W60: 0 | X60: 0 | Y60: 0 | Z60: 0 | AA60: =O58+R58+U58+V58+SUM(X58:Z58) -> 0 | AC60: =SUM(AC53:AC58) -> 0 | AD60: =SUM(AD53:AD58) -> 0 | AE60: =SUM(AE53:AE58) -> 0 | AF60: =SUM(AF53:AF58) -> 0 | AG60: =SUM(AG53:AG58) -> 0
A61: AUG231_43 | B61: <Enter substation ID>
A62: AUG231_44
A63: AUG231_45
A64: AUG231_46
A65: AUG231_47
A66: AUG231_48
A67: AUG231_49
B68: Project Totals | L68: =SUM(L61:L66) -> 0 | M68: =SUM(M61:M66) -> 0 | O68: =SUM(O61:O66) -> 0 | Q68: =SUM(Q61:Q66) -> 0 | R68: =SUM(R61:R66) -> 0 | T68: =SUM(T61:T66) -> 0 | U68: 0 | V68: 0 | W68: 0 | X68: 0 | Y68: 0 | Z68: 0 | AA68: =O66+R66+U66+V66+SUM(X66:Z66) -> 0 | AC68: =SUM(AC61:AC66) -> 0 | AD68: =SUM(AD61:AD66) -> 0 | AE68: =SUM(AE61:AE66) -> 0 | AF68: =SUM(AF61:AF66) -> 0 | AG68: =SUM(AG61:AG66) -> 0
A69: AUG231_50 | B69: <Enter substation ID>
A70: AUG231_51
A71: AUG231_52
A72: AUG231_53
A73: AUG231_54
A74: AUG231_55
A75: AUG231_56
B76: Project Totals | L76: =SUM(L69:L74) -> 0 | M76: =SUM(M69:M74) -> 0 | O76: =SUM(O69:O74) -> 0 | Q76: =SUM(Q69:Q74) -> 0 | R76: =SUM(R69:R74) -> 0 | T76: =SUM(T69:T74) -> 0 | U76: 0 | V76: 0 | W76: 0 | X76: 0 | Y76: 0 | Z76: 0 | AA76: =O74+R74+U74+V74+SUM(X74:Z74) -> 0 | AC76: =SUM(AC69:AC74) -> 0 | AD76: =SUM(AD69:AD74) -> 0 | AE76: =SUM(AE69:AE74) -> 0 | AF76: =SUM(AF69:AF74) -> 0 | AG76: =SUM(AG69:AG74) -> 0
A77: AUG231_57 | B77: <Enter substation ID>
A78: AUG231_58
A79: AUG231_59
A80: AUG231_60
A81: AUG231_61
A82: AUG231_62
A83: AUG231_63
B84: Project Totals | L84: =SUM(L77:L82) -> 0 | M84: =SUM(M77:M82) -> 0 | O84: =SUM(O77:O82) -> 0 | Q84: =SUM(Q77:Q82) -> 0 | R84: =SUM(R77:R82) -> 0 | T84: =SUM(T77:T82) -> 0 | U84: 0 | V84: 0 | W84: 0 | X84: 0 | Y84: 0 | Z84: 0 | AA84: =O82+R82+U82+V82+SUM(X82:Z82) -> 0 | AC84: =SUM(AC77:AC82) -> 0 | AD84: =SUM(AD77:AD82) -> 0 | AE84: =SUM(AE77:AE82) -> 0 | AF84: =SUM(AF77:AF82) -> 0 | AG84: =SUM(AG77:AG82) -> 0
A85: AUG231_64 | B85: <Enter substation ID>
A86: AUG231_65
A87: AUG231_66
A88: AUG231_67
A89: AUG231_68
A90: AUG231_69
A91: AUG231_70
B92: Project Totals | L92: =SUM(L85:L90) -> 0 | M92: =SUM(M85:M90) -> 0 | O92: =SUM(O85:O90) -> 0 | Q92: =SUM(Q85:Q90) -> 0 | R92: =SUM(R85:R90) -> 0 | T92: =SUM(T85:T90) -> 0 | U92: 0 | V92: 0 | W92: 0 | X92: 0 | Y92: 0 | Z92: 0 | AA92: =O90+R90+U90+V90+SUM(X90:Z90) -> 0 | AC92: =SUM(AC85:AC90) -> 0 | AD92: =SUM(AD85:AD90) -> 0 | AE92: =SUM(AE85:AE90) -> 0 | AF92: =SUM(AF85:AF90) -> 0 | AG92: =SUM(AG85:AG90) -> 0
A93: AUG231_71 | B93: <Enter substation ID>
A94: AUG231_72
A95: AUG231_73
A96: AUG231_74
A97: AUG231_75
A98: AUG231_76
A99: AUG231_77
B100: Project Totals | L100: =SUM(L93:L98) -> 0 | M100: =SUM(M93:M98) -> 0 | O100: =SUM(O93:O98) -> 0 | Q100: =SUM(Q93:Q98) -> 0 | R100: =SUM(R93:R98) -> 0 | T100: =SUM(T93:T98) -> 0 | U100: 0 | V100: 0 | W100: 0 | X100: 0 | Y100: 0 | Z100: 0 | AA100: =O98+R98+U98+V98+SUM(X98:Z98) -> 0 | AC100: =SUM(AC93:AC98) -> 0 | AD100: =SUM(AD93:AD98) -> 0 | AE100: =SUM(AE93:AE98) -> 0 | AF100: =SUM(AF93:AF98) -> 0 | AG100: =SUM(AG93:AG98) -> 0
A101: AUG231_78 | B101: <Enter substation ID>
A102: AUG231_79
A103: AUG231_80
A104: AUG231_81
A105: AUG231_82
A106: AUG231_83
A107: AUG231_84
B108: Project Totals | L108: =SUM(L101:L106) -> 0 | M108: =SUM(M101:M106) -> 0 | O108: =SUM(O101:O106) -> 0 | Q108: =SUM(Q101:Q106) -> 0 | R108: =SUM(R101:R106) -> 0 | T108: =SUM(T101:T106) -> 0 | U108: 0 | V108: 0 | W108: 0 | X108: 0 | Y108: 0 | Z108: 0 | AA108: =O106+R106+U106+V106+SUM(X106:Z106) -> 0 | AC108: =SUM(AC101:AC106) -> 0 | AD108: =SUM(AD101:AD106) -> 0 | AE108: =SUM(AE101:AE106) -> 0 | AF108: =SUM(AF101:AF106) -> 0 | AG108: =SUM(AG101:AG106) -> 0
A109: AUG231_85 | B109: <Enter substation ID>
A110: AUG231_86
A111: AUG231_87
A112: AUG231_88
A113: AUG231_89
A114: AUG231_90
A115: AUG231_91
B116: Project Totals | L116: =SUM(L109:L114) -> 0 | M116: =SUM(M109:M114) -> 0 | O116: =SUM(O109:O114) -> 0 | Q116: =SUM(Q109:Q114) -> 0 | R116: =SUM(R109:R114) -> 0 | T116: =SUM(T109:T114) -> 0 | U116: 0 | V116: 0 | W116: 0 | X116: 0 | Y116: 0 | Z116: 0 | AA116: =O114+R114+U114+V114+SUM(X114:Z114) -> 0 | AC116: =SUM(AC109:AC114) -> 0 | AD116: =SUM(AD109:AD114) -> 0 | AE116: =SUM(AE109:AE114) -> 0 | AF116: =SUM(AF109:AF114) -> 0 | AG116: =SUM(AG109:AG114) -> 0
A117: AUG231_92 | B117: <Enter substation ID>
A118: AUG231_93
A119: AUG231_94
A120: AUG231_95
A121: AUG231_96
A122: AUG231_97
A123: AUG231_98
B124: Project Totals | L124: =SUM(L117:L122) -> 0 | M124: =SUM(M117:M122) -> 0 | O124: =SUM(O117:O122) -> 0 | Q124: =SUM(Q117:Q122) -> 0 | R124: =SUM(R117:R122) -> 0 | T124: =SUM(T117:T122) -> 0 | U124: 0 | V124: 0 | W124: 0 | X124: 0 | Y124: 0 | Z124: 0 | AA124: =O122+R122+U122+V122+SUM(X122:Z122) -> 0 | AC124: =SUM(AC117:AC122) -> 0 | AD124: =SUM(AD117:AD122) -> 0 | AE124: =SUM(AE117:AE122) -> 0 | AF124: =SUM(AF117:AF122) -> 0 | AG124: =SUM(AG117:AG122) -> 0
A125: AUG231_99 | B125: <Enter substation ID>
A126: AUG231_100
A127: AUG231_101
A128: AUG231_102
A129: AUG231_103
A130: AUG231_104
A131: AUG231_105
B132: Project Totals | L132: =SUM(L125:L130) -> 0 | M132: =SUM(M125:M130) -> 0 | O132: =SUM(O125:O130) -> 0 | Q132: =SUM(Q125:Q130) -> 0 | R132: =SUM(R125:R130) -> 0 | T132: =SUM(T125:T130) -> 0 | U132: 0 | V132: 0 | W132: 0 | X132: 0 | Y132: 0 | Z132: 0 | AA132: =O130+R130+U130+V130+SUM(X130:Z130) -> 0 | AC132: =SUM(AC125:AC130) -> 0 | AD132: =SUM(AD125:AD130) -> 0 | AE132: =SUM(AE125:AE130) -> 0 | AF132: =SUM(AF125:AF130) -> 0 | AG132: =SUM(AG125:AG130) -> 0
A133: AUG231_1000 | D133: Non material projects
A134: AUG231_1001 | D134: Non material projects | AA134: 4064879.454 | AB134: 2013, 2014, 2015, 2010
D135: Non material projects | AA135: 5627404.98 | AB135: 2015, 2016, 2017, 2018, 2019, 20220
B138: 2.3.2 - AUGEX ASSET DATA - LINES
B139: NOTE: TNSP MUST PROVIDE EXPENDITURE INFORMATION ON A PROJECT CLOSE BASIS.
A140: AUG232 | I140: ET_AUG232_00001 | J140: ET_AUG232_00002 | K140: ET_AUG232_00003 | M140: ET_AUG232_00004 | N140: ET_AUG232_00005 | O140: ET_AUG232_00006 | P140: ET_AUG232_00007 | Q140: ET_AUG232_00008 | R140: ET_AUG232_00009 | S140: ET_AUG232_00010 | T140: ET_AUG232_00011 | U140: ET_AUG232_00012 | V140: ET_AUG232_00013 | W140: ET_AUG232_00014 | X140: ET_AUG232_00015 | Y140: ET_AUG232_00016 | Z140: ET_AUG232_00017 | AA140: ET_AUG232_00018 | AB140: ET_AUG232_00019 | AC140: ET_AUG232_00020 | AD140: ET_AUG232_00021
B141: LINE AND PROJECT SUMMARY | H141: PLANT AND EQUIPMENT EXPENDITURE AND VOLUME | V141: OTHER EXPENDITURE | X141: TOTAL DIRECT EXPENDITURE ($0's) | Y141: YEARS INCURRED | Z141: ALL RELATED PARTY CONTRACTS | AB141: ALL NON RELATED PARTYCONTRACTS | AC141: LAND AND EASEMENTS
B142: LINE ID | C142: PROJECT ID | D142: PROJECT TYPE | E142: PROJECT TRIGGER | F142: VOLTAGE (KV) | G142: ROUTE LINE LENGTH ADDED | H142: TOWERS/POLES (INCLUDING STRUCTURES, AND CIVIL WORKS) | L142: LINES AND CABLES | S142: OTHER PLANT ITEM Expenditure ($0's) | T142: INSTALLATION (LABOUR) | V142: CIVIL WORKS | W142: OTHER DIRECT | Z142: RELATED PARTY MARGINS | AA142: TOTAL | AC142: LAND PURCHASES | AD142: EASEMENTS
L143: Type | M143: Rating (MVA) | O143: N-1 Emergency Rating (MVA) | Q143: Circuit KM Added | R143: Expenditure ($0's)
A144: AUG232_1 | G144: KM ADDED | H144: Configuration | I144: Towers/Poles Added | J144: Towers/Poles Upgraded | K144: Expenditure ($0's) | M144: PRE | N144: POST | O144: PRE | P144: POST | T144: Volume | U144: Expenditure ($0's) | V144: Expenditure ($0's) | Z144: Expenditure ($0's) | AC144: Expenditure ($0's)
A145: AUG232_2 | B145: <Enter line ID>
A146: AUG232_3
A147: AUG232_4
A148: AUG232_5
A149: AUG232_6
A150: AUG232_7
A152: AUG232_8 | B152: Project Totals | I152: =SUM(I145:I151) -> 0 | J152: =SUM(J145:J151) -> 0 | K152: =SUM(K145:K151) -> 0 | Q152: =SUM(Q145:Q151) -> 0 | R152: =SUM(R145:R151) -> 0 | S152: =SUM(S145:S150) -> 0 | T152: =SUM(T145:T150) -> 0 | U152: =SUM(U145:U151) -> 0 | V152: =SUM(V145:V151) -> 0 | W152: =SUM(W145:W151) -> 0 | X152: =K92+R92+S92+SUM(U92:W92) -> 0 | Z152: =SUM(Z145:Z151) -> 0 | AA152: =SUM(AA145:AA151) -> 0 | AB152: =SUM(AB145:AB151) -> 0 | AC152: =SUM(AC145:AC151) -> 0 | AD152: =SUM(AD145:AD151) -> 0
A153: AUG232_9 | B153: <Enter line ID>
A154: AUG232_10
A155: AUG232_11
A156: AUG232_12
A157: AUG232_13
A158: AUG232_14
A160: AUG232_15 | B160: Project Totals | I160: =SUM(I153:I159) -> 0 | J160: =SUM(J153:J159) -> 0 | K160: =SUM(K153:K159) -> 0 | Q160: =SUM(Q153:Q159) -> 0 | R160: =SUM(R153:R159) -> 0 | S160: =SUM(S153:S158) -> 0 | T160: =SUM(T153:T158) -> 0 | U160: =SUM(U153:U159) -> 0 | V160: =SUM(V153:V159) -> 0 | W160: =SUM(W153:W159) -> 0 | X160: =K84+R84+S84+SUM(U84:W84) -> 0 | Z160: =SUM(Z153:Z159) -> 0 | AA160: =SUM(AA153:AA159) -> 0 | AB160: =SUM(AB153:AB159) -> 0 | AC160: =SUM(AC153:AC159) -> 0 | AD160: =SUM(AD153:AD159) -> 0
A161: AUG232_16 | B161: <Enter line ID>
A162: AUG232_17
A163: AUG232_18
A164: AUG232_19
A165: AUG232_20
A166: AUG232_21
A168: AUG232_22 | B168: Project Totals | I168: =SUM(I161:I167) -> 0 | J168: =SUM(J161:J167) -> 0 | K168: =SUM(K161:K167) -> 0 | Q168: =SUM(Q161:Q167) -> 0 | R168: =SUM(R161:R167) -> 0 | S168: =SUM(S161:S166) -> 0 | T168: =SUM(T161:T166) -> 0 | U168: =SUM(U161:U167) -> 0 | V168: =SUM(V161:V167) -> 0 | W168: =SUM(W161:W167) -> 0 | X168: =K92+R92+S92+SUM(U92:W92) -> 0 | Z168: =SUM(Z161:Z167) -> 0 | AA168: =SUM(AA161:AA167) -> 0 | AB168: =SUM(AB161:AB167) -> 0 | AC168: =SUM(AC161:AC167) -> 0 | AD168: =SUM(AD161:AD167) -> 0
A169: AUG232_23 | B169: <Enter line ID>
A170: AUG232_24
A171: AUG232_25
A172: AUG232_26
A173: AUG232_27
A174: AUG232_28
A176: AUG232_29 | B176: Project Totals | I176: =SUM(I169:I175) -> 0 | J176: =SUM(J169:J175) -> 0 | K176: =SUM(K169:K175) -> 0 | Q176: =SUM(Q169:Q175) -> 0 | R176: =SUM(R169:R175) -> 0 | S176: =SUM(S169:S174) -> 0 | T176: =SUM(T169:T174) -> 0 | U176: =SUM(U169:U175) -> 0 | V176: =SUM(V169:V175) -> 0 | W176: =SUM(W169:W175) -> 0 | X176: =K100+R100+S100+SUM(U100:W100) -> 0 | Z176: =SUM(Z169:Z175) -> 0 | AA176: =SUM(AA169:AA175) -> 0 | AB176: =SUM(AB169:AB175) -> 0 | AC176: =SUM(AC169:AC175) -> 0 | AD176: =SUM(AD169:AD175) -> 0
A177: AUG232_30 | B177: <Enter line ID>
A178: AUG232_31
A179: AUG232_32
A180: AUG232_33
A181: AUG232_34
A182: AUG232_35
A184: AUG232_36 | B184: Project Totals | I184: =SUM(I177:I183) -> 0 | J184: =SUM(J177:J183) -> 0 | K184: =SUM(K177:K183) -> 0 | Q184: =SUM(Q177:Q183) -> 0 | R184: =SUM(R177:R183) -> 0 | S184: =SUM(S177:S182) -> 0 | T184: =SUM(T177:T182) -> 0 | U184: =SUM(U177:U183) -> 0 | V184: =SUM(V177:V183) -> 0 | W184: =SUM(W177:W183) -> 0 | X184: =K108+R108+S108+SUM(U108:W108) -> 0 | Z184: =SUM(Z177:Z183) -> 0 | AA184: =SUM(AA177:AA183) -> 0 | AB184: =SUM(AB177:AB183) -> 0 | AC184: =SUM(AC177:AC183) -> 0 | AD184: =SUM(AD177:AD183) -> 0
A185: AUG232_37 | B185: <Enter line ID>
A186: AUG232_38
A187: AUG232_39
A188: AUG232_40
A189: AUG232_41
A190: AUG232_42
A192: AUG232_43 | B192: Project Totals | I192: =SUM(I185:I191) -> 0 | J192: =SUM(J185:J191) -> 0 | K192: =SUM(K185:K191) -> 0 | Q192: =SUM(Q185:Q191) -> 0 | R192: =SUM(R185:R191) -> 0 | S192: =SUM(S185:S190) -> 0 | T192: =SUM(T185:T190) -> 0 | U192: =SUM(U185:U191) -> 0 | V192: =SUM(V185:V191) -> 0 | W192: =SUM(W185:W191) -> 0 | X192: =K116+R116+S116+SUM(U116:W116) -> 0 | Z192: =SUM(Z185:Z191) -> 0 | AA192: =SUM(AA185:AA191) -> 0 | AB192: =SUM(AB185:AB191) -> 0 | AC192: =SUM(AC185:AC191) -> 0 | AD192: =SUM(AD185:AD191) -> 0
A193: AUG232_44 | B193: <Enter line ID>
A194: AUG232_45
A195: AUG232_46
A196: AUG232_47
A197: AUG232_48
A198: AUG232_49
A200: AUG232_1000 | B200: Project Totals | I200: =SUM(I193:I199) -> 0 | J200: =SUM(J193:J199) -> 0 | K200: =SUM(K193:K199) -> 0 | Q200: =SUM(Q193:Q199) -> 0 | R200: =SUM(R193:R199) -> 0 | S200: =SUM(S193:S198) -> 0 | T200: =SUM(T193:T198) -> 0 | U200: =SUM(U193:U199) -> 0 | V200: =SUM(V193:V199) -> 0 | W200: =SUM(W193:W199) -> 0 | X200: =K124+R124+S124+SUM(U124:W124) -> 0 | Z200: =SUM(Z193:Z199) -> 0 | AA200: =SUM(AA193:AA199) -> 0 | AB200: =SUM(AB193:AB199) -> 0 | AC200: =SUM(AC193:AC199) -> 0 | AD200: =SUM(AD193:AD199) -> 0
A201: AUG232_1001 | C201: Non material projects
A202: AUG232_1002 | C202: Non material projects
C203: Non material projects
B209: 2.3.3 - AUGEX - TOTAL EXPENDITURE
B210: As incurred | C210: =CONCATENATE("EXPENDITURE Forecast ($0's. real ",dms_DollarReal,")") -> EXPENDITURE Forecast ($0's. real June 2017)
A211: AUG233 | C211: =CRCP_y4 -> 2015-16 | D211: =CRCP_y5 -> 2016-17 | E211: =FRCP_y1 -> 2017-18 | F211: =FRCP_y2 -> 2018-19 | G211: =FRCP_y3 -> 2019-20 | H211: =FRCP_y4 -> 2020-21 | I211: =FRCP_y5 -> 2021-22
B212: AUGMENTATION CAPEX
A213: ET_AUG233_00001 | B213: Substations | C213: 2008914.405 | D213: 22741.56754 | E213: 265410.7721 | F213: 2583354.53 | G213: 276531.1888 | H213: 0 | I213: 0
A214: ET_AUG233_00002 | B214: Lines
A215: ET_AUG233_00003 | B215: Other assets
B216: Total augmentation capex | C216: =SUM(C213:C215) -> 2008914.405 | D216: =SUM(D213:D215) -> 22741.56754 | E216: 265410.7721 | F216: 2583354.53 | G216: 276531.1888 | H216: 0 | I216: 0

Sheet 2.5 Connections
B1: =(LOOKUP(dms_Model,dms_Model_List,dms_Worksheet_List)) -> REGULATORY REPORTING STATEMENT
B2: =INDEX(dms_TradingNameFull_List,MATCH(dms_TradingName,dms_TradingName_List)) -> Queensland Electricity Transmission Corporation Limited trading as Powerlink Queensland
B3: =CONCATENATE(FRCP_y1," to ",FRCP_y5) -> 2017-18 to 2021-22
B4: 2.5 CONNECTIONS EXPENDITURE
B6: TNSP CONNECTION CLASSIFICATIONS AND SPECIFICATIONS OF ANNUAL DIRECT AND INDIRECT COSTS
B7: 2.5.1 - EXPENDITURE ON CONNECTION PROJECTS | L7: 2.5.2 - DESCRIPTION OF CONNECTION PROJECTS
D8: =CONCATENATE("EXPENDITURE Forecast ($0's. real ",dms_DollarReal,")") -> EXPENDITURE Forecast ($0's. real June 2017) | M8: CONNECTION RATING (MVA) | N8: CONNECTION VOLTAGE (KV) | O8: UNDERGROUND / OVERHEAD (drop down) | P8: YEAR CONNECTION PROJECT COMPLETED
B9: CONNECTION PROJECT | C9: EXPENDITURE CATEGORY | D9: =CRCP_y4 -> 2015-16 | E9: =CRCP_y5 -> 2016-17 | F9: =FRCP_y1 -> 2017-18 | G9: =FRCP_y2 -> 2018-19 | H9: =FRCP_y3 -> 2019-20 | I9: =FRCP_y4 -> 2020-21 | J9: =FRCP_y5 -> 2021-22 | L9: =B10 -> <Enter project description here…>
B10: <Enter project description here…> | C10: Direct materials costs | L10: =B12 -> 0
C11: Direct labour costs | L11: =B14 -> 0
C12: Direct materials costs | L12: =B16 -> 0
C13: Direct labour costs | L13: =B18 -> 0
C14: Direct materials costs | L14: =B20 -> 0
C15: Direct labour costs | L15: =B22 -> 0
C16: Direct materials costs | L16: =B24 -> 0
C17: Direct labour costs | L17: =B26 -> 0
C18: Direct materials costs | L18: =B28 -> 0
C19: Direct labour costs | L19: =B30 -> 0
C20: Direct materials costs | L20: =B32 -> 0
C21: Direct labour costs | L21: =B34 -> 0
C22: Direct materials costs | L22: =B36 -> 0
C23: Direct labour costs | L23: =B38 -> 0
C24: Direct materials costs | L24: =B40 -> 0
C25: Direct labour costs | L25: =B42 -> 0
C26: Direct materials costs | L26: =B44 -> 0
C27: Direct labour costs
C28: Direct materials costs
C29: Direct labour costs
C30: Direct materials costs
C31: Direct labour costs
C32: Direct materials costs
C33: Direct labour costs
C34: Direct materials costs
C35: Direct labour costs
C36: Direct materials costs
C37: Direct labour costs
C38: Direct materials costs
C39: Direct labour costs
C40: Direct materials costs
C41: Direct labour costs
C42: Direct materials costs
C43: Direct labour costs
C44: Direct materials costs
C45: Direct labour costs
C46: Direct materials costs
C47: Direct labour costs
C48: Direct materials costs
C49: Direct labour costs
C50: Direct materials costs
C51: Direct labour costs
C52: Direct materials costs
C53: Direct labour costs
C54: Direct materials costs
C55: Direct labour costs
C56: Direct materials costs
C57: Direct labour costs
C58: Direct materials costs
C59: Direct labour costs

Sheet 2.6 Non-network
B1: =(LOOKUP(dms_Model,dms_Model_List,dms_Worksheet_List)) -> REGULATORY REPORTING STATEMENT
B2: =INDEX(dms_TradingNameFull_List,MATCH(dms_TradingName,dms_TradingName_List)) -> Queensland Electricity Transmission Corporation Limited trading as Powerlink Queensland
B3: =CONCATENATE(FRCP_y1," to ",FRCP_y5) -> 2017-18 to 2021-22
B4: 2.6 NON NETWORK EXPENDITURE
B6: 2.6.1 - NON-NETWORK EXPENDITURE | M6: 2.6.2 - ANNUAL DESCRIPTOR METRICS - IT & COMMUNICATIONS EXPENDITURE
E7: =CONCATENATE("EXPENDITURE Forecast ($0's. real ",dms_DollarReal,")") -> EXPENDITURE Forecast ($0's. real June 2017) | M7: DESCRIPTOR METRIC | P7: VOLUMES (0's)
B8: SERVICE SUBCATEGORY | C8: ASSET CATEGORY | D8: ASSET REPORTING CATEGORY | E8: =CRCP_y4 -> 2015-16 | F8: =CRCP_y5 -> 2016-17 | G8: =FRCP_y1 -> 2017-18 | H8: =FRCP_y2 -> 2018-19 | I8: =FRCP_y3 -> 2019-20 | J8: =FRCP_y4 -> 2020-21 | K8: =FRCP_y5 -> 2021-22 | P8: =CRCP_y4 -> 2015-16 | Q8: =CRCP_y5 -> 2016-17 | R8: =FRCP_y1 -> 2017-18 | S8: =FRCP_y2 -> 2018-19 | T8: =FRCP_y3 -> 2019-20 | U8: =FRCP_y4 -> 2020-21 | V8: =FRCP_y5 -> 2021-22
B9: IT & COMMUNICATIONS | C9: Client device expenditure | D9: Opex | E9: 1772057.242 | F9: 1686231.397 | G9: 1750809.341 | H9: 1762845.724 | I9: 1774612.127 | J9: 1788612.525 | K9: 1808295.223 | M9: Employee numbers | P9: 878.793571 | Q9: 826.5672866 | R9: 759.7799229 | S9: 745.4779796 | T9: 733.8198082 | U9: 732.4360289 | V9: 730.9243706
D10: Capex | E10: 932098.9698 | F10: 988028.3836 | G10: 561847.9264 | H10: 500631.0439 | I10: 562575.7882 | J10: 566239.5857 | K10: 521476.2875 | M10: User numbers | P10: 1308.262434 | Q10: 1230.513019 | R10: 1131.086485 | S10: 1109.795142 | T10: 1092.43959 | U10: 1090.379554 | V10: 1088.129144
C11: Recurrent expenditure | D11: Opex | E11: 20854446.7 | F11: 19844405.68 | G11: 18523835.78 | H11: 18651182.59 | I11: 18775672.96 | J11: 18923799.36 | K11: 19132045.37 | M11: Number of devices | P11: 1985.948239 | Q11: 1867.924278 | R11: 1716.994354 | S11: 1684.674 | T11: 1658.328194 | U11: 1655.20105 | V11: 1651.784918
D12: Capex | E12: 1425956.524 | F12: 1511519.233 | G12: 1744648.434 | H12: 1601381.626 | I12: 1746899.577 | J12: 1756603.988 | K12: 1651650.346
C13: Non-recurrent expenditure | D13: Opex | E13: 0 | F13: 0 | G13: 0 | H13: 0 | I13: 0 | J13: 0 | K13: 0
D14: Capex | E14: 12186290.52 | F14: 12917513.39 | G14: 9225985.44 | H14: 8408050.681 | I14: 9237901.461 | J14: 9291374.293 | K14: 8692506.532
B15: MOTOR VEHICLES | C15: Car | D15: Opex | E15: 787347.0523 | F15: 806854.031 | G15: 807247.8105 | H15: 807641.7821 | I15: 808035.9459 | J15: 808430.3022 | K15: 808824.8509
D16: Capex | E16: 872459.2441 | F16: 956298.2195 | G16: 361979.9167 | H16: 271721.8442 | I16: 388528.1133 | J16: 850010.6702 | K16: 428571.5051
C17: Light commercial vehicle | D17: Opex | E17: 1215007.048 | F17: 1245109.55 | G17: 1245717.217 | H17: 1246325.18 | I17: 1246933.441 | J17: 1247541.998 | K17: 1248150.852
D18: Capex | E18: 2356973.336 | F18: 1281721.645 | G18: 169120.3158 | H18: 504086.9184 | I18: 457342.612 | J18: 496977.2419 | K18: 433221.4595
C19: Elevated work platform (LCV) | D19: Opex | E19: 0 | F19: 0 | G19: 0 | H19: 0 | I19: 0 | J19: 0 | K19: 0 | M19: 2.6.3 - ANNUAL DESCRIPTOR METRICS - MOTOR VEHICLES
D20: Capex | E20: 0 | F20: 0 | G20: 0 | H20: 0 | I20: 0 | J20: 0 | K20: 0 | M20: DESCRIPTOR METRIC | O20: Unit of Measure | P20: VOLUMES (0's or %)
C21: Elevated work platform (HCV) | D21: Opex | E21: 0 | F21: 0 | G21: 0 | H21: 0 | I21: 0 | J21: 0 | K21: 0 | P21: =CRCP_y4 -> 2015-16 | Q21: =CRCP_y5 -> 2016-17 | R21: =FRCP_y1 -> 2017-18 | S21: =FRCP_y2 -> 2018-19 | T21: =FRCP_y3 -> 2019-20 | U21: =FRCP_y4 -> 2020-21 | V21: =FRCP_y5 -> 2021-22
D22: Capex | E22: 0 | F22: 0 | G22: 0 | H22: 0 | I22: 0 | J22: 0 | K22: 0 | M22: CAR | N22: Average kilometres travelled | O22: 0's | P22: 0 | Q22: 0 | R22: 0 | S22: 0 | T22: 0 | U22: 0 | V22: 0
C23: Heavy commercial vehicle | D23: Opex | E23: 79755.88788 | F23: 81731.88614 | G23: 81771.77481 | H23: 81811.68295 | I23: 81851.61057 | J23: 81891.55767 | K23: 81931.52427 | N23: Number purchased | O23: 0's | P23: 23 | Q23: 27 | R23: 7 | S23: 7 | T23: 13 | U23: 31 | V23: 11
D24: Capex | E24: 549833.6868 | F24: 0 | G24: 1395663.132 | H24: 1222236.08 | I24: 1762669.771 | J24: 752598.0294 | K24: 1061465.224 | N24: Number leased | O24: 0's | P24: 0 | Q24: 0 | R24: 0 | S24: 0 | T24: 0 | U24: 0 | V24: 0
B25: BUILDINGS AND PROPERTY | C25: Total buildings and property expenditure | D25: Opex | E25: 6429929.117 | F25: 6118509.101 | G25: 6058708.617 | H25: 6100360.746 | I25: 6141078.603 | J25: 6189527.244 | K25: 6257639.589 | N25: Number in fleet | O25: 0's | P25: 118 | Q25: 97.37931034 | R25: 97.37931034 | S25: 97.37931034 | T25: 97.37931034 | U25: 97.37931034 | V25: 97.37931034
D26: Capex | E26: 5579307.627 | F26: 2662091.702 | G26: 2090878.258 | H26: 4093118.2 | I26: 7679398.362 | J26: 7683876.255 | K26: 1936023.15 | N26: Proportion of total fleet expenditure allocated as regulatory expenditure | O26: % | P26: 0.8167 | Q26: 0.8167 | R26: 0.8167 | S26: 0.8167 | T26: 0.8167 | U26: 0.8167 | V26: 0.8167
B27: OTHER | C27: Other expenditure | D27: Opex | M27: LIGHT COMMERCIAL VEHICLE | N27: Average kilometres travelled | O27: 0's | P27: 0 | Q27: 0 | R27: 0 | S27: 0 | T27: 0 | U27: 0 | V27: 0
D28: Capex | N28: Number purchased | O28: 0's | P28: 37 | Q28: 23 | R28: 27 | S28: 29 | T28: 30 | U28: 15 | V28: 21
B29: OTHER - TNSP nominated | C29: Tools and equipment | D29: Opex | E29: 0 | F29: 0 | G29: 0 | H29: 0 | I29: 0 | J29: 0 | K29: 0 | N29: Number leased | O29: 0's | P29: 0 | Q29: 0 | R29: 0 | S29: 0 | T29: 0 | U29: 0 | V29: 0
D30: Capex | E30: 1179116.251 | F30: 1124372.415 | G30: 1000900.608 | H30: 1018335.185 | I30: 1017177.124 | J30: 992591.5091 | K30: 956670.215 | N30: Number in fleet | O30: 0's | P30: 174 | Q30: 140.8275862 | R30: 140.8275862 | S30: 140.8275862 | T30: 140.8275862 | U30: 140.8275862 | V30: 140.8275862
C31: Motor vehicles - other | D31: Opex | E31: 462253.5124 | F31: 439865.2413 | G31: 443722.9138 | H31: 446773.3995 | I31: 449755.4618 | J31: 453303.7051 | K31: 458292.0632 | N31: Proportion of total fleet expenditure allocated as regulatory expenditure | O31: % | P31: 0.8167 | Q31: 0.8167 | R31: 0.8167 | S31: 0.8167 | T31: 0.8167 | U31: 0.8167 | V31: 0.8167
D32: Capex | E32: 891199.8066 | F32: 744570.4795 | G32: 250303.0766 | H32: 262942.7705 | I32: 89700.23594 | J32: 509292.9656 | K32: 617246.492 | M32: ELEVATED WORK PLATFORM (LCV) | N32: Average kilometres travelled | O32: 0's
D33: Opex | N33: Number purchased | O33: 0's
D34: Capex | N34: Number leased | O34: 0's
D35: Opex | N35: Number in fleet | O35: 0's
D36: Capex | N36: Proportion of total fleet expenditure allocated as regulatory expenditure | O36: %
D37: Opex | M37: ELEVATED WORK PLATFORM (HCV) | N37: Average kilometres travelled | O37: 0's
D38: Capex | N38: Number purchased | O38: 0's
D39: Opex | N39: Number leased | O39: 0's
D40: Capex | N40: Number in fleet | O40: 0's
D41: Opex | N41: Proportion of total fleet expenditure allocated as regulatory expenditure | O41: %
D42: Capex | M42: HEAVY COMMERCIAL VEHICLE | N42: Average kilometres travelled | O42: 0's | P42: 0 | Q42: 0 | R42: 0 | S42: 0 | T42: 0 | U42: 0 | V42: 0
D43: Opex | N43: Number purchased | O43: 0's | P43: 5 | Q43: 0 | R43: 2 | S43: 3 | T43: 5 | U43: 4 | V43: 3
D44: Capex | N44: Number leased | O44: 0's | P44: 0 | Q44: 0 | R44: 0 | S44: 0 | T44: 0 | U44: 0 | V44: 0
D45: Opex | N45: Number in fleet | O45: 0's | P45: 13 | Q45: 8.517241379 | R45: 8.517241379 | S45: 8.517241379 | T45: 8.517241379 | U45: 8.517241379 | V45: 8.517241379
D46: Capex | N46: Proportion of total fleet expenditure allocated as regulatory expenditure | O46: % | P46: 0.8167 | Q46: 0.8167 | R46: 0.8167 | S46: 0.8167 | T46: 0.8167 | U46: 0.8167 | V46: 0.8167
D47: Opex
D48: Capex
D49: Opex
D50: Capex

Sheet 2.10 Overheads
B1: =(LOOKUP(dms_Model,dms_Model_List,dms_Worksheet_List)) -> REGULATORY REPORTING STATEMENT
B2: =INDEX(dms_TradingNameFull_List,MATCH(dms_TradingName,dms_TradingName_List)) -> Queensland Electricity Transmission Corporation Limited trading as Powerlink Queensland
B3: =CONCATENATE(FRCP_y1," to ",FRCP_y5) -> 2017-18 to 2021-22
B4: 2.10 OVERHEADS
B7: 2.10.1 - NETWORK OVERHEADS EXPENDITURE
E8: =CONCATENATE("EXPENDITURE Forecast ($0's. real ",dms_DollarReal,")") -> EXPENDITURE Forecast ($0's. real June 2017)
E9: =CRCP_y4 -> 2015-16 | F9: =CRCP_y5 -> 2016-17 | G9: =FRCP_y1 -> 2017-18 | H9: =FRCP_y2 -> 2018-19 | I9: =FRCP_y3 -> 2019-20 | J9: =FRCP_y4 -> 2020-21 | K9: =FRCP_y5 -> 2021-22
B10: MAINTENANCE SUPPORT | C10: Total Overhead Expenditure - Prescribed Services | D10: Maintenance support | E10: 12366091.24 | F10: 12297387.98 | G10: 11665493.73 | H10: 11624448.24 | I10: 11582363.38 | J10: 11629420.81 | K10: 11607783.1
C35: Total Overhead Expenditure - Negotiated Services | D35: Total
C36: Total Overhead Expenditure - Unregulated Services | D36: Total
B37: NETWORK MONITORING & CONTROL | C37: Total Overhead Expenditure - Prescribed Services | D37: Network monitoring & control | E37: 14030601.15 | F37: 14475102.41 | G37: 14102306.93 | H37: 14044812.93 | I37: 13986331.57 | J37: 14033266.09 | K37: 13991797.96
C58: Total Overhead Expenditure - Negotiated Services | D58: Total
C59: Total Overhead Expenditure - Unregulated Services | D59: Total
B60: ASSET MANAGEMENT SUPPORT | C60: Total Overhead Expenditure - Prescribed Services | D60: Asset management support | E60: 21842266.31 | F60: 22342023.23 | G60: 21876495.16 | H60: 21787221.67 | I60: 21696216.03 | J60: 21772314.9 | K60: 21719885.44
C86: Total Overhead Expenditure - Negotiated Services | D86: Total
C87: Total Overhead Expenditure - Unregulated Services | D87: Total
B91: TABLE 2.10.2 - CORPORATE OVERHEADS EXPENDITURE
E92: =CONCATENATE("EXPENDITURE Forecast ($0's. real ",dms_DollarReal,")") -> EXPENDITURE Forecast ($0's. real June 2017)
E93: =CRCP_y4 -> 2015-16 | F93: =CRCP_y5 -> 2016-17 | G93: =FRCP_y1 -> 2017-18 | H93: =FRCP_y2 -> 2018-19 | I93: =FRCP_y3 -> 2019-20 | J93: =FRCP_y4 -> 2020-21 | K93: =FRCP_y5 -> 2021-22
B94: CORPORATE OVERHEADS | C94: Total Overhead Expenditure - Prescribed Services | D94: Grid Support | E94: 3669183.796 | F94: 1821916.573 | G94: 0 | H94: 0 | I94: 0 | J94: 0 | K94: 0
D95: Corporate Support | E95: 55340164.73 | F95: 47823520.64 | G95: 43354809.26 | H95: 43053565.33 | I95: 42739670.11 | J95: 42467531.02 | K95: 42314504.31
D96: Insurance Premiums | E96: 7207600.576 | F96: 7484028.413 | G96: 7606997.063 | H96: 7786258.478 | I96: 7942616.764 | J96: 8094781.133 | K96: 8286455.644
D97: Self Insurance | E97: 1703993.831 | F97: 1786490.418 | G97: 1485684.916 | H97: 1484743.913 | I97: 1477870.11 | J97: 1470405.414 | K97: 1468948.661
D98: IT Function | E98: 22302039.21 | F98: 21221887.11 | G98: 19455798.38 | H98: 19579996.32 | I98: 19701071.25 | J98: 19846812.27 | K98: 20055427.62
D99: Regulatory Reset | E99: 4112478.205 | F99: 1417046.224 | G99: 1379260.316 | H99: 1388064.955 | I99: 1396648.198 | J99: 1406980.069 | K99: 1421769.227
D100: AEMC Levy | E100: 4249619.65 | F100: 4251138.671 | G100: 4200000 | H100: 4200000 | I100: 4200000 | J100: 4200000 | K100: 4200000
C119: Total Overhead Expenditure - Negotiated Services | D119: Total
C120: Total Overhead Expenditure - Unregulated Services | D120: Total

Sheet 2.11 Labour
B1: =(LOOKUP(dms_Model,dms_Model_List,dms_Worksheet_List)) -> REGULATORY REPORTING STATEMENT
B2: =INDEX(dms_TradingNameFull_List,MATCH(dms_TradingName,dms_TradingName_List)) -> Queensland Electricity Transmission Corporation Limited trading as Powerlink Queensland
B3: =CONCATENATE(FRCP_y1," to ",FRCP_y5) -> 2017-18 to 2021-22
B4: 2.11 LABOUR
B6: Table numbering in this template starts at 2.11.3. Tables 2.11.1 & 2.11.2 appear in the Category Analysis RIN but are not required for this RIN.
B8: 2.11.3 - LABOUR / NON-LABOUR EXPENDITURE SPLIT
B10: 2.11.3.1 - Labour Opex
C11: EXPENDITURE
C12: ($0's, nominal) | H12: =CONCATENATE("($0's, real ", dms_DollarReal,")") -> ($0's, real June 2017)
C13: =PRCP_y4 -> 2010-11 | D13: =PRCP_y5 -> 2011-12 | E13: =CRCP_y1 -> 2012-13 | F13: =CRCP_y2 -> 2013-14 | G13: =CRCP_y3 -> 2014-15 | H13: =CRCP_y4 -> 2015-16 | I13: =CRCP_y5 -> 2016-17 | J13: =FRCP_y1 -> 2017-18 | K13: =FRCP_y2 -> 2018-19 | L13: =FRCP_y3 -> 2019-20 | M13: =FRCP_y4 -> 2020-21 | N13: =FRCP_y5 -> 2021-22
B14: In-house labour expenditure | C14: 76713243.21 | D14: 75867206.86 | E14: 80349298.07 | F14: 85862672.93 | G14: 93902792.54 | H14: 102668432.1 | I14: 99360171.23 | J14: 86569778.18 | K14: 86056515.38 | L14: 85919095.02 | M14: 86346475.07 | N14: 86379563.04
B15: Labour expenditure outsourced to related parties | C15: 0 | D15: 0 | E15: 0 | F15: 0 | G15: 0 | H15: 0 | I15: 0 | J15: 0 | K15: 0 | L15: 0 | M15: 0 | N15: 0
B16: Labour expenditure outsourced to unrelated parties | C16: 13449651.96 | D16: 17738172.49 | E16: 17444231.11 | F16: 20222109.94 | G16: 20002297.17 | H16: 19819075.31 | I16: 19986546.18 | J16: 20103582.26 | K16: 19956370.36 | L16: 19947096.55 | M16: 19991282 | N16: 20085605.71
B17: Controllable non-labour expenditure | C17: 79224477.08 | D17: 85045575.65 | E17: 87222217.51 | F17: 88723699.46 | G17: 109106476 | H17: 109247468.3 | I17: 108687607.9 | J17: 97251436.34 | K17: 96779342.9 | L17: 95748279.45 | M17: 94816957.87 | N17: 94098105.99
B18: Uncontrollable non-labour expenditure | C18: 1798000 | D18: 1854000 | E18: 1978000 | F18: 2020380.676 | G18: 5994437.81 | H18: 6990106.078 | I18: 7049804.963 | J18: 9285791.959 | K18: 9253341.683 | L18: 9207166.366 | M18: 9152605.794 | N18: 9101373.278
B19: Total | C19: =SUM(C14:C18) -> 171185372.2 | D19: =SUM(D14:D18) -> 180504955 | E19: 186993746.7 | F19: 196828863 | G19: 229006003.5 | H19: 238725081.8 | I19: =SUM(I14:I18) -> 235084130.2 | J19: 213210588.7 | K19: 212045570.3 | L19: 210821637.4 | M19: 210307320.7 | N19: 209664648
B21: 2.11.3.2 - Labour Capex
C22: EXPENDITURE
C23: ($0's, nominal) | H23: =CONCATENATE("($0's, real ", dms_DollarReal,")") -> ($0's, real June 2017)
C24: =PRCP_y4 -> 2010-11 | D24: =PRCP_y5 -> 2011-12 | E24: =CRCP_y1 -> 2012-13 | F24: =CRCP_y2 -> 2013-14 | G24: =CRCP_y3 -> 2014-15 | H24: =CRCP_y4 -> 2015-16 | I24: =CRCP_y5 -> 2016-17 | J24: =FRCP_y1 -> 2017-18 | K24: =FRCP_y2 -> 2018-19 | L24: =FRCP_y3 -> 2019-20 | M24: =FRCP_y4 -> 2020-21 | N24: =FRCP_y5 -> 2021-22
B25: In-house labour expenditure | C25: 40187469.19 | D25: 34043711.41 | E25: 18972166.88 | F25: 20598013.71 | G25: 14595153.42 | H25: 26409624.15 | I25: 39224117.33 | J25: 34544109.92 | K25: 34017704.69 | L25: 32718612.48 | M25: 34550674.82 | N25: 32097973.05
B26: Labour expenditure outsourced to related parties | C26: 0 | D26: 0 | E26: 0 | F26: 0 | G26: 0 | H26: 0 | I26: 0 | J26: 0 | K26: 0 | L26: 0 | M26: 0 | N26: 0
B27: Labour expenditure outsourced to unrelated parties | C27: 241104.6949 | D27: 786699.4157 | E27: 910121.2981 | F27: 938165.9304 | G27: 693442.2056 | H27: 687090.2468 | I27: 692896.1482 | J27: 696953.5701 | K27: 691850.0091 | L27: 691528.5035 | M27: 693060.3303 | N27: 696330.357
B28: Controllable non-labour expenditure | C28: 308082046.3 | D28: 356660056.1 | E28: 156504826.4 | F28: 138467941.8 | G28: 25295693.12 | H28: 105420236.3 | I28: 145157151.3 | J28: 129637090.2 | K28: 132996800.3 | L28: 132169033.8 | M28: 133433062.9 | N28: 125918762.8
B29: Uncontrollable non-labour expenditure | C29: 0 | D29: 0 | E29: 0 | F29: 0 | G29: 0 | H29: 0 | I29: 0 | J29: 0 | K29: 0 | L29: 0 | M29: 0 | N29: 0
B30: Total | C30: =SUM(C25:C29) -> 348510620.1 | D30: =SUM(D25:D29) -> 391490466.9 | E30: 176387114.6 | F30: 160004121.5 | G30: 40584288.74 | H30: 132516950.7 | I30: =SUM(I25:I29) -> 185074164.7 | J30: 164878153.7 | K30: 167706355 | L30: 165579174.8 | M30: 168676798.1 | N30: 158713066.2

Sheet 2.12 Input tables
B1: =(LOOKUP(dms_Model,dms_Model_List,dms_Worksheet_List)) -> REGULATORY REPORTING STATEMENT
B2: =INDEX(dms_TradingNameFull_List,MATCH(dms_TradingName,dms_TradingName_List)) -> Queensland Electricity Transmission Corporation Limited trading as Powerlink Queensland
B3: =CONCATENATE(FRCP_y1," to ",FRCP_y5) -> 2017-18 to 2021-22
B4: 2.12 INPUT TABLES
D6: =CONCATENATE("DIRECT MATERIAL EXPENDITURE Forecast ($0's. real ",dms_DollarReal,")") -> DIRECT MATERIAL EXPENDITURE Forecast ($0's. real June 2017) | K6: =CONCATENATE("DIRECT LABOUR EXPENDITURE Forecast ($0's. real ",dms_DollarReal,")") -> DIRECT LABOUR EXPENDITURE Forecast ($0's. real June 2017) | R6: =CONCATENATE("CONTRACT EXPENDITURE Forecast ($0's. real ",dms_DollarReal,")") -> CONTRACT EXPENDITURE Forecast ($0's. real June 2017) | Y6: =CONCATENATE("OTHER EXPENDITURE Forecast ($0's. real ",dms_DollarReal,")") -> OTHER EXPENDITURE Forecast ($0's. real June 2017) | AF6: =CONCATENATE("RELATED PARTY CONTRACT MARGIN EXPENDITURE Forecast ($0's. real ",dms_DollarReal,")") -> RELATED PARTY CONTRACT MARGIN EXPENDITURE Forecast ($0's. real June 2017) | AM6: =CONCATENATE("RELATED PARTY CONTRACT MARGIN Forecast ($0's. real ",dms_DollarReal,")") -> RELATED PARTY CONTRACT MARGIN Forecast ($0's. real June 2017)
D7: =CRCP_y4 -> 2015-16 | E7: =CRCP_y5 -> 2016-17 | F7: =FRCP_y1 -> 2017-18 | G7: =FRCP_y2 -> 2018-19 | H7: =FRCP_y3 -> 2019-20 | I7: =FRCP_y4 -> 2020-21 | J7: =FRCP_y5 -> 2021-22 | K7: =CRCP_y4 -> 2015-16 | L7: =CRCP_y5 -> 2016-17 | M7: =FRCP_y1 -> 2017-18 | N7: =FRCP_y2 -> 2018-19 | O7: =FRCP_y3 -> 2019-20 | P7: =FRCP_y4 -> 2020-21 | Q7: =FRCP_y5 -> 2021-22 | R7: =CRCP_y4 -> 2015-16 | S7: =CRCP_y5 -> 2016-17 | T7: =FRCP_y1 -> 2017-18 | U7: =FRCP_y2 -> 2018-19 | V7: =FRCP_y3 -> 2019-20 | W7: =FRCP_y4 -> 2020-21 | X7: =FRCP_y5 -> 2021-22 | Y7: =CRCP_y4 -> 2015-16 | Z7: =CRCP_y5 -> 2016-17 | AA7: =FRCP_y1 -> 2017-18 | AB7: =FRCP_y2 -> 2018-19 | AC7: =FRCP_y3 -> 2019-20 | AD7: =FRCP_y4 -> 2020-21 | AE7: =FRCP_y5 -> 2021-22 | AF7: =CRCP_y4 -> 2015-16 | AG7: =CRCP_y5 -> 2016-17 | AH7: =FRCP_y1 -> 2017-18 | AI7: =FRCP_y2 -> 2018-19 | AJ7: =FRCP_y3 -> 2019-20 | AK7: =FRCP_y4 -> 2020-21 | AL7: =FRCP_y5 -> 2021-22 | AM7: =CRCP_y4 -> 2015-16 | AN7: =CRCP_y5 -> 2016-17 | AO7: =FRCP_y1 -> 2017-18 | AP7: =FRCP_y2 -> 2018-19 | AQ7: =FRCP_y3 -> 2019-20 | AR7: =FRCP_y4 -> 2020-21 | AS7: =FRCP_y5 -> 2021-22
B8: VEGETATION MANAGEMENT | C8: Zone 1 - Urban | D8: 1546451.963 | E8: 1515776.755 | F8: 1314763.793 | G8: 1308560.587 | H8: 1300948.528 | I8: 1293423.908 | J8: 1287125.724 | K8: 287563.3902 | L8: 292315.0165 | M8: 243226.0421 | N8: 241263.6045 | O8: 238970.6601 | P8: 238999.334 | Q8: 236417.9374 | R8: 9011.354035 | S8: 8832.606058 | T8: 7661.280335 | U8: 7625.133536 | V8: 7580.777187 | W8: 7536.930361 | X8: 7500.230116 | Y8: 616863.808 | Z8: 604575.6624 | AA8: 532331.235 | AB8: 529823.5476 | AC8: 526742.5219 | AD8: 523698.1373 | AE8: 521168.1686
C9: Zone 2 - Rural | D9: 3324991.902 | E9: 3259037.82 | F9: 2806041.077 | G9: 2790145.658 | H9: 2770970.907 | I9: 2751710.222 | J9: 2734814.065 | K9: 465945.7482 | L9: 473644.9205 | M9: 391204.608 | N9: 387679.1573 | O9: 383587.1374 | P9: 383182.8859 | Q9: 378560.1189 | R9: 14980.34971 | S9: 14683.20156 | T9: 12642.2794 | U9: 12570.66451 | V9: 12484.27499 | W9: 12397.49829 | X9: 12321.3747 | Y9: 1945505.514 | Z9: 1906830.284 | AA9: 1654542.12 | AB9: 1645175.9 | AC9: 1633871.381 | AD9: 1622518.173 | AE9: 1612587.743
C10: Zone 3 - Tropical | D10: 2032225.141 | E10: 1991914.203 | F10: 1758638.187 | G10: 1754283.46 | H10: 1748448.697 | I10: 1743135.459 | J10: 1739838.248 | K10: 0 | L10: 0 | M10: 0 | N10: 0 | O10: 0 | P10: 0 | Q10: 0 | R10: 1863.42818 | S10: 1826.465475 | T10: 1612.565404 | U10: 1608.572382 | V10: 1603.222255 | W10: 1598.350335 | X10: 1595.326991 | Y10: 1109995.019 | Z10: 1087977.311 | AA10: 960562.68 | AB10: 958184.1419 | AC10: 954997.2123 | AD10: 952095.1385 | AE10: 950294.2121
B28: ROUTINE MAINTENANCE | C28: Transmission Lines Maintenance | D28: 12823.62431 | E28: 12880.08965 | F28: 12696.47056 | G28: 12495.3131 | H28: 12298.20497 | I28: 12118.53396 | J28: 11964.02034 | K28: 458562.3704 | L28: 477666.9968 | M28: 451685.1512 | N28: 443032.4997 | O28: 434426.8537 | P28: 430622.1426 | Q28: 422597.6363 | R28: 2839331.737 | S28: 2851833.961 | T28: 2811178.098 | U28: 2766638.993 | V28: 2722996.465 | W28: 2683214.765 | X28: 2649003.265 | Y28: 616863.808 | Z28: 604575.6624 | AA28: 532331.235 | AB28: 529823.5476 | AC28: 526742.5219 | AD28: 523698.1373 | AE28: 521168.1686
C29: Substations Equipment & Property Maintenance | D29: 87051.90082 | E29: 87435.21016 | F29: 88082.67418 | G29: 87532.7583 | H29: 87000.16285 | I29: 86580.9991 | J29: 86335.70322 | K29: 1732621.515 | L29: 1804805.996 | M29: 1744139.075 | N29: 1727415.746 | O29: 1710538.362 | P29: 1712405.772 | Q29: 1697376.435 | R29: 3947494.85 | S29: 3964876.569 | T29: 3994236.765 | U29: 3969300.031 | V29: 3945148.717 | W29: 3926141.128 | X29: 3915017.83 | Y29: 1945505.514 | Z29: 1906830.284 | AA29: 1654542.12 | AB29: 1645175.9 | AC29: 1633871.381 | AD29: 1622518.173 | AE29: 1612587.743
C30: SCADA & Network Control Maintenance | D30: 1833.655292 | E30: 1841.729293 | F30: 1825.551134 | G30: 1801.12744 | H30: 1777.228657 | I30: 1755.796939 | J30: 1737.978925 | K30: 240440.9221 | L30: 250458.1723 | M30: 238149.6059 | N30: 234172.5295 | O30: 230208.4734 | P30: 228782.9323 | Q30: 225111.3994 | R30: 704395.2453 | S30: 707496.8579 | T30: 701282.0482 | U30: 691899.7321 | V30: 682719.0594 | W30: 674486.1051 | X30: 667641.3482 | Y30: 1109995.019 | Z30: 1087977.311 | AA30: 960562.68 | AB30: 958184.1419 | AC30: 954997.2123 | AD30: 952095.1385 | AE30: 950294.2121
C31: Protection Systems Maintenance | D31: 1902.817052 | E31: 1911.195588 | F31: 1882.356635 | G31: 1851.822179 | H31: 1821.897127 | I31: 1794.563616 | J31: 1770.960453 | K31: 159920.1414 | L31: 166582.7347 | M31: 157388.5796 | N31: 154314.3193 | O31: 151257.6296 | P31: 149873.0808 | Q31: 147020.294 | R31: 650622.7983 | S31: 653487.6386 | T31: 643626.8479 | U31: 633186.3207 | V31: 622954.1649 | W31: 613608.1243 | X31: 605537.5867 | Y31: 624071.5444 | Z31: 626734.305 | AA31: 632527.2727 | AB31: 622512.9651 | AC31: 612694.9546 | AD31: 603747.8537 | AE31: 596085.9199
C32: Other Maintenance Activity | D32: 15482.59913 | E32: 3789.708348 | F32: 2951.803233 | G32: 2895.059829 | H32: 2830.761149 | I32: 2762.265366 | J32: 2692.444896 | K32: 33965.14773 | L32: 8622.121717 | M32: 6442.3189 | N32: 6297.207404 | O32: 6134.514163 | P32: 6021.624671 | Q32: 5834.434323 | R32: 1892171.255 | S32: 463150.7372 | T32: 360748.036 | U32: 353813.2676 | V32: 345955.1481 | W32: 337584.0891 | X32: 329051.1363 | Y32: 822022.5314 | Z32: 825320.2848 | AA32: 888301.5175 | AB32: 882783.7043 | AC32: 877419.7105 | AD32: 873208.5767 | AE32: 870879.1173
B46: NON-ROUTINE MAINTENANCE | C46: Transmission Lines Maintenance | D46: 1425497.17 | E46: 1899527.84 | F46: 1344926.347 | G46: 1324900.931 | H46: 1305238.066 | I46: 1288172.711 | J46: 1275625.934 | K46: 6070150.699 | L46: 8122288.905 | M46: 5736743.809 | N46: 5657307.638 | O46: 5577856.004 | P46: 5559756.681 | Q46: 5486963.24 | R46: 12992758.09 | S46: 16763380 | T46: 12342472.23 | U46: 12212676.67 | V46: 12085979.94 | W46: 11975647.91 | X46: 11889720.26 | Y46: 4983446.667 | Z46: 6428242.05 | AA46: 4920012.704 | AB46: 4868364.748 | AC46: 4817883.261 | AD46: 4773953.894 | AE46: 4740166.812
C47: Substations Equipment & Property Maintenance | D47: 2470468.248 | E47: 2562751.18 | F47: 2459264.932 | G47: 2422919.611 | H47: 2387231.329 | I47: 2356288.333 | J47: 2333606.968 | K47: 5830805.914 | L47: 6073728.961 | M47: 5814179.917 | N47: 5734315.6 | O47: 5654422.659 | P47: 5636718.147 | Q47: 5563557.99 | R47: 12348773.74 | S47: 12403148.2 | T47: 12377089.69 | U47: 12248305.88 | V47: 12122612.06 | W47: 12013316.57 | X47: 11928492.82 | Y47: 3173663.405 | Z47: 3186554.814 | AA47: 3369438.069 | AB47: 3334472.002 | AC47: 3300277.409 | AD47: 3270576.115 | AE47: 3247956.704
C48: Scada & Network Control Maintenance | D48: 529233.6848 | E48: 549002.9072 | F48: 533527.402 | G48: 528581.6723 | H48: 523714.6786 | I48: 519829.7815 | J48: 517728.3926 | K48: 4113548.502 | L48: 4284927.168 | M48: 4153935.168 | N48: 4119784.712 | O48: 4085153.163 | P48: 4095235.471 | Q48: 4064870.587 | R48: 3322068.336 | S48: 3336696.159 | T48: 3371991.546 | U48: 3355564.919 | V48: 3339742.436 | W48: 3328221.119 | X48: 3323352.205 | Y48: 516526.2092 | Z48: 518036.5843 | AA48: 658960.2184 | AB48: 655816.9065 | AC48: 652742.0355 | AD48: 650529.0778 | AE48: 649923.3609
C49: Protection Systems Maintenance | D49: 349229.8741 | E49: 362275.1568 | F49: 342232.9321 | G49: 334798.1331 | H49: 327506.3677 | I49: 320913.2707 | J49: 315476.9995 | K49: 1319954.373 | L49: 1374946.315 | M49: 1295696.157 | N49: 1268889.597 | O49: 1242257.805 | P49: 1229373.326 | Q49: 1204455.698 | R49: 1771633.427 | S49: 1779434.332 | T49: 1748046.338 | U49: 1717663.028 | V49: 1687871.469 | W49: 1660504.615 | X49: 1636603.531 | Y49: 776021.5786 | Z49: 779193.4239 | AA49: 807696.6644 | AB49: 793678.4266 | AC49: 779917.9995 | AD49: 767284.2068 | AE49: 756342.5283
C50: Other Maintenance Activity | D50: 17683.37335 | E50: 26871.53486 | F50: 19642.49161 | G50: 19111.1147 | H50: 18525.46522 | I50: 17919.74464 | J50: 17327.72888 | K50: 81078.75727 | L50: 123718.3436 | M50: 90213.67688 | N50: 87866.08241 | O50: 85242.37546 | P50: 83276.48023 | Q50: 80252.61788 | R50: 2402343.689 | S50: 3534625.696 | T50: 2686799.53 | U50: 2625720.554 | V50: 2556797.255 | W50: 2483086.058 | X50: 2407270.928 | Y50: 1090638.708 | Z50: 1604660.743 | AA50: 1222703.414 | AB50: 1194909.14 | AC50: 1163543.989 | AD50: 1130000.382 | AE50: 1095505.337
B62: OVERHEADS | C62: Network Overheads | D62: 585219.9654 | E62: 582406.0531 | F62: 572341.8326 | G62: 571314.4779 | H62: 570367.2371 | I62: 570134.3471 | J62: 571029.2051 | K62: 32867340.19 | L62: 33934437.78 | M62: 31849692.84 | N62: 31687070.4 | O62: 31518861.76 | P62: 31692985.41 | Q62: 31549250.21 | R62: 4014875.478 | S62: 3961929.241 | T62: 3855376.698 | U62: 3849114.402 | V62: 3843384.539 | W62: 3842440.351 | X62: 3849042.851 | Y62: 10771523.06 | Z62: 10635740.54 | AA62: 11366884.45 | AB62: 11348983.57 | AC62: 11332297.44 | AD62: 11329441.69 | AE62: 11350144.24
C63: Corporate Overheads | D63: 216164.7371 | E63: 205695.2552 | F63: 206304.7155 | G63: 207621.6813 | H63: 208905.5314 | I63: 210450.9349 | J63: 212663.0431 | K63: 49006534.43 | L63: 41972027.79 | M63: 34397081.24 | N63: 34307106.29 | O63: 34600177.63 | P63: 34899241.78 | Q63: 35317294.44 | R63: 11594249.08 | S63: 10860811.77 | T63: 10340569.03 | U63: 10322701 | V63: 10389681.3 | W63: 10458371.15 | X63: 10563542.6 | Y63: 37768131.74 | Z63: 32767493.23 | AA63: 32538594.96 | AB63: 32655200.02 | AC63: 32259111.96 | AD63: 31918446.03 | AE63: 31653605.38
B64: AUGMENTATION | C64: Subtransmission Substations, Switching Stations , Zone Substations | D64: 656111.4912 | E64: 7476.077226 | F64: 86970.56702 | G64: 846296.711 | H64: 90584.20356 | I64: 0 | J64: 0 | K64: 430813.4848 | L64: 5091.012295 | M64: 56813.1831 | N64: 550979.0847 | O64: 58755.89192 | P64: 0 | Q64: 0 | R64: 675408.888 | S64: 7695.96185 | T64: 89528.52488 | U64: 871187.7907 | V64: 93248.44484 | W64: 0 | X64: 0 | Y64: 50829.08233 | Z64: 578.2653949 | AA64: 8579.526283 | AB64: 83494.93608 | AC64: 8937.214576 | AD64: 0 | AE64: 0
C65: Subtransmission Lines | D65: 0 | E65: 0 | F65: 0 | G65: 0 | H65: 0 | I65: 0 | J65: 0 | K65: 0 | L65: 0 | M65: 0 | N65: 0 | O65: 0 | P65: 0 | Q65: 0 | R65: 0 | S65: 0 | T65: 0 | U65: 0 | V65: 0 | W65: 0 | X65: 0 | Y65: 0 | Z65: 0 | AA65: 0 | AB65: 0 | AC65: 0 | AD65: 0 | AE65: 0
C66: HV Feeders | D66: 0 | E66: 0 | F66: 0 | G66: 0 | H66: 0 | I66: 0 | J66: 0 | K66: 0 | L66: 0 | M66: 0 | N66: 0 | O66: 0 | P66: 0 | Q66: 0 | R66: 0 | S66: 0 | T66: 0 | U66: 0 | V66: 0 | W66: 0 | X66: 0 | Y66: 0 | Z66: 0 | AA66: 0 | AB66: 0 | AC66: 0 | AD66: 0 | AE66: 0
C67: Other Assets | D67: 0 | E67: 0 | F67: 0 | G67: 0 | H67: 0 | I67: 0 | J67: 0 | K67: 0 | L67: 0 | M67: 0 | N67: 0 | O67: 0 | P67: 0 | Q67: 0 | R67: 0 | S67: 0 | T67: 0 | U67: 0 | V67: 0 | W67: 0 | X67: 0 | Y67: 0 | Z67: 0 | AA67: 0 | AB67: 0 | AC67: 0 | AD67: 0 | AE67: 0
B68: CONNECTIONS | C68: All New Customer Connections | D68: 0 | E68: 0 | F68: 0 | G68: 0 | H68: 0 | I68: 0 | J68: 0 | K68: 0 | L68: 0 | M68: 0 | N68: 0 | O68: 0 | P68: 0 | Q68: 0 | R68: 0 | S68: 0 | T68: 0 | U68: 0 | V68: 0 | W68: 0 | X68: 0 | Y68: 0 | Z68: 0 | AA68: 0 | AB68: 0 | AC68: 0 | AD68: 0 | AE68: 0
B69: REPLACEMENT | C69: Transmission Towers | D69: 594071.4131 | E69: 1543309.261 | F69: 1085296.132 | G69: 1098330.622 | H69: 1279790.67 | I69: 1332671.781 | J69: 1401776.817 | K69: 1832792.39 | L69: 8508613.484 | M69: 7501871.805 | N69: 7485703.966 | O69: 7787799.893 | P69: 8170551.774 | Q69: 8597477.317 | R69: 8646900.368 | S69: 43347751.85 | T69: 37481150.92 | U69: 37609679.39 | V69: 40214357.58 | W69: 41926922.05 | X69: 44318905.96 | Y69: 403463.7672 | Z69: 1949459.527 | AA69: 1953070.997 | AB69: 1958494.419 | AC69: 2078370.092 | AD69: 2167199.621 | AE69: 2292610.84
C70: Transmission Tower Support Structures | D70: 0 | E70: 0 | F70: 0 | G70: 0 | H70: 0 | I70: 0 | J70: 0 | K70: 0 | L70: 0 | M70: 0 | N70: 0 | O70: 0 | P70: 0 | Q70: 0 | R70: 0 | S70: 0 | T70: 0 | U70: 0 | V70: 0 | W70: 0 | X70: 0 | Y70: 0 | Z70: 0 | AA70: 0 | AB70: 0 | AC70: 0 | AD70: 0 | AE70: 0
C71: Conductors | D71: 0 | E71: 0 | F71: 0 | G71: 0 | H71: 0 | I71: 0 | J71: 0 | K71: 0 | L71: 0 | M71: 0 | N71: 0 | O71: 0 | P71: 0 | Q71: 0 | R71: 0 | S71: 0 | T71: 0 | U71: 0 | V71: 0 | W71: 0 | X71: 0 | Y71: 0 | Z71: 0 | AA71: 0 | AB71: 0 | AC71: 0 | AD71: 0 | AE71: 0
C72: Transmission Cables | D72: 0 | E72: 0 | F72: 0 | G72: 0 | H72: 0 | I72: 0 | J72: 0 | K72: 0 | L72: 0 | M72: 0 | N72: 0 | O72: 0 | P72: 0 | Q72: 0 | R72: 0 | S72: 0 | T72: 0 | U72: 0 | V72: 0 | W72: 0 | X72: 0 | Y72: 0 | Z72: 0 | AA72: 0 | AB72: 0 | AC72: 0 | AD72: 0 | AE72: 0
C73: Substation Switchbays | D73: 7683751.103 | E73: 9117893.971 | F73: 8507653.104 | G73: 8965533.344 | H73: 7602824.403 | I73: 7171256.187 | J73: 6891849.58 | K73: 4805693.368 | L73: 6209046.391 | M73: 5525791.195 | N73: 5357131.357 | O73: 4887487.447 | P73: 4679134.486 | Q73: 4470022.692 | R73: 7592826.089 | S73: 9386067.323 | T73: 8713386.49 | U73: 8555588.593 | V73: 7764502.413 | W73: 7382175.486 | X73: 7094551.038 | Y73: 580447.8319 | Z73: 705257.9044 | AA73: 835574.1805 | AB73: 828593.8185 | AC73: 744966.3345 | AD73: 707574.5379 | AE73: 680386.442
C74: Substation Power Transformers | D74: 1908111.847 | E74: 5665318.733 | F74: 6933885.36 | G74: 7624597.265 | H74: 5206776.683 | I74: 3757012.973 | J74: 2687801.413 | K74: 523883.8144 | L74: 1130773.555 | M74: 1327621.894 | N74: 1454957.464 | O74: 989894.3198 | P74: 718511.8129 | Q74: 510966.0478 | R74: 949496.2516 | S74: 2171705.514 | T74: 2657989.388 | U74: 2922762.285 | V74: 1995931.062 | W74: 1440188.306 | X74: 1030323.875 | Y74: 87084.0548 | Z74: 219605.5766 | AA74: 312067.8608 | AB74: 343177.7757 | AC74: 234357.6075 | AD74: 169110.3947 | AE74: 121026.609
C75: Substation Reactive Plant | D75: 209444.1165 | E75: 0 | F75: 0 | G75: 0 | H75: 0 | I75: 0 | J75: 0 | K75: 137524.4161 | L75: 0 | M75: 0 | N75: 0 | O75: 0 | P75: 0 | Q75: 0 | R75: 215604.2375 | S75: 0 | T75: 0 | U75: 0 | V75: 0 | W75: 0 | X75: 0 | Y75: 16225.67564 | Z75: 0 | AA75: 0 | AB75: 0 | AC75: 0 | AD75: 0 | AE75: 0
C76: Scada Network Control and Protection Systems | D76: 9687014.862 | E76: 14766396.3 | F76: 12553246.64 | G76: 12273937.56 | H76: 11384923.25 | I76: 11639227.32 | J76: 12304941.12 | K76: 10640444.42 | L76: 17945054.6 | M76: 14570932.54 | N76: 13500359.47 | O76: 13080517.58 | P76: 13519337.78 | Q76: 14209334.51 | R76: 20391982.54 | S76: 23965914.52 | T76: 20853525.43 | U76: 19898705.03 | V76: 19534110.15 | W76: 20134549.22 | X76: 21213979.22 | Y76: 2441734.987 | Z76: 3296459.605 | AA76: 3319522.508 | AB76: 3129001.56 | AC76: 3066679.461 | AD76: 3157815.804 | AE76: 3332871.374
C77: Other | D77: 7852495.755 | E77: 4663953.073 | F77: 4163334.003 | G77: 4360330.47 | H77: 4296911.351 | I77: 4456016.931 | J77: 3977730.74 | K77: 5463031.203 | L77: 2750067.175 | M77: 3556489.537 | N77: 3735104.605 | O77: 3812440.642 | P77: 5343858.079 | Q77: 2366005.856 | R77: 8234249.044 | S77: 3933144.236 | T77: 4614557.643 | U77: 4791992.916 | V77: 4837241.816 | W77: 6176155.349 | X77: 3463261.436 | Y77: 3832278.217 | Z77: 1591415.368 | AA77: 1367967.192 | AB77: 1577910.201 | AC77: 1585573.249 | AD77: 1727963.667 | AE77: 1448412.075
B78: NON-NETWORK EXPENDITURE | C78: IT and Communications | D78: 0 | E78: 0 | F78: 0 | G78: 0 | H78: 0 | I78: 0 | J78: 0 | K78: 2215026.251 | L78: 2421422.315 | M78: 1810240.036 | N78: 1704471.972 | O78: 1802029.182 | P78: 1823278.204 | Q78: 1743042.052 | R78: 1718812.781 | S78: 1811763.536 | T78: 1392021.587 | U78: 1214416.613 | V78: 1395103.057 | W78: 1400012.375 | X78: 1268301.711 | Y78: 10610506.98 | Z78: 11183875.16 | AA78: 8330220.178 | AB78: 7591174.766 | AC78: 8350244.588 | AD78: 8390927.288 | AE78: 7854289.403
C79: Motor Vehicles | D79: 3437139.583 | E79: 2032499.985 | F79: 1750492.096 | G79: 1815487.439 | H79: 2370541.64 | I79: 1907587.632 | J79: 1747780.854 | K79: 146999.9638 | L79: 90150.74753 | M79: 74480.98113 | N79: 76986.41966 | O79: 100150.9228 | P79: 81070.56545 | Q79: 73836.19861 | R79: 0 | S79: 0 | T79: 0 | U79: 0 | V79: 0 | W79: 0 | X79: 0 | Y79: 195126.7202 | Z79: 115369.1312 | AA79: 101790.2872 | AB79: 105570.9841 | AC79: 137847.9339 | AD79: 110927.7443 | AE79: 101641.1366
C80: Buildings And Property | D80: 168079.4897 | E80: 80151.13119 | F80: 62962.37326 | G80: 123261.94 | H80: 231273.8667 | I80: 231387.7106 | J80: 58305.51892 | K80: 86261.30529 | L80: 42660.86757 | M80: 32147.52706 | N80: 62723.62058 | O80: 117250.6272 | P80: 118004.9538 | Q80: 29557.87872 | R80: 2801324.828 | S80: 1335852.187 | T80: 1049372.888 | U80: 2054365.667 | V80: 3854564.444 | W80: 3856461.843 | X80: 971758.6486 | Y80: 2523642.004 | Z80: 1203427.516 | AA80: 946395.4699 | AB80: 1852766.973 | AC80: 3476309.424 | AD80: 3478021.747 | AE80: 876401.1033
C81: Other | D81: 1714444.191 | E81: 1535513.8 | F81: 992693.5495 | G81: 1017752.945 | H81: 859515.2486 | I81: 1221915.184 | J81: 1293066.184 | K81: 127153.5353 | L81: 121237.1823 | M81: 87721.22019 | N81: 89286.72653 | O81: 82285.97567 | P81: 96927.17309 | Q81: 97730.4979 | R81: 59935.62062 | S81: 57040.36074 | T81: 50903.70329 | U81: 51799.96777 | V81: 51817.55089 | W81: 50417.99445 | X81: 48586.5708 | Y81: 168782.7103 | Z81: 155151.5519 | AA81: 119885.2117 | AB81: 122438.3161 | AC81: 113258.5843 | AD81: 132624.1233 | AE81: 134533.4547

Sheet 2.14 Forecast price changes
B1: =(LOOKUP(dms_Model,dms_Model_List,dms_Worksheet_List)) -> REGULATORY REPORTING STATEMENT
B2: =INDEX(dms_TradingNameFull_List,MATCH(dms_TradingName,dms_TradingName_List)) -> Queensland Electricity Transmission Corporation Limited trading as Powerlink Queensland
B3: =CONCATENATE(FRCP_y1," to ",FRCP_y5) -> 2017-18 to 2021-22
B4: 2.14 FORECAST PRICE CHANGES
B6: Instructions
B7: The TNSP must provide all forecast price changes used to forecast opex and capex, including forecast changes in CPI. Forecast price changes must be expressed in real terms, except for CPI. If the same escalators are not used for capex and opex, report capex and opex escalators separately. If price changes for a given year were not used to forecast either opex or capex enter '0' for that year.
B9: 2.14.1 - Forecast labour and materials price changes
C11: Price changes (% YoY real) Current regulatory period | H11: Price changes (%YoY real) Forthcoming regulatory period
C12: Actual | F12: Forecast
C13: =CRCP_y1 -> 2012-13 | D13: =CRCP_y2 -> 2013-14 | E13: =CRCP_y3 -> 2014-15 | F13: =CRCP_y4 -> 2015-16 | G13: =CRCP_y5 -> 2016-17 | H13: =FRCP_y1 -> 2017-18 | I13: =FRCP_y2 -> 2018-19 | J13: =FRCP_y3 -> 2019-20 | K13: =FRCP_y4 -> 2020-21 | L13: =FRCP_y5 -> 2021-22
B14: Materials price changes
B15: Copper | C15: -0.0754 | D15: -0.0027 | E15: -0.022 | F15: 0 | G15: 0 | H15: 0 | I15: 0 | J15: 0 | K15: 0 | L15: 0
B16: Aluminium | C16: -0.1151 | D16: -0.0043 | E16: 0.1437 | F16: 0 | G16: 0 | H16: 0 | I16: 0 | J16: 0 | K16: 0 | L16: 0
B17: Steel | C17: -0.1145 | D17: 0.0734 | E17: -0.0794 | F17: 0 | G17: 0 | H17: 0 | I17: 0 | J17: 0 | K17: 0 | L17: 0
B18: Oil | C18: -0.0448 | D18: 0.1968 | E18: -0.2726 | F18: 0 | G18: 0 | H18: 0 | I18: 0 | J18: 0 | K18: 0 | L18: 0
B19: Construction Costs | C19: 0.013 | D19: 0.0217 | E19: 0.0225 | F19: 0 | G19: 0 | H19: 0 | I19: 0 | J19: 0 | K19: 0 | L19: 0
B45: Labour and Other price changes
B46: Internal Labour | C46: 0.014181 | D46: 0.009888 | E46: 0.02037 | F46: 0.0065 | G46: 0.0055 | H46: 0.0063 | I46: 0.009 | J46: 0.0115 | K46: 0.0135 | L46: 0.0145
B47: External Labour | C47: 0.006 | D47: 0.003 | E47: 0.001 | F47: -0.003 | G47: 0.001 | H47: 0.0075 | I47: 0.008 | J47: 0.0115 | K47: 0.0165 | L47: 0.0165
B61: CPI | C61: 0.025 | D61: 0.0293 | E61: 0.0133 | F61: 0.0235 | G61: 0.0245 | H61: 0.0245 | I61: 0.0245 | J61: 0.0245 | K61: 0.0245 | L61: 0.0245

Sheet 2.15 Insurance & Self-insurance
B1: =(LOOKUP(dms_Model,dms_Model_List,dms_Worksheet_List)) -> REGULATORY REPORTING STATEMENT
B2: =INDEX(dms_TradingNameFull_List,MATCH(dms_TradingName,dms_TradingName_List)) -> Queensland Electricity Transmission Corporation Limited trading as Powerlink Queensland
B3: =CONCATENATE(FRCP_y1," to ",FRCP_y5) -> 2017-18 to 2021-22
B4: 2.15 Commercial insurance and self-insurance
B7: Instruction
B8: =CONCATENATE(dms_TradingName, " is required to provide a list of forecast commercial insurance premiums by risk category in table 2.15.4 below. Previous tables 2.15.1, 2.15.2 & 2.15.3 have been deleted from this template.") -> Powerlink is required to provide a list of forecast commercial insurance premiums by risk category in table 2.15.4 below. Previous tables 2.15.1, 2.15.2 & 2.15.3 have been deleted from this template.
B11: 2.15.4 - Proposed self-insurance allowance by risk category
B13: Risk class (drop down) | C13: Risk category | E13: Commercially insured (Yes/No) | F13: Commercial insurance deductable ($0's) | G13: Commercial insurance limit ($0's) | H13: Self insurance limit ($0's) | I13: Proposed self insurance allowance ($0's)
I14: =FRCP_y1 -> 2017-18 | J14: =FRCP_y2 -> 2018-19 | K14: =FRCP_y3 -> 2019-20 | L14: =FRCP_y4 -> 2020-21 | M14: =FRCP_y5 -> 2021-22 | N14: Total
B15: Property | C15: Industrial Special Risk | E15: Yes | I15: 493745.9652 | J15: 494706.9359 | K15: 495994.6988 | L15: 496666.84 | M15: 497860.3555 | N15: =+SUM(I15:M15) -> 2478974.795
B16: Property | C16: Towers & Lines | E16: Yes | I16: 853503.5432 | J16: 851765.8913 | K16: 844943.5513 | L16: 838278.6623 | M16: 835889.9065 | N16: =+SUM(I16:M16) -> 4224381.555
B17: Liability | C17: Casualty | E17: Yes | I17: 0 | J17: 0 | K17: 0 | L17: 0 | M17: 0 | N17: 0
B18: Other insurance | C18: Vehicles, minor claims, theft, etc. | E18: Yes | I18: 138435.4079 | J18: 138271.0852 | K18: 136931.8604 | L18: 135459.9121 | M18: 135198.3994 | N18: 684296.6649
N19: 0
N20: 0
N21: 0
N22: 0
N23: 0
N24: =+SUM(I24:M24) -> 0
N25: 0
N26: 0
N27: 0
N28: 0
N29: 0
B30: Total | I30: =+SUM(I15:I29) -> 1485684.916 | J30: 1484743.913 | K30: 1477870.11 | L30: 1470405.414 | M30: 1468948.661 | N30: 7387653.015

Sheet 2.16 Opex Summary
B1: =(LOOKUP(dms_Model,dms_Model_List,dms_Worksheet_List)) -> REGULATORY REPORTING STATEMENT
B2: =INDEX(dms_TradingNameFull_List,MATCH(dms_TradingName,dms_TradingName_List)) -> Queensland Electricity Transmission Corporation Limited trading as Powerlink Queensland
B3: =CONCATENATE(FRCP_y1," to ",FRCP_y5) -> 2017-18 to 2021-22
B4: 2.16 Opex Summary
B6: Instructions
B7: =CONCATENATE("Complete the tables below in accordance with the regulatory information notice. ",dms_TradingName, " must input forecast opex by category in Table 2.16.2 and Table 2.16.4 if it did not forecast its total opex using a Base Year approach. Otherwise input '0'. ",dms_TradingName, "'s total forecast opex must reconcile to Table 2.16.1 (and if ",dms_TradingName," owns any dual function assets Table 2.16.3). If ",dms_TradingName," did not forecast its total opex using a Base Year approach, total forecast opex must, in addition, reconcile to Table 2.16.2 (and if ",dms_TradingName," owns any dual function assets Table 2.16.4). If ",dms_TradingName," does not own any dual function assets,Table 2.16.3 and 2.16.4 may be left blank.") -> Complete the tables below in accordance with the regulatory information notice. Powerlink must input forecast opex by category in Table 2.16.2 and Table 2.16.4 if it did not forecast its total opex using a Base Year approach. Otherwise input '0'. Powerlink's total forecast opex must reconcile to Table 2.16.1 (and if Powerlink owns any dual function assets Table 2.16.3). If Powerlink did not forecast its total opex using a Base Year approach, total forecast opex must, in addition, reconcile to Table 2.16.2 (and if Powerlink owns any dual function assets Table 2.16.4). If Powerlink does not own any dual function assets,Table 2.16.3 and 2.16.4 may be left blank.
B8: The total step changes in Table 2.16.1 and Table 2.16.3 must reconcile (in each year) to the total step changes for each year in Table 2.17.1 and Table 2.17.3 of worksheet 2.17 Step Changes, respectively.")
B10: 2.16.1 - Prescribed services - opex by driver | K10: 2.16.2 - Prescribed services - opex by category
C11: =CONCATENATE("Forecast ($0's, real ", dms_DollarReal, ")") -> Forecast ($0's, real June 2017) | L11: =CONCATENATE("Forecast ($0's, real ", dms_DollarReal, ")") -> Forecast ($0's, real June 2017)
C12: =CRCP_y4 -> 2015-16 | D12: =CRCP_y5 -> 2016-17 | E12: =FRCP_y1 -> 2017-18 | F12: =FRCP_y2 -> 2018-19 | G12: =FRCP_y3 -> 2019-20 | H12: =FRCP_y4 -> 2020-21 | I12: =FRCP_y5 -> 2021-22 | L12: =CRCP_y4 -> 2015-16 | M12: =CRCP_y5 -> 2016-17 | N12: =FRCP_y1 -> 2017-18 | O12: =FRCP_y2 -> 2018-19 | P12: =FRCP_y3 -> 2019-20 | Q12: =FRCP_y4 -> 2020-21 | R12: =FRCP_y5 -> 2021-22
B13: Efficent historic opex | K13: Vegetation management
B14: Real price changes | K14: Maintenance
B15: Output growth | K15: Emergency response
B16: Productivity growth | K16: Non-network
B17: Step changes | K17: Network overheads
B18: Total opex | C18: =SUM(C13:C17) -> 0 | D18: 0 | E18: 0 | F18: 0 | G18: 0 | H18: 0 | I18: 0 | K18: Corporate overheads
K19: Total opex | L19: =SUM(L13:L18) -> 0 | M19: 0 | N19: 0 | O19: 0 | P19: 0 | Q19: 0 | R19: 0
B20: Note: The amount noted against step changes, include Other operating expenditure category in addition to the specifically identified step changes in the revenue proposal.

Sheet 2.17 Step Changes
B1: =(LOOKUP(dms_Model,dms_Model_List,dms_Worksheet_List)) -> REGULATORY REPORTING STATEMENT
B2: =INDEX(dms_TradingNameFull_List,MATCH(dms_TradingName,dms_TradingName_List)) -> Queensland Electricity Transmission Corporation Limited trading as Powerlink Queensland
B3: =CONCATENATE(FRCP_y1," to ",FRCP_y5) -> 2017-18 to 2021-22
B4: 2.17 STEP CHANGES
B6: Instructions
B7: Complete the Tables below in accordance with the regulatory information notice. The total step changes in Table 2.17.1 must reconcile (in each year) to the total step changes for each year in Table 2.16.1 of worksheet 2.16 Opex Summary.
B9: 2.17.1 Forecast opex step changes
F10: Actual ($0's, nominal) | I10: =CONCATENATE("Forecast ($0's, real ", dms_DollarReal, ")") -> Forecast ($0's, real June 2017)
B11: Step change | C11: Description | D11: =CRCP_y1 -> 2012-13 | E11: =CRCP_y2 -> 2013-14 | F11: =CRCP_y1 -> 2012-13 | G11: =CRCP_y2 -> 2013-14 | H11: =CRCP_y3 -> 2014-15 | I11: =CRCP_y4 -> 2015-16 | J11: =CRCP_y5 -> 2016-17 | K11: =FRCP_y1 -> 2017-18 | L11: =FRCP_y2 -> 2018-19 | M11: =FRCP_y3 -> 2019-20 | N11: =FRCP_y4 -> 2020-21 | O11: =FRCP_y5 -> 2021-22
D27: =SUM(D19:D26) -> 0 | E27: 0 | F27: 0 | G27: =SUM(G19:G26) -> 0 | H27: 0 | I27: 0 | J27: =SUM(J19:J26) -> 0 | K27: 0 | L27: 0 | M27: 0 | N27: 0 | O27: 0
B28: Check | K28: =IF(K$49-'2.16 Opex Summary'!C$17=0,"OK","Error") -> OK | L28: =IF(L$49-'2.16 Opex Summary'!F$17=0,"OK","Error") -> OK | M28: =IF(M$49-'2.16 Opex Summary'!G$17=0,"OK","Error") -> OK | N28: =IF(N$49-'2.16 Opex Summary'!H$17=0,"OK","Error") -> OK | O28: =IF(O$49-'2.16 Opex Summary'!I$17=0,"OK","Error") -> OK
B30: 2.17.2 Forecast capex step changes
F31: Actual ($0's, nominal) | I31: =CONCATENATE("Forecast ($0's, real ", dms_DollarReal, ")") -> Forecast ($0's, real June 2017)
B32: Step change | C32: Description | D32: =CRCP_y1 -> 2012-13 | E32: =CRCP_y2 -> 2013-14 | F32: =CRCP_y1 -> 2012-13 | G32: =CRCP_y2 -> 2013-14 | H32: =CRCP_y3 -> 2014-15 | I32: =CRCP_y4 -> 2015-16 | J32: =CRCP_y5 -> 2016-17 | K32: =FRCP_y1 -> 2017-18 | L32: =FRCP_y2 -> 2018-19 | M32: =FRCP_y3 -> 2019-20 | N32: =FRCP_y4 -> 2020-21 | O32: =FRCP_y5 -> 2021-22
D48: =SUM(D33:D47) -> 0 | E48: =SUM(E33:E47) -> 0 | F48: 0 | G48: =SUM(G33:G47) -> 0 | H48: 0 | I48: 0 | J48: 0 | K48: 0 | L48: 0 | M48: 0 | N48: 0 | O48: 0

Sheet 3.1 Revenue
B1: =(LOOKUP(dms_Model,dms_Model_List,dms_Worksheet_List)) -> REGULATORY REPORTING STATEMENT
B2: =INDEX(dms_TradingNameFull_List,MATCH(dms_TradingName,dms_TradingName_List)) -> Queensland Electricity Transmission Corporation Limited trading as Powerlink Queensland
B3: =CONCATENATE(FRCP_y1," to ",FRCP_y5) -> 2017-18 to 2021-22
B4: 3.1 REVENUE
C6: =CONCATENATE("Forecast ($0's, real ",dms_DollarReal,")") -> Forecast ($0's, real June 2017)
C7: =CRCP_y4 -> 2015-16 | D7: =CRCP_y5 -> 2016-17 | E7: =FRCP_y1 -> 2017-18 | F7: =FRCP_y2 -> 2018-19 | G7: =FRCP_y3 -> 2019-20 | H7: =FRCP_y4 -> 2020-21 | I7: =FRCP_y5 -> 2021-22
B8: 3.1.1 - Revenue Grouping by chargeable quantity
A9: TREV0101 | B9: From Fixed Customer (Exit Point) Charges | C9: 114066005.8 | D9: 119641502 | E9: 85059814.66 | F9: 83550463.34 | G9: 82036096.32 | H9: 81902380.93 | I9: 81768866.1
A10: TREV0102 | B10: From Variable Customer (Exit Point) Charges | C10: 0 | D10: 0 | E10: 0 | F10: 0 | G10: 0 | H10: 0 | I10: 0
A11: TREV0103 | B11: From Fixed Generator (Entry Point) Charges | C11: 9864421.17 | D11: 10346589.74 | E11: 7355967.546 | F11: 7225438.937 | G11: 7094476.57 | H11: 7082912.871 | I11: 7071366.517
A12: TREV0104 | B12: From Variable Generator (Entry Point) Charges | C12: 0 | D12: 0 | E12: 0 | F12: 0 | G12: 0 | H12: 0 | I12: 0
A13: TREV0105 | B13: From Fixed Energy Usage Charges (Charge per day basis) | C13: 202386594.5 | D13: 212279162.3 | E13: 150921092.6 | F13: 148243060.1 | G13: 145556128.2 | H13: 145318877.8 | I13: 145081983.3
A14: TREV0106 | B14: From Variable Energy Usage charges (Charge per kWh basis) | C14: 102081665.3 | D14: 107071372.3 | E14: 76123008.58 | F14: 74772237.2 | G14: 73416977.09 | H14: 73297310.5 | I14: 73177823.4
A15: TREV0107 | B15: From Energy based Common Service and General Charges | C15: 452193186.7 | D15: 474296191 | E15: 337203607.7 | F15: 331220068.8 | G15: 325216646.1 | H15: 324686556.6 | I15: 324157262.2
A16: TREV0108 | B16: From Fixed Demand based Usage Charges | C16: 64183698.43 | D16: 67320969.42 | E16: 47862230.79 | F16: 47012935.26 | G16: 46160817.43 | H16: 46085577.24 | I16: 46010449.9
A17: TREV0109 | B17: From Variable Demand based Usage Charges | C17: 10783105.27 | D17: 11310178.72 | E17: 8041036.678 | F17: 7898351.8 | G17: 7755192.768 | H17: 7742552.129 | I17: 7729930.451
A18: TREV0110 | B18: Revenue from other Sources | C18: 60501251.31 | D18: 60501251.31 | E18: 60501251.31 | F18: 60501251.31 | G18: 60501251.31 | H18: 60501251.31 | I18: 60501251.31
A19: TREV01 | B19: Total revenue by chargeable quantity
B22: 3.1.2 - Revenue Grouping by type of connected equipment
A23: TREV0201 | B23: From Other connected transmission networks | C23: 4390210.535 | D23: 4604802.097 | E23: 3273810.562 | F23: 3215718.144 | G23: 3157432.68 | H23: 3152286.198 | I23: 3147147.435
A24: TREV0202 | B24: From Distribution networks | C24: 802735995.6 | D24: 841973378.4 | E24: 598605820.9 | F24: 587983807.6 | G24: 577326496.4 | H24: 576385478.4 | I24: 575445872
A25: TREV0203 | B25: From Directly connected end–users | C25: 138568049.8 | D25: 145341195.2 | E25: 103331159.5 | F25: 101497590.7 | G25: 99657928.84 | H25: 99495490.6 | I25: 99333296.01
A26: TREV0204 | B26: From Generators | C26: 9864421.17 | D26: 10346589.74 | E26: 7355967.546 | F26: 7225438.937 | G26: 7094476.57 | H26: 7082912.871 | I26: 7071366.517
A27: TREV0205 | B27: Other revenue | C27: 60501251.31 | D27: 60501251.31 | E27: 60501251.31 | F27: 60501251.31 | G27: 60501251.31 | H27: 60501251.31 | I27: 60501251.31
A28: TREV02 | B28: Total revenue by type of connected equipment
A31: TREV0301 | B31: 3.1.3 - Revenue (penalties) allowed (deducted) through incentive schemes
A32: TREV0302 | B32: EBSS | C32: 2346864.051 | D32: 0 | E32: -805349.4875 | F32: -6754446.332 | G32: -2972861.013 | H32: 2767485.304 | I32: 0
A33: TREV0303 | B33: STPIS | C33: 4426710.3 | D33: 21209567.49 | E33: 24045040.46 | F33: 12524371.8 | G33: 960000 | H33: 960000 | I33: 960000
A34: TREV03 | B34: Other
B35: Total revenue of incentive schemes

Sheet 3.2 Operating expenditure
B1: =(LOOKUP(dms_Model,dms_Model_List,dms_Worksheet_List)) -> REGULATORY REPORTING STATEMENT
B2: =INDEX(dms_TradingNameFull_List,MATCH(dms_TradingName,dms_TradingName_List)) -> Queensland Electricity Transmission Corporation Limited trading as Powerlink Queensland
B3: =CONCATENATE(FRCP_y1," to ",FRCP_y5) -> 2017-18 to 2021-22
B4: 3.2 OPERATING EXPENDITURE
B7: 3.2.1 - Opex categories
B8: 3.2.1.1 - Current opex categories and cost allocations
C9: =CONCATENATE("Forecast ($0's, real ",dms_DollarReal,")") -> Forecast ($0's, real June 2017)
C10: =CRCP_y4 -> 2015-16 | D10: =CRCP_y5 -> 2016-17 | E10: =FRCP_y1 -> 2017-18 | F10: =FRCP_y2 -> 2018-19 | G10: =FRCP_y3 -> 2019-20 | H10: =FRCP_y4 -> 2020-21 | I10: =FRCP_y5 -> 2021-22
B11: Field Maintenance - Routine | C11: 24933476.78 | D11: 24092735.88 | E11: 22964090.88 | F11: 22670782.66 | G11: 22351487.07 | H11: 22037962.82 | I11: 21773272.06
B12: Field Maintenance - Condition-based | C12: 27579755.36 | D12: 34890362.67 | E12: 23439193.06 | F12: 22935508.26 | G12: 22436415.74 | H12: 21972572.81 | I12: 21581676.91
B13: Field Maintenance - Corrective | C13: 16282003.33 | D13: 16282984.58 | E13: 16322159.5 | F13: 16426250.26 | G13: 16527808.01 | H13: 16650034.45 | I13: 16825046.43
B14: Refurbishment | C14: 34845328.47 | D14: 35905014.33 | E14: 35941007.24 | F14: 35655830.49 | G14: 35371557.29 | H14: 35137181.48 | I14: 35016789.89
B15: Maintenance Support | C15: 15246929.45 | D15: 14698657.79 | E15: 14084199.35 | F15: 14069793.53 | G15: 14054515.23 | H15: 14057960.27 | I15: 14106497.79
B16: Network Operations | C16: 15188074.29 | D16: 15190473.42 | E16: 14915123.85 | F16: 14888177.8 | G16: 14860455.1 | H16: 14852660.03 | I16: 14892566.65
B17: Asset Management Support | C17: 26930700.01 | D17: 26704675.37 | E17: 26412334.18 | F17: 26370431.01 | G17: 26327079.25 | H17: 26318966.61 | I17: 26395351.57
B18: Corporate Support | C18: 45569513.14 | D18: 34607690.95 | E18: 25923602.34 | F18: 25980347.39 | G18: 26034437.48 | H18: 26122280.2 | I18: 26293484.76
B19: Network Support | C19: 3669183.796 | D19: 1821916.573 | E19: 0 | F19: 0 | G19: 0 | H19: 0 | I19: 0
B20: Self Insurance | C20: 1703993.831 | D20: 1786490.418 | E20: 1485685 | F20: 1484744 | G20: 1477870 | H20: 1470405 | I20: 1468949
B21: Insurance Premiums | C21: 7207600.576 | D21: 7484028.413 | E21: 7606997 | F21: 7786258 | G21: 7942617 | H21: 8094781 | I21: 8286456
B22: AEMC Levy | C22: 4249619.65 | D22: 4251138.671 | E22: 4200000 | F22: 4200000 | G22: 4200000 | H22: 4200000 | I22: 4200000
B23: Debt Management Costs | C23: 1036492.598 | D23: 1012175.874 | E23: 3600106.959 | F23: 3568597.683 | G23: 3529296.366 | H23: 3482200.794 | I23: 3432424.278
B45: Total opex | C45: =SUM(C11:C44) -> 224442671.3 | D45: =SUM(D11:D44) -> 218728344.9 | E45: 196894499.3 | F45: 196036721.1 | G45: 195113538.5 | H45: 194397005.5 | I45: 194272515.3

Sheet 3.3 Assets (RAB)
B1: =(LOOKUP(dms_Model,dms_Model_List,dms_Worksheet_List)) -> REGULATORY REPORTING STATEMENT
B2: =INDEX(dms_TradingNameFull_List,MATCH(dms_TradingName,dms_TradingName_List)) -> Queensland Electricity Transmission Corporation Limited trading as Powerlink Queensland
B3: =CONCATENATE(FRCP_y1," to ",FRCP_y5) -> 2017-18 to 2021-22
B4: 3.3 ASSETS
C6: =CONCATENATE("Forecast ($0's, real ",dms_DollarReal,")") -> Forecast ($0's, real June 2017)
C7: =CRCP_y4 -> 2015-16 | D7: =CRCP_y5 -> 2016-17 | E7: =FRCP_y1 -> 2017-18 | F7: =FRCP_y2 -> 2018-19 | G7: =FRCP_y3 -> 2019-20 | H7: =FRCP_y4 -> 2020-21 | I7: =FRCP_y5 -> 2021-22
B9: 3.3.1 - REGULATORY ASSET BASE VALUES
B10: For total asset base:
A11: TRAB0101 | B11: Opening value
A12: TRAB0102 | B12: Inflation addition
A13: TRAB0103 | B13: Straight line depreciation
A14: TRAB0104 | B14: Regulatory depreciation
A15: TRAB0105 | B15: Actual additions (recognised in RAB)
A16: TRAB0106 | B16: Disposals
A17: TRAB0107 | B17: Closing value
B20: 3.3.2 - ASSET VALUE ROLL FORWARD
B21: For overhead transmission assets:
A22: TRAB0201 | B22: Opening value
A23: TRAB0202 | B23: Inflation addition
A24: TRAB0203 | B24: Straight line depreciation
A25: TRAB0204 | B25: Regulatory depreciation
A26: TRAB0205 | B26: Actual additions (recognised in RAB)
A27: TRAB0206 | B27: Disposals
A28: TRAB0207 | B28: Closing value
B29: For underground transmission assets:
A30: TRAB0301 | B30: Opening value
A31: TRAB0302 | B31: Inflation addition
A32: TRAB0303 | B32: Straight line depreciation
A33: TRAB0304 | B33: Regulatory depreciation
A34: TRAB0305 | B34: Actual additions (recognised in RAB)
A35: TRAB0306 | B35: Disposals
A36: TRAB0307 | B36: Closing value
B37: For transmission switchyards, substations
A38: TRAB0401 | B38: Opening value
A39: TRAB0402 | B39: Inflation addition
A40: TRAB0403 | B40: Straight line depreciation
A41: TRAB0404 | B41: Regulatory depreciation
A42: TRAB0405 | B42: Actual additions (recognised in RAB)
A43: TRAB0406 | B43: Disposals
A44: TRAB0407 | B44: Closing value
B45: For easements:
A46: TRAB0501 | B46: Opening value
A47: TRAB0502 | B47: Inflation addition
A48: TRAB0503 | B48: Straight line depreciation
A49: TRAB0504 | B49: Regulatory depreciation
A50: TRAB0505 | B50: Actual additions (recognised in RAB)
A51: TRAB0506 | B51: Disposals
A52: TRAB0507 | B52: Closing value
B53: For “other” assets with long lives:
A54: TRAB0601 | B54: Opening value
A55: TRAB0602 | B55: Inflation addition
A56: TRAB0603 | B56: Straight line depreciation
A57: TRAB0604 | B57: Regulatory depreciation
A58: TRAB0605 | B58: Actual additions (recognised in RAB)
A59: TRAB0606 | B59: Disposals
A60: TRAB0607 | B60: Closing value
B61: For “other” assets with short lives:
A62: TRAB0701 | B62: Opening value
A63: TRAB0702 | B63: Inflation addition
A64: TRAB0703 | B64: Straight line depreciation
A65: TRAB0704 | B65: Regulatory depreciation
A66: TRAB0705 | B66: Actual additions (recognised in RAB)
A67: TRAB0706 | B67: Disposals
A68: TRAB0707 | B68: Closing value
B71: 3.3.3 - TOTAL DISAGGREGATED RAB ASSET VALUES
A72: TRAB0801 | B72: Overhead transmission assets (wires and towers/poles etc)
A73: TRAB0802 | B73: Underground transmission assets (cables, ducts etc)
A74: TRAB0803 | B74: Substations, switchyards, Transformers etc with transmission function
A75: TRAB0804 | B75: Easements
A76: TRAB0805 | B76: Other assets with long lives (please specify)
A77: TRAB0806 | B77: Other assets with short lives (please specify)
B80: 3.3.4 - ASSET LIVES
B81: 3.3.4.1 Asset Lives – estimated service life of new assets
A82: TRAB0901 | B82: Overhead transmission assets
A83: TRAB0902 | B83: Underground transmission assets
A84: TRAB0903 | B84: Switchyard, substation and transformer assets
A85: TRAB0904 | B85: “Other” assets with long lives
A86: TRAB0905 | B86: “Other assets with short lives
B88: 3.3.4.2 Asset Lives – estimated residual service life
A89: TRAB1001 | B89: Overhead transmission assets
A90: TRAB1002 | B90: Underground transmission assets
A91: TRAB1003 | B91: Switchyard, substation and transformer assets
A92: TRAB1004 | B92: Other assets with long lives
A93: TRAB1005 | B93: Other assets with short lives

Sheet Unprotected 3.3 Assets (RAB)
A1: REGULATORY REPORTING STATEMENT
A2: Queensland Electricity Transmission Corporation Limited trading as Powerlink Queensland
A3: 2017-18 to 2021-22
A4: 3.3 ASSETS
B6: Forecast ($0's, real June 2017)
B7: 2015-16 | C7: 2016-17 | D7: 2017-18 | E7: 2018-19 | F7: 2019-20 | G7: 2020-21 | H7: 2021-22
A9: 3.3.1 - REGULATORY ASSET BASE VALUES
A10: For total asset base:
A11: Opening value | B11: 7151348018 | C11: 7217879355 | D11: 7237850742 | E11: 7174502620 | F11: 7095488956 | G11: 7000805297 | H11: 6900731722
A12: Inflation addition | B12: 172202056.5 | C12: 176827546.4 | D12: 0 | E12: 0 | F12: 0 | G12: 0 | H12: 0
A13: Straight line depreciation | B13: -277293166.7 | C13: -279463772.1 | D13: -265175833.9 | E13: -276787449.2 | F13: -289594462.8 | G13: -295669530 | H13: -296287993.2
A14: Regulatory depreciation | B14: -105091110.2 | C14: -102636225.7 | D14: -265175833.9 | E14: -276787449.2 | F14: -289594462.8 | G14: -295669530 | H14: -296287993.2
A15: Actual additions (recognised in RAB) | B15: 173224749.8 | C15: 221146511.9 | D15: 202216255.4 | E15: 198288604.2 | F15: 195454764.1 | G15: 196305047 | H15: 185118062.3
A16: RFM True Up | B16: 0 | C16: -97988812.49 | D16: 0 | E16: 0 | F16: 0 | G16: 0 | H16: 0
A17: Disposals | B17: -1602303.001 | C17: -550086.647 | D17: -388543.1587 | E17: -514819.6853 | F17: -543960.4222 | G17: -709091.2647 | H17: -505106.1063
A18: Closing value | B18: 7217879355 | C18: 7237850742 | D18: 7174502620 | E18: 7095488956 | F18: 7000805297 | G18: 6900731722 | H18: 6789056685
A21: 3.3.2 - ASSET VALUE ROLL FORWARD
A22: For overhead transmission assets:
A23: Opening value | B23: 3555805702 | C23: 3546668621 | D23: 3565649875 | E23: 3508023810 | F23: 3450436532 | G23: 3392981039 | H23: 3337838425
A24: Inflation addition | B24: 85603428.47 | C24: 86893381.22 | D24: 0 | E24: 0 | F24: 0 | G24: 0 | H24: 0
A25: Straight line depreciation | B25: -114702186.3 | C25: -115084731 | D25: -110795385.4 | E25: -110939586 | F25: -114322137.1 | G25: -114422620.8 | H25: -114783403.6
A26: Regulatory depreciation | B26: -29098757.79 | C26: -28191349.77 | D26: -110795385.4 | E26: -110939586 | F26: -114322137.1 | G26: -114422620.8 | H26: -114783403.6
A27: Actual additions (recognised in RAB) | B27: 19961676.51 | C27: 61618153.53 | D27: 53169320.82 | E27: 53352307.3 | F27: 56866644.4 | G27: 59280007.21 | H27: 62735477.14
A28: RFM True Up | B28: 0 | C28: -14445550.02 | D28: 0 | E28: 0 | F28: 0 | G28: 0 | H28: 0
A29: Disposals | B29: 0 | C29: 0 | D29: 0 | E29: 0 | F29: 0 | G29: 0 | H29: 0
A30: Closing value | B30: 3546668621 | C30: 3565649875 | D30: 3508023810 | E30: 3450436532 | F30: 3392981039 | G30: 3337838425 | H30: 3285790499
A31: For underground transmission assets:
A32: Opening value | B32: 55813270.18 | C32: 54897688.49 | D32: 53985892.3 | E32: 51588167.1 | F32: 49261468.11 | G32: 46826298.25 | H32: 44379994.71
A33: Inflation addition | B33: 1332816.252 | C33: 1334407.111 | D33: 0 | E33: 0 | F33: 0 | G33: 0 | H33: 0
A34: Straight line depreciation | B34: -2248397.934 | C34: -2246203.304 | D34: -2442566.947 | E34: -2442566.947 | F34: -2442566.947 | G34: -2446303.545 | H34: -2446303.545
A35: Regulatory depreciation | B35: -915581.6824 | C35: -911796.1932 | D35: -2442566.947 | E35: -2442566.947 | F35: -2442566.947 | G35: -2446303.545 | H35: -2446303.545
A36: Actual additions (recognised in RAB) | B36: 0 | C36: 0 | D36: 44841.75136 | E36: 115867.9517 | F36: 7397.093012 | G36: 0 | H36: 0
A37: RFM True Up | B37: 0 | C37: 0 | D37: 0 | E37: 0 | F37: 0 | G37: 0 | H37: 0
A38: Disposals | B38: 0 | C38: 0 | D38: 0 | E38: 0 | F38: 0 | G38: 0 | H38: 0
A39: Closing value | B39: 54897688.49 | C39: 53985892.3 | D39: 51588167.1 | E39: 49261468.11 | F39: 46826298.25 | G39: 44379994.71 | H39: 41933691.16
A40: For transmission switchyards, substations
A41: Opening value | B41: 2594890302 | C41: 2630733578 | D41: 2652249560 | E41: 2629129864 | F41: 2599050559 | G41: 2552448286 | H41: 2499553930
A42: Inflation addition | B42: 62494566.95 | C42: 64452972.67 | D42: 0 | E42: 0 | F42: 0 | G42: 0 | H42: 0
A43: Straight line depreciation | B43: -121773057.4 | C43: -124363657.2 | D43: -125162123.6 | E43: -132195150.4 | F43: -136979375.2 | G43: -140363531.3 | H43: -144650336.4
A44: Regulatory depreciation | B44: -59278490.49 | C44: -59910684.53 | D44: -125162123.6 | E44: -132195150.4 | F44: -136979375.2 | G44: -140363531.3 | H44: -144650336.4
A45: Actual additions (recognised in RAB) | B45: 95121766.99 | C45: 108175840.8 | D45: 102042428.4 | E45: 102115844.9 | F45: 90377102.15 | G45: 87469175.31 | H45: 87106582.97
A46: RFM True Up | B46: 0 | C46: -26749174.94 | D46: 0 | E46: 0 | F46: 0 | G46: 0 | H46: 0
A47: Disposals | B47: 0 | C47: 0 | D47: 0 | E47: 0 | F47: 0 | G47: 0 | H47: 0
A48: Closing value | B48: 2630733578 | C48: 2652249560 | D48: 2629129864 | E48: 2599050559 | F48: 2552448286 | G48: 2499553930 | H48: 2442010176
A49: For easements:
A50: Opening value | B50: 629830371.3 | C50: 657281538.7 | D50: 667161227.7 | E50: 669841782.3 | F50: 671399287.3 | G50: 674608114.1 | H50: 674953828
A51: Inflation addition | B51: 15179443.57 | C51: 16103397.7 | D51: 0 | E51: 0 | F51: 0 | G51: 0 | H51: 0
A52: Straight line depreciation | B52: 0 | C52: 0 | D52: 0 | E52: 0 | F52: 0 | G52: 0 | H52: 0
A53: Regulatory depreciation | B53: 15179443.57 | C53: 16103397.7 | D53: 0 | E53: 0 | F53: 0 | G53: 0 | H53: 0
A54: Actual additions (recognised in RAB) | B54: 12271723.86 | C54: 5566250.788 | D54: 2680554.583 | E54: 1557504.985 | F54: 3208826.86 | G54: 345713.9162 | H54: 0
A55: RFM True Up | B55: 0 | C55: -11789959.52 | D55: 0 | E55: 0 | F55: 0 | G55: 0 | H55: 0
A56: Disposals | B56: 0 | C56: 0 | D56: 0 | E56: 0 | F56: 0 | G56: 0 | H56: 0
A57: Closing value | B57: 657281538.7 | C57: 667161227.7 | D57: 669841782.3 | E57: 671399287.3 | F57: 674608114.1 | G57: 674953828 | H57: 674953828
A58: For “other” assets with long lives:
A59: Opening value | B59: 257856172.8 | C59: 270651782.1 | D59: 237128805.2 | E59: 251969397.6 | F59: 263120710.5 | G59: 274664834.7 | H59: 288964621.6
A60: Inflation addition | B60: 6215534.779 | C60: 6631057.149 | D60: 0 | E60: 0 | F60: 0 | G60: 0 | H60: 0
A61: Straight line depreciation | B61: -14948853.5 | C61: -16301282.71 | D61: -12995588.45 | E61: -14413405.55 | F61: -16240728.26 | G61: -17593582.15 | H61: -18904906.34
A62: Regulatory depreciation | B62: -8733318.721 | C62: -9670225.566 | D62: -12995588.45 | E62: -14413405.55 | F62: -16240728.26 | G62: -17593582.15 | H62: -18904906.34
A63: Actual additions (recognised in RAB) | B63: 21528928.03 | C63: 23775191.57 | D63: 27836180.88 | E63: 25564718.4 | F63: 27784852.47 | G63: 31893369.02 | H63: 19049938.04
A64: RFM True Up | B64: 0 | C64: -47627942.93 | D64: 0 | E64: 0 | F64: 0 | G64: 0 | H64: 0
A65: Disposals | B65: 0 | C65: 0 | D65: 0 | E65: 0 | F65: 0 | G65: 0 | H65: 0
A66: Closing value | B66: 270651782.1 | C66: 237128805.2 | D66: 251969397.6 | E66: 263120710.5 | F66: 274664834.7 | G66: 288964621.6 | H66: 289109653.3
A67: For “other” assets with short lives:
A68: Opening value | B68: 57152199.94 | C68: 57646146.23 | D68: 61675382.39 | E68: 63949598.82 | F68: 62220399.42 | G68: 59276724.8 | H68: 55040922.85
A69: Inflation addition | B69: 1376266.467 | C69: 1412330.583 | D69: 0 | E69: 0 | F69: 0 | G69: 0 | H69: 0
A70: Straight line depreciation | B70: -23620671.57 | C70: -21467897.93 | D70: -13780169.4 | E70: -16796740.35 | F70: -19609655.37 | G70: -20843492.19 | H70: -15503043.32
A71: Regulatory depreciation | B71: -22244405.11 | C71: -20055567.35 | D71: -13780169.4 | E71: -16796740.35 | F71: -19609655.37 | G71: -20843492.19 | H71: -15503043.32
A72: Actual additions (recognised in RAB) | B72: 24340654.39 | C72: 22011075.23 | D72: 16442929 | E72: 15582360.64 | F72: 17209941.16 | G72: 17316781.5 | H72: 16226064.14
A73: RFM True Up | B73: 0 | C73: 2623814.92 | D73: 0 | E73: 0 | F73: 0 | G73: 0 | H73: 0
A74: Disposals | B74: -1602303.001 | C74: -550086.647 | D74: -388543.1587 | E74: -514819.6853 | F74: -543960.4222 | G74: -709091.2647 | H74: -505106.1063
A75: Closing value | B75: 57646146.23 | C75: 61675382.39 | D75: 63949598.82 | E75: 62220399.42 | F75: 59276724.8 | G75: 55040922.85 | H75: 55258837.56
A78: 3.3.3 - TOTAL DISAGGREGATED RAB ASSET VALUES
A79: Overhead transmission assets (wires and towers/poles etc) | B79: 3551237162 | C79: 3556159248 | D79: 3536836843 | E79: 3479230171 | F79: 3421708785 | G79: 3365409732 | H79: 3311814462
A80: Underground transmission assets (cables, ducts etc) | B80: 55355479.34 | C80: 54441790.4 | D80: 52787029.7 | E80: 50424817.61 | F80: 48043883.18 | G80: 45603146.48 | H80: 43156842.94
A81: Substations, switchyards, Transformers etc with transmission function | B81: 2612811940 | C81: 2641491569 | D81: 2640689712 | E81: 2614090212 | F81: 2575749422 | G81: 2526001108 | H81: 2470782053
A82: Easements | B82: 643555955 | C82: 662221383.2 | D82: 668501505 | E82: 670620534.8 | F82: 673003700.7 | G82: 674780971.1 | H82: 674953828
A83: Other assets with long lives (please specify) | B83: 264253977.5 | C83: 253890293.6 | D83: 244549101.4 | E83: 257545054 | F83: 268892772.6 | G83: 281814728.1 | H83: 289037137.4
A84: Other assets with short lives (please specify) | B84: 57399173.09 | C84: 59660764.31 | D84: 62812490.61 | E84: 63084999.12 | F84: 60748562.11 | G84: 57158823.82 | H84: 55149880.2
A87: 3.3.4 - ASSET LIVES
A88: 3.3.4.1 Asset Lives – estimated service life of new assets
A89: Overhead transmission assets | B89: 49.75327053 | C89: 49.66983283 | D89: 49.60939378 | E89: 49.00489688 | F89: 48.95906907 | G89: 48.91536542 | H89: 48.38238378
A90: Underground transmission assets | B90: 45 | C90: 45 | D90: 45 | E90: 45 | F90: 45 | G90: 45 | H90: 45
A91: Switchyard, substation and transformer assets | B91: 34.81801864 | C91: 34.45622429 | D91: 34.01124777 | E91: 34.01912972 | F91: 34.08289733 | G91: 34.16495627 | H91: 34.2589296
A92: “Other” assets with long lives | B92: 25.83801909 | C92: 25.38624271 | D92: 24.95133422 | E92: 24.67929777 | F92: 24.29047563 | G92: 24.64309924 | H92: 25.03471725
A93: “Other assets with short lives | B93: 5.67628472 | C93: 5.699551929 | D93: 5.658037606 | E93: 5.597804662 | F93: 5.606437215 | G93: 5.600297467 | H93: 5.602411163
A95: 3.3.4.2 Asset Lives – estimated residual service life
A96: Overhead transmission assets | B96: 27.67259182 | C96: 28.07715314 | D96: 28.48765547 | E96: 28.91847382 | F96: 29.33906328 | G96: 29.74224283 | H96: 30.11083165
A97: Underground transmission assets | B97: 18.72222222 | C97: 19.72222222 | D97: 20.72222222 | E97: 21.72222222 | F97: 22.72222222 | G97: 23.72222222 | H97: 24.72222222
A98: Switchyard, substation and transformer assets | B98: 13.71797521 | C98: 13.69477008 | D98: 13.84454944 | E98: 14.10346224 | F98: 14.42274166 | G98: 14.79927844 | H98: 15.19768608
A99: Other assets with long lives | B99: 19.37070515 | C99: 18.60744719 | D99: 17.92706475 | E99: 17.44792183 | F99: 17.49059921 | G99: 17.62213944 | H99: 16.91360945
A100: Other assets with short lives | B100: 3.669131614 | C100: 3.984310865 | D100: 4.210839106 | E100: 4.118830025 | F100: 4.078359666 | G100: 4.115768688 | H100: 4.132079637

Sheet 3.4 Operational data
B1: =(LOOKUP(dms_Model,dms_Model_List,dms_Worksheet_List)) -> REGULATORY REPORTING STATEMENT
B2: =INDEX(dms_TradingNameFull_List,MATCH(dms_TradingName,dms_TradingName_List)) -> Queensland Electricity Transmission Corporation Limited trading as Powerlink Queensland
B3: =CONCATENATE(FRCP_y1," to ",FRCP_y5) -> 2017-18 to 2021-22
B4: 3.4 OPERATIONAL DATA
D6: Forecast (0's)
C7: Units | D7: =CRCP_y4 -> 2015-16 | E7: =CRCP_y5 -> 2016-17 | F7: =FRCP_y1 -> 2017-18 | G7: =FRCP_y2 -> 2018-19 | H7: =FRCP_y3 -> 2019-20 | I7: =FRCP_y4 -> 2020-21 | J7: =FRCP_y5 -> 2021-22
B9: 3.4.1 - ENERGY DELIVERY
B10: Energy grouping by downstream connection type
A11: TOPED0101 | B11: To Other connected transmission networks | C11: GWh | D11: 3267 | E11: 2641 | F11: 2468 | G11: 2362 | H11: 2444 | I11: 2459 | J11: 2718
A12: TOPED0102 | B12: To Distribution networks | C12: GWh | D12: 33638 | E12: 34180 | F12: 34345 | G12: 34529 | H12: 34464 | I12: 34322 | J12: 34365
A13: TOPED0103 | B13: To Directly connected end–users (330 kV) | C13: GWh | D13: 0 | E13: 0 | F13: 0 | G13: 0 | H13: 0 | I13: 0 | J13: 0
A14: TOPED0104 | B14: To Directly connected end–users (275 kV) | C14: GWh | D14: 7967 | E14: 9045 | F14: 10035 | G14: 9865 | H14: 10020 | I14: 10065 | J14: 10294
A15: TOPED0105 | B15: To Directly connected end–users (220 kV) | C15: GWh | D15: 0 | E15: 0 | F15: 0 | G15: 0 | H15: 0 | I15: 0 | J15: 0
A16: TOPED0106 | B16: To Directly connected end–users (132 kV) | C16: GWh | D16: 8866 | E16: 9278 | F16: 9735 | G16: 9838 | H16: 9778 | I16: 9603 | J16: 9471
A17: TOPED0107 | B17: To Directly connected end–users (110 kV) | C17: GWh
A18: TOPED0108 | B18: To Directly connected end–users (44 kV) | C18: GWh
A19: TOPED0109 | B19: To Directly connected end–users (33 kV) | C19: GWh
A20: TOPED0110 | B20: To Directly connected end–users (22 kV) | C20: GWh
A21: TOPED0111 | B21: To Directly connected end–users (11 kV) | C21: GWh
A22: TOPED0112 | B22: To Directly connected end–users (6.6 kV) | C22: GWh
A23: TOPED0113 | B23: Pumping and Power Station Auxillaries | C23: GWh | D23: 186 | E23: 186 | F23: 186 | G23: 186 | H23: 186 | I23: 186 | J23: 186
A24: TOPED01 | B24: Total energy transported | C24: GWh | D24: =SUM(D11:D23) -> 53924 | E24: =SUM(E11:E23) -> 55330 | F24: =SUM(F11:F23) -> 56769 | G24: 56780 | H24: 56892 | I24: 56635 | J24: 57034
B27: 3.4.2 - CONNECTION POINTS
B28: Number of entry points at each transmission voltage level
A29: TOPCP0101 | B29: 500kV | C29: number | D29: 0 | E29: 0 | F29: 0 | G29: 0 | H29: 0 | I29: 0 | J29: 0
A30: TOPCP0102 | B30: 330kV | C30: number | D30: 1 | E30: 1 | F30: 1 | G30: 1 | H30: 1 | I30: 1 | J30: 1
A31: TOPCP0103 | B31: 275kV | C31: number | D31: 12 | E31: 12 | F31: 12 | G31: 12 | H31: 12 | I31: 12 | J31: 12
A32: TOPCP0104 | B32: 220kV | C32: number | D32: 0 | E32: 0 | F32: 0 | G32: 0 | H32: 0 | I32: 0 | J32: 0
A33: TOPCP0105 | B33: 132 kV | C33: number | D33: 10 | E33: 10 | F33: 10 | G33: 10 | H33: 10 | I33: 10 | J33: 10
A34: TOPCP0106 | B34: 110kV | C34: number | D34: 1 | E34: 1 | F34: 1 | G34: 1 | H34: 1 | I34: 1 | J34: 1
A35: TOPCP0107 | B35: 66 kV | C35: number | D35: 0 | E35: 0 | F35: 0 | G35: 0 | H35: 0 | I35: 0 | J35: 0
A36: TOPCP0108 | B36: 33 kV | C36: number | D36: 0 | E36: 0 | F36: 0 | G36: 0 | H36: 0 | I36: 0 | J36: 0
A37: TOPCP0109 | B37: 22 kV | C37: number | D37: 0 | E37: 0 | F37: 0 | G37: 0 | H37: 0 | I37: 0 | J37: 0
A38: TOPCP0110 | B38: 11 kV | C38: number | D38: 0 | E38: 0 | F38: 0 | G38: 0 | H38: 0 | I38: 0 | J38: 0
A39: TOPCP0111 | B39: 6.6 kV | C39: number | D39: 0 | E39: 0 | F39: 0 | G39: 0 | H39: 0 | I39: 0 | J39: 0
B41: Number of exit points at each transmission voltage level
A42: TOPCP0201 | B42: 500kV | C42: number
A43: TOPCP0202 | B43: 330kV | C43: number | D43: 1 | E43: 1 | F43: 1 | G43: 1 | H43: 1 | I43: 1 | J43: 1
A44: TOPCP0203 | B44: 275kV | C44: number | D44: 4.5 | E44: 5 | F44: 5 | G44: 5 | H44: 5 | I44: 5 | J44: 5
A45: TOPCP0204 | B45: 220kV | C45: number
A46: TOPCP0205 | B46: 132 kV | C46: number | D46: 50 | E46: 50 | F46: 50 | G46: 50 | H46: 50 | I46: 50 | J46: 50
A47: TOPCP0206 | B47: 110kV | C47: number | D47: 17 | E47: 17 | F47: 17 | G47: 17 | H47: 17 | I47: 17 | J47: 17
A48: TOPCP0207 | B48: 66 kV | C48: number | D48: 23 | E48: 23 | F48: 23 | G48: 23 | H48: 23 | I48: 23 | J48: 23
A49: TOPCP0208 | B49: 44 kV | C49: number
A50: TOPCP0209 | B50: 33kV | C50: number | D50: 14 | E50: 14 | F50: 14 | G50: 14 | H50: 14 | I50: 14 | J50: 14
A51: TOPCP0210 | B51: 22kV | C51: number | D51: 7 | E51: 7 | F51: 7 | G51: 7 | H51: 7 | I51: 7 | J51: 7
A52: TOPCP0211 | B52: 11kV | C52: number | D52: 4 | E52: 4 | F52: 4 | G52: 4 | H52: 4 | I52: 4 | J52: 4
A53: TOPCP0212 | B53: 6.6kV | C53: number
B56: 3.4.3 - SYSTEM DEMAND
B57: 3.4.3.1 Annual system maximum demand characteristics – MW measure
A58: TOPSD0101 | B58: Transmission System coincident maximum demand | C58: MW
A59: TOPSD0102 | B59: Transmission System coincident weather adjusted maximum demand 10% POE | C59: MW | D59: 8780 | E59: 8982 | F59: 9140 | G59: 9184 | H59: 9202 | I59: 9195 | J59: 9224
A60: TOPSD0103 | B60: Transmission System coincident weather adjusted maximum demand 50% POE | C60: MW | D60: 8232 | E60: 8424 | F60: 8573 | G60: 8608 | H60: 8620 | I60: 8608 | J60: 8631
A61: TOPSD0104 | B61: Transmission System non-coincident summated maximum demand | C61: MW
A62: TOPSD0105 | B62: Transmission System non-coincident weather adjusted summated maximum demand 10% POE | C62: MW | D62: 12204 | E62: 12433 | F62: 12692 | G62: 12756 | H62: 12681 | I62: 12672 | J62: 12716
A63: TOPSD0106 | B63: Transmission System non-coincident weather adjusted summated maximum demand 50% POE | C63: MW | D63: 11551 | E63: 11767 | F63: 12017 | G63: 12071 | H63: 11988 | I63: 11973 | J63: 12010
B65: 3.4.3.2 Annual system maximum demand characteristics – MVA measure
A66: TOPSD0201 | B66: Transmission System coincident maximum demand | C66: MVA
A67: TOPSD0202 | B67: Transmission System coincident weather adjusted maximum demand 10% POE | C67: MVA | D67: 9489 | E67: 9703 | F67: 9868 | G67: 9914 | H67: 9933 | I67: 9926 | J67: 9955
A68: TOPSD0203 | B68: Transmission System coincident weather adjusted maximum demand 50% POE | C68: MVA | D68: 8916 | E68: 9119 | F68: 9276 | G68: 9313 | H68: 9325 | I68: 9313 | J68: 9336
A69: TOPSD0204 | B69: Transmission System non-coincident summated maximum demand | C69: MVA
A70: TOPSD0205 | B70: Transmission System non-coincident weather adjusted summated maximum demand 10% POE | C70: MVA | D70: 12710 | E70: 12950 | F70: 13221 | G70: 13288 | H70: 13208 | I70: 13198 | J70: 13244
A71: TOPSD0206 | B71: Transmission System non-coincident weather adjusted summated maximum demand 50% POE | C71: MVA | D71: 12036 | E71: 12262 | F71: 12524 | G71: 12580 | H71: 12493 | I71: 12477 | J71: 12515
B73: 3.4.3.3 Power factor
B74: Power factor conversion between MVA and MW
A75: TOPSD0301 | B75: Average overall network power factor conversion between MVA and MW | C75: Factor | D75: 0.99 | E75: 0.991 | F75: 0.992 | G75: 0.992 | H75: 0.992 | I75: 0.992 | J75: 0.992
A76: TOPSD0302 | B76: Average power factor conversion for 500 kV lines | C76: Factor
A77: TOPSD0303 | B77: Average power factor conversion for 330 kV lines | C77: Factor | D77: 0.598 | E77: 0.598 | F77: 0.598 | G77: 0.598 | H77: 0.598 | I77: 0.598 | J77: 0.598
A78: TOPSD0304 | B78: Average power factor conversion for 275 kV lines | C78: Factor | D78: 0.975 | E78: 0.983 | F78: 0.989 | G78: 0.99 | H78: 0.989 | I78: 0.989 | J78: 0.991
A79: TOPSD0305 | B79: Average power factor conversion for 220 kV lines | C79: Factor
A80: TOPSD0306 | B80: Average power factor conversion for 132 kV lines | C80: Factor | D80: 1 | E80: 1 | F80: 0.999 | G80: 0.999 | H80: 0.999 | I80: 0.999 | J80: 0.999
A81: TOPSD0307 | B81: Average power factor conversion for 110 kV lines | C81: Factor | D81: 0.973 | E81: 0.973 | F81: 0.974 | G81: 0.973 | H81: 0.974 | I81: 0.974 | J81: 0.974
A82: TOPSD0308 | B82: Average power factor conversion for 88 kV lines | C82: Factor
A83: TOPSD0309 | B83: Average power factor conversion for 66 kV lines | C83: Factor | D83: 0.962 | E83: 0.963 | F83: 0.963 | G83: 0.961 | H83: 0.961 | I83: 0.961 | J83: 0.96
A84: TOPSD0310 | B84: Average power factor conversion for 33 kV lines | C84: Factor | D84: 1 | E84: 1 | F84: 1 | G84: 1 | H84: 1 | I84: 1 | J84: 1
A85: TOPSD0311 | B85: Average power factor conversion for 22 kV lines | C85: Factor | D85: 0.999 | E85: 0.999 | F85: 1 | G85: 0.999 | H85: 1 | I85: 1 | J85: 1
A86: TOPSD0311 | B86: Average power factor conversion for 11 kV lines | C86: Factor | D86: 0.948 | E86: 0.948 | F86: 0.944 | G86: 0.943 | H86: 0.944 | I86: 0.944 | J86: 0.945
A87: TOPSD0312 | B87: Average power factor conversion for 6.6 kV lines | C87: Factor

Sheet 3.5 Physical assets
B1: =(LOOKUP(dms_Model,dms_Model_List,dms_Worksheet_List)) -> REGULATORY REPORTING STATEMENT
B2: =INDEX(dms_TradingNameFull_List,MATCH(dms_TradingName,dms_TradingName_List)) -> Queensland Electricity Transmission Corporation Limited trading as Powerlink Queensland
B3: =CONCATENATE(FRCP_y1," to ",FRCP_y5) -> 2017-18 to 2021-22
B4: 3.5 PHYSICAL ASSETS
D7: Forecast (0's)
C8: Units | D8: =CRCP_y4 -> 2015-16 | E8: =CRCP_y5 -> 2016-17 | F8: =FRCP_y1 -> 2017-18 | G8: =FRCP_y2 -> 2018-19 | H8: =FRCP_y3 -> 2019-20 | I8: =FRCP_y4 -> 2020-21 | J8: =FRCP_y5 -> 2021-22
B10: 3.5.1 - TRANSMISSION SYSTEM CAPACITIES
B11: 3.5.1.1 - Overhead network length of circuit at each voltage
A12: TPA0101 | B12: 500 kV | C12: km | D12: 0 | E12: 0 | F12: 0 | G12: 0 | H12: 0 | I12: 0 | J12: 0
A13: TPA0102 | B13: 330 kV | C13: km | D13: 604 | E13: 604 | F13: 604 | G13: 604 | H13: 604 | I13: 604 | J13: 604
A14: TPA0103 | B14: 275 kV | C14: km | D14: 9367 | E14: 9367 | F14: 9367 | G14: 9367 | H14: 9367 | I14: 9367 | J14: 9367
A15: TPA0104 | B15: 220 kV | C15: km | D15: 0 | E15: 0 | F15: 0 | G15: 0 | H15: 0 | I15: 0 | J15: 0
A16: TPA0105 | B16: 132 kV | C16: km | D16: 4368 | E16: 4157 | F16: 4157 | G16: 4145 | H16: 4076 | I16: 4076 | J16: 4076
A17: TPA0106 | B17: 110 kV | C17: km | D17: 393 | E17: 393 | F17: 393 | G17: 393 | H17: 393 | I17: 393 | J17: 393
A18: TPA0107 | B18: 88 kV | C18: km | D18: 0 | E18: 0 | F18: 0 | G18: 0 | H18: 0 | I18: 0 | J18: 0
A19: TPA0108 | B19: 66 kV | C19: km | D19: 1 | E19: 1 | F19: 1 | G19: 1 | H19: 1 | I19: 1 | J19: 1
A20: TPA0109 | B20: 33 kV | C20: km | D20: 0 | E20: 0 | F20: 0 | G20: 0 | H20: 0 | I20: 0 | J20: 0
A21: TPA0109 | B21: 22 kV | C21: km | D21: 0 | E21: 0 | F21: 0 | G21: 0 | H21: 0 | I21: 0 | J21: 0
A22: TPA0109 | B22: 11 kV | C22: km | D22: 0 | E22: 0 | F22: 0 | G22: 0 | H22: 0 | I22: 0 | J22: 0
A23: TPA01 | B23: Total overhead circuit kilometres | C23: km | D23: =SUM(D12:D22) -> 14733 | E23: =SUM(E12:E22) -> 14522 | F23: =SUM(F12:F22) -> 14522 | G23: 14510 | H23: 14441 | I23: 14441 | J23: 14441
B25: 3.5.1.2 - Underground cable circuit length at each voltage
A26: TPA0201 | B26: 500 kV | C26: km | D26: 0 | E26: 0 | F26: 0 | G26: 0 | H26: 0 | I26: 0 | J26: 0
A27: TPA0202 | B27: 330 kV | C27: km | D27: 0 | E27: 0 | F27: 0 | G27: 0 | H27: 0 | I27: 0 | J27: 0
A28: TPA0203 | B28: 275 kV | C28: km | D28: 9.4 | E28: 9.4 | F28: 9.4 | G28: 9.4 | H28: 9.4 | I28: 9.4 | J28: 9.4
A29: TPA0204 | B29: 220 kV | C29: km | D29: 0 | E29: 0 | F29: 0 | G29: 0 | H29: 0 | I29: 0 | J29: 0
A30: TPA0205 | B30: 132 kV | C30: km | D30: 3.2 | E30: 3.2 | F30: 3.2 | G30: 3.2 | H30: 3.2 | I30: 3.2 | J30: 3.2
A31: TPA0206 | B31: 110 kV | C31: km | D31: 7.6 | E31: 7.6 | F31: 7.6 | G31: 7.6 | H31: 7.6 | I31: 7.6 | J31: 7.6
A32: TPA0207 | B32: 88 kV | C32: km | D32: 0 | E32: 0 | F32: 0 | G32: 0 | H32: 0 | I32: 0 | J32: 0
A33: TPA0208 | B33: 66 kV | C33: km | D33: 1.3 | E33: 1.3 | F33: 1.3 | G33: 1.3 | H33: 1.3 | I33: 1.3 | J33: 1.3
A34: TPA0209 | B34: 33 kV | C34: km | D34: 0 | E34: 0 | F34: 0 | G34: 0 | H34: 0 | I34: 0 | J34: 0
A35: TPA0210 | B35: 22 kV | C35: km | D35: 0 | E35: 0 | F35: 0 | G35: 0 | H35: 0 | I35: 0 | J35: 0
A36: TPA0211 | B36: 11 kV | C36: km | D36: 0 | E36: 0 | F36: 0 | G36: 0 | H36: 0 | I36: 0 | J36: 0
A37: TPA02 | B37: Total underground circuit kilometres | C37: km | D37: =SUM(D26:D36) -> 21.5 | E37: =SUM(E26:E36) -> 21.5 | F37: =SUM(F26:F36) -> 21.5 | G37: 21.5 | H37: 21.5 | I37: 21.5 | J37: 21.5
A39: TPA0301 | B39: 3.5.1.3 - Estimated overhead network weighted average MVA capacity by voltage class
A40: TPA0302 | B40: 500 kV | C40: MVA | D40: 0 | E40: 0 | F40: 0 | G40: 0 | H40: 0 | I40: 0 | J40: 0
A41: TPA0303 | B41: 330 kV | C41: MVA | D41: 1237.5 | E41: 1237.5 | F41: 1237.5 | G41: 1237.5 | H41: 1237.461238 | I41: 1237.5 | J41: 1237.5
A42: TPA0304 | B42: 275 kV | C42: MVA | D42: 837.9 | E42: 837.9 | F42: 837.9 | G42: 837.9 | H42: 837.8734497 | I42: 837.9 | J42: 837.9
A43: TPA0305 | B43: 220 kV | C43: MVA | D43: 0 | E43: 0 | F43: 0 | G43: 0 | H43: 0 | I43: 0 | J43: 0
A44: TPA0306 | B44: 132 kV | C44: MVA | D44: 139.6 | E44: 141.4 | F44: 141.4 | G44: 141.8 | H44: 144.35 | I44: 144.3 | J44: 144.3
A45: TPA0307 | B45: 110 kV | C45: MVA | D45: 158.8 | E45: 158.8 | F45: 158.8 | G45: 158.81 | H45: 158.8 | I45: 158.8 | J45: 158.8
A46: TPA0308 | B46: 88 kV | C46: MVA | D46: 0 | E46: 0 | F46: 0 | G46: 0 | H46: 0 | I46: 0 | J46: 0
A47: TPA0309 | B47: 66 kV | C47: MVA | D47: 57 | E47: 57 | F47: 57 | G47: 57 | H47: 57 | I47: 57 | J47: 57
A48: TPA0310 | B48: 33 kV | C48: MVA | D48: 0 | E48: 0 | F48: 0 | G48: 0 | H48: 0 | I48: 0 | J48: 0
A49: TPA0311 | B49: 22 kV | C49: MVA | D49: 0 | E49: 0 | F49: 0 | G49: 0 | H49: 0 | I49: 0 | J49: 0
A50: TPA0312 | B50: 11 kV | C50: MVA | D50: 0 | E50: 0 | F50: 0 | G50: 0 | H50: 0 | I50: 0 | J50: 0
B52: 3.5.1.4 - Estimated underground network weighted average MVA capacity by voltage class
A53: TPA0401 | B53: 500 kV | C53: MVA | D53: 0 | E53: 0 | F53: 0 | G53: 0 | H53: 0 | I53: 0 | J53: 0
A54: TPA0402 | B54: 330 kV | C54: MVA | D54: 0 | E54: 0 | F54: 0 | G54: 0 | H54: 0 | I54: 0 | J54: 0
A55: TPA0403 | B55: 275 kV | C55: MVA | D55: 568.9 | E55: 568.9 | F55: 568.9 | G55: 568.9 | H55: 568.87 | I55: 568.9 | J55: 568.9
A56: TPA0404 | B56: 220 kV | C56: MVA | D56: 0 | E56: 0 | F56: 0 | G56: 0 | H56: 0 | I56: 0 | J56: 0
A57: TPA0405 | B57: 132 kV | C57: MVA | D57: 207.9 | E57: 207.9 | F57: 207.9 | G57: 207.9 | H57: 207.93 | I57: 207.9 | J57: 207.9
A58: TPA0406 | B58: 110 kV | C58: MVA | D58: 200.8 | E58: 200.8 | F58: 200.8 | G58: 200.8 | H58: 200.8 | I58: 200.8 | J58: 200.8
A59: TPA0407 | B59: 88 kV | C59: MVA | D59: 0 | E59: 0 | F59: 0 | G59: 0 | H59: 0 | I59: 0 | J59: 0
A60: TPA0408 | B60: 66 kV | C60: MVA | D60: 57 | E60: 57 | F60: 57 | G60: 57 | H60: 57 | I60: 57 | J60: 57
A61: TPA0409 | B61: 33 kV | C61: MVA | D61: 0 | E61: 0 | F61: 0 | G61: 0 | H61: 0 | I61: 0 | J61: 0
A62: TPA0410 | B62: 22 kV | C62: MVA | D62: 0 | E62: 0 | F62: 0 | G62: 0 | H62: 0 | I62: 0 | J62: 0
A63: TPA0411 | B63: 11 kV | C63: MVA | D63: 0 | E63: 0 | F63: 0 | G63: 0 | H63: 0 | I63: 0 | J63: 0
B65: 3.5.1.5 - Installed transmission system transformer capacity
A66: TPA0501 | B66: Transmission substations (eg 500 kV to 330 kV) | C66: MVA | D66: 9929 | E66: 9929 | F66: 9929 | G66: 10179 | H66: 9911 | I66: 9911 | J66: 9886
A67: TPA0502 | B67: Terminal points to DNSP systems | C67: MVA | D67: 23431 | E67: 23431 | F67: 23489 | G67: 23264 | H67: 23268 | I67: 23298 | J67: 23298
A68: TPA0503 | B68: Transformer capacity for directly connected end–users owned by the TNSP | C68: MVA | D68: 2197 | E68: 2197 | F68: 2197 | G68: 2197 | H68: 2197 | I68: 2197 | J68: 2197
A69: TPA0504 | B69: Transformer capacity for directly connected end–users owned by the end–user | C69: MVA | D69: 3393 | E69: 3393 | F69: 3393 | G69: 3393 | H69: 3393 | I69: 3393 | J69: 3393
A70: TPA0505 | B70: Interconnector capacity | C70: MVA | D70: 0 | E70: 0 | F70: 0 | G70: 0 | H70: 0 | I70: 0 | J70: 0
A71: TPA0506 | B71: Other | C71: MVA | D71: 3097 | E71: 3097 | F71: 3097 | G71: 3097 | H71: 3097 | I71: 3097 | J71: 3097
B73: 3.5.1.6 - Cold spare capacity
A74: TPA06 | B74: Cold spare capacity included in 3.5.1.5 | C74: MVA | D74: 2975 | E74: 2975 | F74: 2975 | G74: 3100 | H74: 3100 | I74: 3100 | J74: 3100

Sheet 3.7 Operating environment
B1: =(LOOKUP(dms_Model,dms_Model_List,dms_Worksheet_List)) -> REGULATORY REPORTING STATEMENT
B2: =INDEX(dms_TradingNameFull_List,MATCH(dms_TradingName,dms_TradingName_List)) -> Queensland Electricity Transmission Corporation Limited trading as Powerlink Queensland
B3: =CONCATENATE(FRCP_y1," to ",FRCP_y5) -> 2017-18 to 2021-22
B4: 3.7 OPERATING ENVIRONMENT FACTORS
D7: Forecast (0's)
C8: Units | D8: =CRCP_y4 -> 2015-16 | E8: =CRCP_y5 -> 2016-17 | F8: =FRCP_y1 -> 2017-18 | G8: =FRCP_y2 -> 2018-19 | H8: =FRCP_y3 -> 2019-20 | I8: =FRCP_y4 -> 2020-21 | J8: =FRCP_y5 -> 2021-22
A9: TEF01 | B9: 3.7.1 - TERRAIN FACTORS
A10: TEF0101 | B10: Total number of vegetation maintenance spans | C10: Number of spans | D10: 10833
A11: TEF0102 | B11: Average vegetation maintenance span cycle | C11: Years | D11: 2.608
A12: TEF0103 | B12: Average number of trees per vegetation maintenance span | C12: Trees | D12: 576
A13: TEF0104 | B13: Average number of defects per vegetation maintenance span | C13: Defects | D13: 0.02794
A14: TEF0105 | B14: Tropical proportion | C14: Number of spans | D14: 7327
A15: TEF0106 | B15: Standard vehicle access | C15: km | D15: 8019
A16: TEF0107 | B16: Altitude | C16: km | D16: 239.5
A17: TEF0108 | B17: Bushfire risk | C17: Number of spans | D17: 3220
A19: TEF02 | B19: 3.7.2 - NETWORK CHARACTERISTICS
A20: TEF0201 | B20: Route line length | C20: km | D20: 9698 | E20: 9592.5 | F20: 9592.5 | G20: 9586.8 | H20: 9517.7 | I20: 9517.7 | J20: 9517.7
A21: TEF0202 | B21: Variability of dispatch | C21: % | D21: 5.9 | E21: 5.9 | F21: 5.9 | G21: 5.9 | H21: 5.9 | I21: 5.9 | J21: 5.9
A22: TEF0203 | B22: Concentrated load distance | C22: km | D22: 565.4 | E22: 565.4 | F22: 565.4 | G22: 565.4 | H22: 565.4 | I22: 565.4 | J22: 565.4
A23: TEF0204 | B23: Total number of spans | C23: number | D23: 24096 | E23: 23824 | F23: 23824 | G23: 23802 | H23: 23571 | I23: 23571 | J23: 23571

Sheet 5.3 MD - Network level
B1: =(LOOKUP(dms_Model,dms_Model_List,dms_Worksheet_List)) -> REGULATORY REPORTING STATEMENT
B2: =INDEX(dms_TradingNameFull_List,MATCH(dms_TradingName,dms_TradingName_List)) -> Queensland Electricity Transmission Corporation Limited trading as Powerlink Queensland
B3: =CONCATENATE(FRCP_y1," to ",dms_FRCP_FinalYear_Num) -> 2017-18 to 2021-22
B4: 5.3 MAXIMUM DEMAND AT NETWORK LEVEL
B7: 5.3.1 - RAW AND WEATHER CORRECTED COINCIDENT MAXIMUM DEMAND AT NETWORK LEVEL (SUMMED AT TRANSMISSION CONNECTION POINT)
C8: UNIT | D8: =CRCP_y4 -> 2015-16 | E8: =CRCP_y5 -> 2016-17 | F8: =FRCP_y1 -> 2017-18 | G8: =FRCP_y2 -> 2018-19 | H8: =FRCP_y3 -> 2019-20 | I8: =FRCP_y4 -> 2020-21 | J8: =FRCP_y5 -> 2021-22
B9: Winter/Summer peaking | D9: Summer | E9: Summer | F9: Summer | G9: Summer | H9: Summer | I9: Summer | J9: Summer
B10: Embedded generation | C10: MW | D10: 285 | E10: 285 | F10: 285 | G10: 285 | H10: 285 | I10: 285 | J10: 285
B11: Weather corrected (10% PoE) network coincident MD | C11: MW | D11: 8780 | E11: 8982 | F11: 9140 | G11: 9184 | H11: 9202 | I11: 9195 | J11: 9224
B12: Weather corrected (50% PoE) network coincident MD | C12: MW | D12: 8232 | E12: 8424 | F12: 8573 | G12: 8608 | H12: 8620 | I12: 8608 | J12: 8631

Sheet 5.4 MD & Utilisation - Spatial
B1: =(LOOKUP(dms_Model,dms_Model_List,dms_Worksheet_List)) -> REGULATORY REPORTING STATEMENT
B2: =INDEX(dms_TradingNameFull_List,MATCH(dms_TradingName,dms_TradingName_List)) -> Queensland Electricity Transmission Corporation Limited trading as Powerlink Queensland
B3: =CONCATENATE(FRCP_y1," to ",dms_FRCP_FinalYear_Num) -> 2017-18 to 2021-22
B4: 5.4 MAXIMUM DEMAND AND UTILISATION AT SPATIAL LEVEL
B6: 5.4.1 - NON-COINCIDENT & COINCIDENT MAXIMUM DEMAND
B7: CONNECTION POINT | C7: FORECASTING ELEMENTS | D7: UNIT | E7: MAX DEMAND | G7: TNSP NAME | H7: SERVICE | I7: SERVICE SUBCATEGORY | J7: DATA TYPE | K7: DATA TYPE SUBCATEGORY | L7: LOCATION | M7: LOCATION SUBCATEGORY | N7: MEASUREMENT | O7: DENOMINATION | Q7: =CRCP_y4 -> 2015-16 | R7: =CRCP_y5 -> 2016-17 | S7: =FRCP_y1 -> 2017-18 | T7: =FRCP_y2 -> 2018-19 | U7: =FRCP_y3 -> 2019-20 | V7: =FRCP_y4 -> 2020-21 | W7: =FRCP_y5 -> 2021-22
B8: Abermain (Lockrose) | C8: CONNECTION POINT RATING | D8: MVA | E8: Non-coincident | G8: TNSP NAME | H8: DEMAND FORECASTING | I8: NON-COINCIDENT MAXIMUM DEMAND | J8: DESCRIPTOR METRIC | K8: CONNECTION POINT RATING | L8: CONNECTION POINT | M8: =B8 -> Abermain (Lockrose) | N8: RATING | O8: MVA | Q8: 238 | R8: 238 | S8: 238 | T8: 238 | U8: 238 | V8: 238 | W8: 238
E9: Coincident | G9: TNSP NAME | H9: DEMAND FORECASTING | I9: COINCIDENT MAXIMUM DEMAND | J9: DESCRIPTOR METRIC | K9: CONNECTION POINT RATING | L9: CONNECTION POINT | M9: =M8 -> Abermain (Lockrose) | N9: RATING | O9: MVA | Q9: 238 | R9: 238 | S9: 238 | T9: 238 | U9: 238 | V9: 238 | W9: 238
C10: WINTER/SUMMER PEAKING | E10: Non-coincident | G10: TNSP NAME | H10: DEMAND FORECASTING | I10: NON-COINCIDENT MAXIMUM DEMAND | J10: DESCRIPTOR METRIC | K10: WINTER/SUMMER PEAKING | L10: CONNECTION POINT | M10: =#REF! ->  | N10: WINTER/SUMMER | O10: WINTER/SUMMER | Q10: Summer | R10: Summer | S10: Summer | T10: Summer | U10: Summer | V10: Summer | W10: Summer
E11: Coincident | G11: TNSP NAME | H11: DEMAND FORECASTING | I11: COINCIDENT MAXIMUM DEMAND | J11: DESCRIPTOR METRIC | K11: WINTER/SUMMER PEAKING | L11: CONNECTION POINT | N11: WINTER/SUMMER | O11: WINTER/SUMMER | Q11: Summer | R11: Summer | S11: Summer | T11: Summer | U11: Summer | V11: Summer | W11: Summer
C12: ADJUSTMENTS - EMBEDDED GENERATION | D12: MW | E12: Non-coincident | G12: TNSP NAME | H12: DEMAND FORECASTING | I12: NON-COINCIDENT MAXIMUM DEMAND | J12: DESCRIPTOR METRIC | K12: ADJUSTMENTS - EMBEDDED GENERATION | L12: CONNECTION POINT | N12: GENERATED LOAD | O12: MW | Q12: 0 | R12: 0 | S12: 0 | T12: 0 | U12: 0 | V12: 0 | W12: 0
E13: Coincident | G13: TNSP NAME | H13: DEMAND FORECASTING | I13: COINCIDENT MAXIMUM DEMAND | J13: DESCRIPTOR METRIC | K13: ADJUSTMENTS - EMBEDDED GENERATION | L13: CONNECTION POINT | N13: GENERATED LOAD | O13: MW | Q13: 0 | R13: 0 | S13: 0 | T13: 0 | U13: 0 | V13: 0 | W13: 0
C14: WEATHER CORRECTED MD 10% POE | D14: MW | E14: Non-coincident | G14: TNSP NAME | H14: DEMAND FORECASTING | I14: NON-COINCIDENT MAXIMUM DEMAND | J14: DESCRIPTOR METRIC | K14: WEATHER CORRECTED MD 10% POE | L14: CONNECTION POINT | N14: MAXIMUM DEMAND | O14: MW | Q14: 65 | R14: 64 | S14: 65 | T14: 67 | U14: 67 | V14: 67 | W14: 67
E15: Coincident | G15: TNSP NAME | H15: DEMAND FORECASTING | I15: COINCIDENT MAXIMUM DEMAND | J15: DESCRIPTOR METRIC | K15: WEATHER CORRECTED MD 10% POE | L15: CONNECTION POINT | N15: MAXIMUM DEMAND | O15: MW | Q15: 53 | R15: 53 | S15: 54 | T15: 55 | U15: 55 | V15: 55 | W15: 55
C16: WEATHER CORRECTED MD 10% POE | D16: MVA | E16: Non-coincident | G16: TNSP NAME | H16: DEMAND FORECASTING | I16: NON-COINCIDENT MAXIMUM DEMAND | J16: DESCRIPTOR METRIC | K16: WEATHER CORRECTED MD 10% POE | L16: CONNECTION POINT | N16: MAXIMUM DEMAND | O16: MVA | Q16: 68 | R16: 68 | S16: 69 | T16: 70 | U16: 70 | V16: 70 | W16: 70
E17: Coincident | G17: TNSP NAME | H17: DEMAND FORECASTING | I17: COINCIDENT MAXIMUM DEMAND | J17: DESCRIPTOR METRIC | K17: WEATHER CORRECTED MD 10% POE | L17: CONNECTION POINT | N17: MAXIMUM DEMAND | O17: MVA | Q17: 58 | R17: 57 | S17: 58 | T17: 60 | U17: 60 | V17: 59 | W17: 60
C18: WEATHER CORRECTED MD 50% POE | D18: MW | E18: Non-coincident | G18: TNSP NAME | H18: DEMAND FORECASTING | I18: NON-COINCIDENT MAXIMUM DEMAND | J18: DESCRIPTOR METRIC | K18: WEATHER CORRECTED MD 50% POE | L18: CONNECTION POINT | N18: MAXIMUM DEMAND | O18: MW | Q18: 58 | R18: 57 | S18: 58 | T18: 60 | U18: 60 | V18: 59 | W18: 60
E19: Coincident | G19: TNSP NAME | H19: DEMAND FORECASTING | I19: COINCIDENT MAXIMUM DEMAND | J19: DESCRIPTOR METRIC | K19: WEATHER CORRECTED MD 50% POE | L19: CONNECTION POINT | N19: MAXIMUM DEMAND | O19: MW | Q19: 47 | R19: 47 | S19: 48 | T19: 49 | U19: 49 | V19: 49 | W19: 49
C20: WEATHER CORRECTED MD 50% POE | D20: MVA | E20: Non-coincident | G20: TNSP NAME | H20: DEMAND FORECASTING | I20: NON-COINCIDENT MAXIMUM DEMAND | J20: DESCRIPTOR METRIC | K20: WEATHER CORRECTED MD 50% POE | L20: CONNECTION POINT | N20: MAXIMUM DEMAND | O20: MVA | Q20: 61 | R20: 60 | S20: 61 | T20: 63 | U20: 63 | V20: 62 | W20: 63
E21: Coincident | G21: TNSP NAME | H21: DEMAND FORECASTING | I21: COINCIDENT MAXIMUM DEMAND | J21: DESCRIPTOR METRIC | K21: WEATHER CORRECTED MD 50% POE | L21: CONNECTION POINT | N21: MAXIMUM DEMAND | O21: MVA | Q21: 51 | R21: 51 | S21: 52 | T21: 53 | U21: 53 | V21: 53 | W21: 53
B22: Abermain (33) | C22: CONNECTION POINT RATING | D22: MVA | E22: Non-coincident | G22: TNSP NAME | H22: DEMAND FORECASTING | I22: NON-COINCIDENT MAXIMUM DEMAND | J22: DESCRIPTOR METRIC | K22: CONNECTION POINT RATING | L22: CONNECTION POINT | M22: =B22 -> Abermain (33) | N22: RATING | O22: MVA | Q22: 277 | R22: 277 | S22: 277 | T22: 277 | U22: 277 | V22: 277 | W22: 277
E23: Coincident | G23: TNSP NAME | H23: DEMAND FORECASTING | I23: COINCIDENT MAXIMUM DEMAND | J23: DESCRIPTOR METRIC | K23: CONNECTION POINT RATING | L23: CONNECTION POINT | M23: Abermain (33) | N23: RATING | O23: MVA | Q23: 277 | R23: 277 | S23: 277 | T23: 277 | U23: 277 | V23: 277 | W23: 277
C24: WINTER/SUMMER PEAKING | E24: Non-coincident | G24: TNSP NAME | H24: DEMAND FORECASTING | I24: NON-COINCIDENT MAXIMUM DEMAND | J24: DESCRIPTOR METRIC | K24: WINTER/SUMMER PEAKING | L24: CONNECTION POINT | M24: =#REF! ->  | N24: WINTER/SUMMER | O24: WINTER/SUMMER | Q24: Summer | R24: Summer | S24: Summer | T24: Summer | U24: Summer | V24: Summer | W24: Summer
E25: Coincident | G25: TNSP NAME | H25: DEMAND FORECASTING | I25: COINCIDENT MAXIMUM DEMAND | J25: DESCRIPTOR METRIC | K25: WINTER/SUMMER PEAKING | L25: CONNECTION POINT | N25: WINTER/SUMMER | O25: WINTER/SUMMER | Q25: Summer | R25: Summer | S25: Summer | T25: Summer | U25: Summer | V25: Summer | W25: Summer
C26: ADJUSTMENTS - EMBEDDED GENERATION | D26: MW | E26: Non-coincident | G26: TNSP NAME | H26: DEMAND FORECASTING | I26: NON-COINCIDENT MAXIMUM DEMAND | J26: DESCRIPTOR METRIC | K26: ADJUSTMENTS - EMBEDDED GENERATION | L26: CONNECTION POINT | N26: GENERATED LOAD | O26: MW | Q26: 0 | R26: 0 | S26: 0 | T26: 0 | U26: 0 | V26: 0 | W26: 0
E27: Coincident | G27: TNSP NAME | H27: DEMAND FORECASTING | I27: COINCIDENT MAXIMUM DEMAND | J27: DESCRIPTOR METRIC | K27: ADJUSTMENTS - EMBEDDED GENERATION | L27: CONNECTION POINT | N27: GENERATED LOAD | O27: MW | Q27: 0 | R27: 0 | S27: 0 | T27: 0 | U27: 0 | V27: 0 | W27: 0
C28: WEATHER CORRECTED MD 10% POE | D28: MW | E28: Non-coincident | G28: TNSP NAME | H28: DEMAND FORECASTING | I28: NON-COINCIDENT MAXIMUM DEMAND | J28: DESCRIPTOR METRIC | K28: WEATHER CORRECTED MD 10% POE | L28: CONNECTION POINT | N28: MAXIMUM DEMAND | O28: MW | Q28: 100 | R28: 100 | S28: 99 | T28: 101 | U28: 102 | V28: 102 | W28: 104
E29: Coincident | G29: TNSP NAME | H29: DEMAND FORECASTING | I29: COINCIDENT MAXIMUM DEMAND | J29: DESCRIPTOR METRIC | K29: WEATHER CORRECTED MD 10% POE | L29: CONNECTION POINT | N29: MAXIMUM DEMAND | O29: MW | Q29: 98 | R29: 97 | S29: 96 | T29: 98 | U29: 98 | V29: 98 | W29: 99
C30: WEATHER CORRECTED MD 10% POE | D30: MVA | E30: Non-coincident | G30: TNSP NAME | H30: DEMAND FORECASTING | I30: NON-COINCIDENT MAXIMUM DEMAND | J30: DESCRIPTOR METRIC | K30: WEATHER CORRECTED MD 10% POE | L30: CONNECTION POINT | N30: MAXIMUM DEMAND | O30: MVA | Q30: 101 | R30: 101 | S30: 100 | T30: 102 | U30: 103 | V30: 103 | W30: 104
E31: Coincident | G31: TNSP NAME | H31: DEMAND FORECASTING | I31: COINCIDENT MAXIMUM DEMAND | J31: DESCRIPTOR METRIC | K31: WEATHER CORRECTED MD 10% POE | L31: CONNECTION POINT | N31: MAXIMUM DEMAND | O31: MVA | Q31: 99 | R31: 98 | S31: 97 | T31: 99 | U31: 99 | V31: 99 | W31: 100
C32: WEATHER CORRECTED MD 50% POE | D32: MW | E32: Non-coincident | G32: TNSP NAME | H32: DEMAND FORECASTING | I32: NON-COINCIDENT MAXIMUM DEMAND | J32: DESCRIPTOR METRIC | K32: WEATHER CORRECTED MD 50% POE | L32: CONNECTION POINT | N32: MAXIMUM DEMAND | O32: MW | Q32: 91 | R32: 90 | S32: 90 | T32: 91 | U32: 92 | V32: 92 | W32: 94
E33: Coincident | G33: TNSP NAME | H33: DEMAND FORECASTING | I33: COINCIDENT MAXIMUM DEMAND | J33: DESCRIPTOR METRIC | K33: WEATHER CORRECTED MD 50% POE | L33: CONNECTION POINT | N33: MAXIMUM DEMAND | O33: MW | Q33: 89 | R33: 88 | S33: 87 | T33: 88 | U33: 89 | V33: 89 | W33: 89
C34: WEATHER CORRECTED MD 50% POE | D34: MVA | E34: Non-coincident | G34: TNSP NAME | H34: DEMAND FORECASTING | I34: NON-COINCIDENT MAXIMUM DEMAND | J34: DESCRIPTOR METRIC | K34: WEATHER CORRECTED MD 50% POE | L34: CONNECTION POINT | N34: MAXIMUM DEMAND | O34: MVA | Q34: 92 | R34: 91 | S34: 90 | T34: 92 | U34: 93 | V34: 93 | W34: 94
E35: Coincident | G35: TNSP NAME | H35: DEMAND FORECASTING | I35: COINCIDENT MAXIMUM DEMAND | J35: DESCRIPTOR METRIC | K35: WEATHER CORRECTED MD 50% POE | L35: CONNECTION POINT | N35: MAXIMUM DEMAND | O35: MVA | Q35: 89 | R35: 89 | S35: 88 | T35: 89 | U35: 90 | V35: 90 | W35: 90
B36: Algester | C36: CONNECTION POINT RATING | D36: MVA | E36: Non-coincident | Q36: 202 | R36: 202 | S36: 202 | T36: 202 | U36: 202 | V36: 202 | W36: 202
E37: Coincident | Q37: 202 | R37: 202 | S37: 202 | T37: 202 | U37: 202 | V37: 202 | W37: 202
C38: WINTER/SUMMER PEAKING | E38: Non-coincident | Q38: Summer | R38: Summer | S38: Summer | T38: Summer | U38: Summer | V38: Summer | W38: Summer
E39: Coincident | Q39: Summer | R39: Summer | S39: Summer | T39: Summer | U39: Summer | V39: Summer | W39: Summer
C40: ADJUSTMENTS - EMBEDDED GENERATION | D40: MW | E40: Non-coincident | Q40: 0 | R40: 0 | S40: 0 | T40: 0 | U40: 0 | V40: 0 | W40: 0
E41: Coincident | Q41: 0 | R41: 0 | S41: 0 | T41: 0 | U41: 0 | V41: 0 | W41: 0
C42: WEATHER CORRECTED MD 10% POE | D42: MW | E42: Non-coincident | Q42: 66 | R42: 65 | S42: 65 | T42: 65 | U42: 64 | V42: 63 | W42: 63
E43: Coincident | Q43: 66 | R43: 65 | S43: 65 | T43: 65 | U43: 64 | V43: 63 | W43: 63
C44: WEATHER CORRECTED MD 10% POE | D44: MVA | E44: Non-coincident | Q44: 68 | R44: 67 | S44: 67 | T44: 67 | U44: 66 | V44: 66 | W44: 65
E45: Coincident | Q45: 68 | R45: 67 | S45: 67 | T45: 67 | U45: 66 | V45: 66 | W45: 65
C46: WEATHER CORRECTED MD 50% POE | D46: MW | E46: Non-coincident | Q46: 61 | R46: 60 | S46: 59 | T46: 59 | U46: 59 | V46: 58 | W46: 58
E47: Coincident | Q47: 61 | R47: 60 | S47: 59 | T47: 59 | U47: 59 | V47: 58 | W47: 58
C48: WEATHER CORRECTED MD 50% POE | D48: MVA | E48: Non-coincident | Q48: 63 | R48: 62 | S48: 61 | T48: 61 | U48: 61 | V48: 60 | W48: 60
E49: Coincident | Q49: 63 | R49: 62 | S49: 61 | T49: 61 | U49: 61 | V49: 60 | W49: 60
B50: Ashgrove West (33) | C50: CONNECTION POINT RATING | D50: MVA | E50: Non-coincident | Q50: 179 | R50: 179 | S50: 179 | T50: 179 | U50: 179 | V50: 179 | W50: 179
E51: Coincident | Q51: 179 | R51: 179 | S51: 179 | T51: 179 | U51: 179 | V51: 179 | W51: 179
C52: WINTER/SUMMER PEAKING | E52: Non-coincident | Q52: Summer | R52: Summer | S52: Summer | T52: Summer | U52: Summer | V52: Summer | W52: Summer
E53: Coincident | Q53: Summer | R53: Summer | S53: Summer | T53: Summer | U53: Summer | V53: Summer | W53: Summer
C54: ADJUSTMENTS - EMBEDDED GENERATION | D54: MW | E54: Non-coincident | Q54: 0 | R54: 0 | S54: 0 | T54: 0 | U54: 0 | V54: 0 | W54: 0
E55: Coincident | Q55: 0 | R55: 0 | S55: 0 | T55: 0 | U55: 0 | V55: 0 | W55: 0
C56: WEATHER CORRECTED MD 10% POE | D56: MW | E56: Non-coincident | Q56: 73 | R56: 72 | S56: 71 | T56: 72 | U56: 71 | V56: 71 | W56: 71
E57: Coincident | Q57: 73 | R57: 72 | S57: 71 | T57: 72 | U57: 71 | V57: 71 | W57: 71
C58: WEATHER CORRECTED MD 10% POE | D58: MVA | E58: Non-coincident | Q58: 73 | R58: 73 | S58: 72 | T58: 72 | U58: 72 | V58: 71 | W58: 71
E59: Coincident | Q59: 73 | R59: 73 | S59: 72 | T59: 72 | U59: 72 | V59: 71 | W59: 71
C60: WEATHER CORRECTED MD 50% POE | D60: MW | E60: Non-coincident | Q60: 66 | R60: 65 | S60: 64 | T60: 64 | U60: 64 | V60: 63 | W60: 63
E61: Coincident | Q61: 66 | R61: 65 | S61: 64 | T61: 64 | U61: 64 | V61: 63 | W61: 63
C62: WEATHER CORRECTED MD 50% POE | D62: MVA | E62: Non-coincident | Q62: 66 | R62: 65 | S62: 65 | T62: 65 | U62: 65 | V62: 64 | W62: 64
E63: Coincident | Q63: 66 | R63: 65 | S63: 65 | T63: 65 | U63: 65 | V63: 64 | W63: 64
B64: Belmont | C64: CONNECTION POINT RATING | D64: MVA | E64: Non-coincident | Q64: 1636 | R64: 1636 | S64: 1636 | T64: 1636 | U64: 1636 | V64: 1636 | W64: 1636
E65: Coincident | Q65: 1636 | R65: 1636 | S65: 1636 | T65: 1636 | U65: 1636 | V65: 1636 | W65: 1636
C66: WINTER/SUMMER PEAKING | E66: Non-coincident | Q66: Summer | R66: Summer | S66: Summer | T66: Summer | U66: Summer | V66: Summer | W66: Summer
E67: Coincident | Q67: Summer | R67: Summer | S67: Summer | T67: Summer | U67: Summer | V67: Summer | W67: Summer
C68: ADJUSTMENTS - EMBEDDED GENERATION | D68: MW | E68: Non-coincident | Q68: 0 | R68: 0 | S68: 0 | T68: 0 | U68: 0 | V68: 0 | W68: 0
E69: Coincident | Q69: 0 | R69: 0 | S69: 0 | T69: 0 | U69: 0 | V69: 0 | W69: 0
C70: WEATHER CORRECTED MD 10% POE | D70: MW | E70: Non-coincident | Q70: 511 | R70: 508 | S70: 507 | T70: 514 | U70: 516 | V70: 514 | W70: 514
E71: Coincident | Q71: 430 | R71: 427 | S71: 426 | T71: 432 | U71: 434 | V71: 432 | W71: 432
C72: WEATHER CORRECTED MD 10% POE | D72: MVA | E72: Non-coincident | Q72: 523 | R72: 520 | S72: 519 | T72: 526 | U72: 528 | V72: 525 | W72: 525
E73: Coincident | Q73: 440 | R73: 437 | S73: 436 | T73: 442 | U73: 444 | V73: 442 | W73: 442
C74: WEATHER CORRECTED MD 50% POE | D74: MW | E74: Non-coincident | Q74: 486 | R74: 481 | S74: 479 | T74: 486 | U74: 488 | V74: 484 | W74: 484
E75: Coincident | Q75: 409 | R75: 405 | S75: 403 | T75: 409 | U75: 411 | V75: 407 | W75: 408
C76: WEATHER CORRECTED MD 50% POE | D76: MVA | E76: Non-coincident | Q76: 496 | R76: 492 | S76: 490 | T76: 497 | U76: 499 | V76: 495 | W76: 494
E77: Coincident | Q77: 419 | R77: 414 | S77: 412 | T77: 418 | U77: 420 | V77: 417 | W77: 417
B78: Ashgrove West (110) | C78: CONNECTION POINT RATING | D78: MVA | E78: Non-coincident | Q78: 457 | R78: 457 | S78: 457 | T78: 457 | U78: 457 | V78: 457 | W78: 457
E79: Coincident | Q79: 457 | R79: 457 | S79: 457 | T79: 457 | U79: 457 | V79: 457 | W79: 457
C80: WINTER/SUMMER PEAKING | E80: Non-coincident | Q80: Summer | R80: Summer | S80: Summer | T80: Summer | U80: Summer | V80: Summer | W80: Summer
E81: Coincident | Q81: Summer | R81: Summer | S81: Summer | T81: Summer | U81: Summer | V81: Summer | W81: Summer
C82: ADJUSTMENTS - EMBEDDED GENERATION | D82: MW | E82: Non-coincident | Q82: 0 | R82: 0 | S82: 0 | T82: 0 | U82: 0 | V82: 0 | W82: 0
E83: Coincident | Q83: 0 | R83: 0 | S83: 0 | T83: 0 | U83: 0 | V83: 0 | W83: 0
C84: WEATHER CORRECTED MD 10% POE | D84: MW | E84: Non-coincident | Q84: 163 | R84: 164 | S84: 165 | T84: 168 | U84: 169 | V84: 170 | W84: 172
E85: Coincident | Q85: 146 | R85: 146 | S85: 147 | T85: 149 | U85: 151 | V85: 151 | W85: 153
C86: WEATHER CORRECTED MD 10% POE | D86: MVA | E86: Non-coincident | Q86: 165 | R86: 166 | S86: 167 | T86: 170 | U86: 171 | V86: 172 | W86: 174
E87: Coincident | Q87: 156 | R87: 157 | S87: 157 | T87: 160 | U87: 161 | V87: 162 | W87: 164
C88: WEATHER CORRECTED MD 50% POE | D88: MW | E88: Non-coincident | Q88: 154 | R88: 154 | S88: 155 | T88: 158 | U88: 159 | V88: 159 | W88: 161
E89: Coincident | Q89: 137 | R89: 138 | S89: 138 | T89: 140 | U89: 141 | V89: 142 | W89: 143
C90: WEATHER CORRECTED MD 50% POE | D90: MVA | E90: Non-coincident | Q90: 156 | R90: 156 | S90: 157 | T90: 159 | U90: 161 | V90: 161 | W90: 163
E91: Coincident | Q91: 147 | R91: 147 | S91: 148 | T91: 150 | U91: 151 | V91: 152 | W91: 153
B92: Bundamba | C92: CONNECTION POINT RATING | D92: MVA | E92: Non-coincident | Q92: 686 | R92: 686 | S92: 686 | T92: 686 | U92: 686 | V92: 686 | W92: 686
E93: Coincident | Q93: 686 | R93: 686 | S93: 686 | T93: 686 | U93: 686 | V93: 686 | W93: 686
C94: WINTER/SUMMER PEAKING | E94: Non-coincident | Q94: Summer | R94: Summer | S94: Summer | T94: Summer | U94: Summer | V94: Summer | W94: Summer
E95: Coincident | Q95: Summer | R95: Summer | S95: Summer | T95: Summer | U95: Summer | V95: Summer | W95: Summer
C96: ADJUSTMENTS - EMBEDDED GENERATION | D96: MW | E96: Non-coincident | Q96: 0 | R96: 0 | S96: 0 | T96: 0 | U96: 0 | V96: 0 | W96: 0
E97: Coincident | Q97: 0 | R97: 0 | S97: 0 | T97: 0 | U97: 0 | V97: 0 | W97: 0
C98: WEATHER CORRECTED MD 10% POE | D98: MW | E98: Non-coincident | Q98: 34 | R98: 33 | S98: 33 | T98: 34 | U98: 34 | V98: 34 | W98: 34
E99: Coincident | Q99: 32 | R99: 32 | S99: 32 | T99: 32 | U99: 32 | V99: 32 | W99: 32
C100: WEATHER CORRECTED MD 10% POE | D100: MVA | E100: Non-coincident | Q100: 37 | R100: 36 | S100: 36 | T100: 37 | U100: 37 | V100: 37 | W100: 37
E101: Coincident | Q101: 36 | R101: 35 | S101: 35 | T101: 36 | U101: 36 | V101: 36 | W101: 36
C102: WEATHER CORRECTED MD 50% POE | D102: MW | E102: Non-coincident | Q102: 32 | R102: 32 | S102: 32 | T102: 32 | U102: 32 | V102: 32 | W102: 32
E103: Coincident | Q103: 31 | R103: 31 | S103: 30 | T103: 31 | U103: 31 | V103: 31 | W103: 31
C104: WEATHER CORRECTED MD 50% POE | D104: MVA | E104: Non-coincident | Q104: 35 | R104: 35 | S104: 34 | T104: 35 | U104: 35 | V104: 35 | W104: 35
E105: Coincident | Q105: 34 | R105: 34 | S105: 34 | T105: 34 | U105: 34 | V105: 34 | W105: 34
B106: Goodna | C106: CONNECTION POINT RATING | D106: MVA | E106: Non-coincident | Q106: 218 | R106: 218 | S106: 218 | T106: 218 | U106: 218 | V106: 218 | W106: 218
E107: Coincident | Q107: 218 | R107: 218 | S107: 218 | T107: 218 | U107: 218 | V107: 218 | W107: 218
C108: WINTER/SUMMER PEAKING | E108: Non-coincident | Q108: Summer | R108: Summer | S108: Summer | T108: Summer | U108: Summer | V108: Summer | W108: Summer
E109: Coincident | Q109: Summer | R109: Summer | S109: Summer | T109: Summer | U109: Summer | V109: Summer | W109: Summer
C110: ADJUSTMENTS - EMBEDDED GENERATION | D110: MW | E110: Non-coincident | Q110: 0 | R110: 0 | S110: 0 | T110: 0 | U110: 0 | V110: 0 | W110: 0
E111: Coincident | Q111: 0 | R111: 0 | S111: 0 | T111: 0 | U111: 0 | V111: 0 | W111: 0
C112: WEATHER CORRECTED MD 10% POE | D112: MW | E112: Non-coincident | Q112: 125 | R112: 129 | S112: 133 | T112: 139 | U112: 143 | V112: 146 | W112: 149
E113: Coincident | Q113: 113 | R113: 117 | S113: 120 | T113: 125 | U113: 129 | V113: 131 | W113: 134
C114: WEATHER CORRECTED MD 10% POE | D114: MVA | E114: Non-coincident | Q114: 125 | R114: 129 | S114: 133 | T114: 139 | U114: 144 | V114: 146 | W114: 149
E115: Coincident | Q115: 114 | R115: 117 | S115: 120 | T115: 126 | U115: 130 | V115: 131 | W115: 134
C116: WEATHER CORRECTED MD 50% POE | D116: MW | E116: Non-coincident | Q116: 114 | R116: 117 | S116: 121 | T116: 126 | U116: 130 | V116: 132 | W116: 135
E117: Coincident | Q117: 104 | R117: 107 | S117: 109 | T117: 114 | U117: 118 | V117: 119 | W117: 122
C118: WEATHER CORRECTED MD 50% POE | D118: MVA | E118: Non-coincident | Q118: 114 | R118: 118 | S118: 121 | T118: 127 | U118: 131 | V118: 132 | W118: 135
E119: Coincident | Q119: 104 | R119: 107 | S119: 110 | T119: 115 | U119: 118 | V119: 120 | W119: 122
B120: Loganlea | C120: CONNECTION POINT RATING | D120: MVA | E120: Non-coincident | Q120: 313 | R120: 313 | S120: 313 | T120: 313 | U120: 313 | V120: 313 | W120: 313
E121: Coincident | Q121: 313 | R121: 313 | S121: 313 | T121: 313 | U121: 313 | V121: 313 | W121: 313
C122: WINTER/SUMMER PEAKING | E122: Non-coincident | Q122: Summer | R122: Summer | S122: Summer | T122: Summer | U122: Summer | V122: Summer | W122: Summer
E123: Coincident | Q123: Summer | R123: Summer | S123: Summer | T123: Summer | U123: Summer | V123: Summer | W123: Summer
C124: ADJUSTMENTS - EMBEDDED GENERATION | D124: MW | E124: Non-coincident | Q124: 0 | R124: 0 | S124: 0 | T124: 0 | U124: 0 | V124: 0 | W124: 0
E125: Coincident | Q125: 0 | R125: 0 | S125: 0 | T125: 0 | U125: 0 | V125: 0 | W125: 0
C126: WEATHER CORRECTED MD 10% POE | D126: MW | E126: Non-coincident | Q126: 94 | R126: 92 | S126: 91 | T126: 91 | U126: 90 | V126: 89 | W126: 88
E127: Coincident | Q127: 94 | R127: 92 | S127: 91 | T127: 91 | U127: 90 | V127: 89 | W127: 88
C128: WEATHER CORRECTED MD 10% POE | D128: MVA | E128: Non-coincident | Q128: 95 | R128: 93 | S128: 92 | T128: 91 | U128: 91 | V128: 89 | W128: 89
E129: Coincident | Q129: 95 | R129: 93 | S129: 92 | T129: 91 | U129: 91 | V129: 89 | W129: 89
C130: WEATHER CORRECTED MD 50% POE | D130: MW | E130: Non-coincident | Q130: 86 | R130: 85 | S130: 83 | T130: 83 | U130: 82 | V130: 81 | W130: 80
E131: Coincident | Q131: 86 | R131: 85 | S131: 83 | T131: 83 | U131: 82 | V131: 81 | W131: 80
C132: WEATHER CORRECTED MD 50% POE | D132: MVA | E132: Non-coincident | Q132: 87 | R132: 85 | S132: 84 | T132: 84 | U132: 83 | V132: 81 | W132: 81
E133: Coincident | Q133: 87 | R133: 85 | S133: 84 | T133: 84 | U133: 83 | V133: 81 | W133: 81
B134: Molendinar | C134: CONNECTION POINT RATING | D134: MVA | E134: Non-coincident | Q134: 851 | R134: 851 | S134: 851 | T134: 851 | U134: 851 | V134: 851 | W134: 851
E135: Coincident | Q135: 851 | R135: 851 | S135: 851 | T135: 851 | U135: 851 | V135: 851 | W135: 851
C136: WINTER/SUMMER PEAKING | E136: Non-coincident | Q136: Summer | R136: Summer | S136: Summer | T136: Summer | U136: Summer | V136: Summer | W136: Summer
E137: Coincident | Q137: Summer | R137: Summer | S137: Summer | T137: Summer | U137: Summer | V137: Summer | W137: Summer
C138: ADJUSTMENTS - EMBEDDED GENERATION | D138: MW | E138: Non-coincident | Q138: 0 | R138: 0 | S138: 0 | T138: 0 | U138: 0 | V138: 0 | W138: 0
E139: Coincident | Q139: 0 | R139: 0 | S139: 0 | T139: 0 | U139: 0 | V139: 0 | W139: 0
C140: WEATHER CORRECTED MD 10% POE | D140: MW | E140: Non-coincident | Q140: 485 | R140: 494 | S140: 492 | T140: 495 | U140: 494 | V140: 490 | W140: 491
E141: Coincident | Q141: 450 | R141: 458 | S141: 455 | T141: 459 | U141: 458 | V141: 454 | W141: 454
C142: WEATHER CORRECTED MD 10% POE | D142: MVA | E142: Non-coincident | Q142: 487 | R142: 495 | S142: 493 | T142: 497 | U142: 496 | V142: 491 | W142: 492
E143: Coincident | Q143: 451 | R143: 459 | S143: 457 | T143: 460 | U143: 459 | V143: 455 | W143: 456
C144: WEATHER CORRECTED MD 50% POE | D144: MW | E144: Non-coincident | Q144: 443 | R144: 450 | S144: 447 | T144: 451 | U144: 449 | V144: 444 | W144: 444
E145: Coincident | Q145: 411 | R145: 418 | S145: 415 | T145: 418 | U145: 417 | V145: 412 | W145: 412
C146: WEATHER CORRECTED MD 50% POE | D146: MVA | E146: Non-coincident | Q146: 444 | R146: 452 | S146: 449 | T146: 452 | U146: 450 | V146: 446 | W146: 446
E147: Coincident | Q147: 412 | R147: 419 | S147: 416 | T147: 420 | U147: 418 | V147: 413 | W147: 413
B148: Mudgeeraba (110) | C148: CONNECTION POINT RATING | D148: MVA | E148: Non-coincident | Q148: 1981 | R148: 1981 | S148: 1981 | T148: 1981 | U148: 1981 | V148: 1981 | W148: 1981
E149: Coincident | Q149: 1981 | R149: 1981 | S149: 1981 | T149: 1981 | U149: 1981 | V149: 1981 | W149: 1981
C150: WINTER/SUMMER PEAKING | E150: Non-coincident | Q150: Summer | R150: Summer | S150: Summer | T150: Summer | U150: Summer | V150: Summer | W150: Summer
E151: Coincident | Q151: Summer | R151: Summer | S151: Summer | T151: Summer | U151: Summer | V151: Summer | W151: Summer
C152: ADJUSTMENTS - EMBEDDED GENERATION | D152: MW | E152: Non-coincident | Q152: 0 | R152: 0 | S152: 0 | T152: 0 | U152: 0 | V152: 0 | W152: 0
E153: Coincident | Q153: 0 | R153: 0 | S153: 0 | T153: 0 | U153: 0 | V153: 0 | W153: 0
C154: WEATHER CORRECTED MD 10% POE | D154: MW | E154: Non-coincident | Q154: 296 | R154: 298 | S154: 295 | T154: 296 | U154: 294 | V154: 290 | W154: 288
E155: Coincident | Q155: 269 | R155: 270 | S155: 268 | T155: 269 | U155: 268 | V155: 264 | W155: 263
C156: WEATHER CORRECTED MD 10% POE | D156: MVA | E156: Non-coincident | Q156: 307 | R156: 308 | S156: 306 | T156: 307 | U156: 304 | V156: 301 | W156: 299
E157: Coincident | Q157: 281 | R157: 283 | S157: 280 | T157: 282 | U157: 280 | V157: 276 | W157: 275
C158: WEATHER CORRECTED MD 50% POE | D158: MW | E158: Non-coincident | Q158: 277 | R158: 278 | S158: 275 | T158: 276 | U158: 274 | V158: 270 | W158: 268
E159: Coincident | Q159: 251 | R159: 252 | S159: 249 | T159: 251 | U159: 249 | V159: 245 | W159: 243
C160: WEATHER CORRECTED MD 50% POE | D160: MVA | E160: Non-coincident | Q160: 287 | R160: 288 | S160: 285 | T160: 286 | U160: 284 | V160: 280 | W160: 278
E161: Coincident | Q161: 262 | R161: 264 | S161: 261 | T161: 262 | U161: 260 | V161: 256 | W161: 254
B162: Mudgeeraba (33) | C162: CONNECTION POINT RATING | D162: MVA | E162: Non-coincident | Q162: 101 | R162: 101 | S162: 101 | T162: 101 | U162: 101 | V162: 101 | W162: 101
E163: Coincident | Q163: 101 | R163: 101 | S163: 101 | T163: 101 | U163: 101 | V163: 101 | W163: 101
C164: WINTER/SUMMER PEAKING | E164: Non-coincident | Q164: Summer | R164: Summer | S164: Summer | T164: Summer | U164: Summer | V164: Summer | W164: Summer
E165: Coincident | Q165: Summer | R165: Summer | S165: Summer | T165: Summer | U165: Summer | V165: Summer | W165: Summer
C166: ADJUSTMENTS - EMBEDDED GENERATION | D166: MW | E166: Non-coincident | Q166: 0 | R166: 0 | S166: 0 | T166: 0 | U166: 0 | V166: 0 | W166: 0
E167: Coincident | Q167: 0 | R167: 0 | S167: 0 | T167: 0 | U167: 0 | V167: 0 | W167: 0
C168: WEATHER CORRECTED MD 10% POE | D168: MW | E168: Non-coincident | Q168: 22 | R168: 22 | S168: 21 | T168: 21 | U168: 21 | V168: 21 | W168: 21
E169: Coincident | Q169: 18 | R169: 18 | S169: 17 | T169: 17 | U169: 17 | V169: 17 | W169: 17
C170: WEATHER CORRECTED MD 10% POE | D170: MVA | E170: Non-coincident | Q170: 23 | R170: 23 | S170: 23 | T170: 23 | U170: 23 | V170: 23 | W170: 22
E171: Coincident | Q171: 19 | R171: 19 | S171: 19 | T171: 19 | U171: 19 | V171: 18 | W171: 18
C172: WEATHER CORRECTED MD 50% POE | D172: MW | E172: Non-coincident | Q172: 17 | R172: 17 | S172: 17 | T172: 17 | U172: 17 | V172: 17 | W172: 17
E173: Coincident | Q173: 14 | R173: 14 | S173: 14 | T173: 14 | U173: 14 | V173: 14 | W173: 14
C174: WEATHER CORRECTED MD 50% POE | D174: MVA | E174: Non-coincident | Q174: 19 | R174: 18 | S174: 18 | T174: 18 | U174: 18 | V174: 18 | W174: 18
E175: Coincident | Q175: 15 | R175: 15 | S175: 15 | T175: 15 | U175: 15 | V175: 15 | W175: 15
B176: Murarrie (Belmont) | C176: CONNECTION POINT RATING | D176: MVA | E176: Non-coincident | Q176: 3217 | R176: 3217 | S176: 3217 | T176: 3217 | U176: 3217 | V176: 3217 | W176: 3217
E177: Coincident | Q177: 3217 | R177: 3217 | S177: 3217 | T177: 3217 | U177: 3217 | V177: 3217 | W177: 3217
C178: WINTER/SUMMER PEAKING | E178: Non-coincident | Q178: Summer | R178: Summer | S178: Summer | T178: Summer | U178: Summer | V178: Summer | W178: Summer
E179: Coincident | Q179: Summer | R179: Summer | S179: Summer | T179: Summer | U179: Summer | V179: Summer | W179: Summer
C180: ADJUSTMENTS - EMBEDDED GENERATION | D180: MW | E180: Non-coincident | Q180: 0 | R180: 0 | S180: 0 | T180: 0 | U180: 0 | V180: 0 | W180: 0
E181: Coincident | Q181: 0 | R181: 0 | S181: 0 | T181: 0 | U181: 0 | V181: 0 | W181: 0
C182: WEATHER CORRECTED MD 10% POE | D182: MW | E182: Non-coincident | Q182: 359 | R182: 377 | S182: 376 | T182: 367 | U182: 368 | V182: 393 | W182: 394
E183: Coincident | Q183: 359 | R183: 377 | S183: 376 | T183: 367 | U183: 368 | V183: 393 | W183: 394
C184: WEATHER CORRECTED MD 10% POE | D184: MVA | E184: Non-coincident | Q184: 366 | R184: 384 | S184: 383 | T184: 374 | U184: 375 | V184: 400 | W184: 401
E185: Coincident | Q185: 366 | R185: 384 | S185: 383 | T185: 374 | U185: 375 | V185: 400 | W185: 401
C186: WEATHER CORRECTED MD 50% POE | D186: MW | E186: Non-coincident | Q186: 340 | R186: 359 | S186: 358 | T186: 348 | U186: 349 | V186: 375 | W186: 376
E187: Coincident | Q187: 340 | R187: 359 | S187: 358 | T187: 348 | U187: 349 | V187: 375 | W187: 376
C188: WEATHER CORRECTED MD 50% POE | D188: MVA | E188: Non-coincident | Q188: 347 | R188: 365 | S188: 364 | T188: 354 | U188: 356 | V188: 382 | W188: 383
E189: Coincident | Q189: 347 | R189: 365 | S189: 364 | T189: 354 | U189: 356 | V189: 382 | W189: 383
B190: Palmwoods | C190: CONNECTION POINT RATING | D190: MVA | E190: Non-coincident | Q190: 827 | R190: 827 | S190: 827 | T190: 827 | U190: 827 | V190: 827 | W190: 827
E191: Coincident | Q191: 827 | R191: 827 | S191: 827 | T191: 827 | U191: 827 | V191: 827 | W191: 827
C192: WINTER/SUMMER PEAKING | E192: Non-coincident | Q192: Summer | R192: Summer | S192: Summer | T192: Summer | U192: Summer | V192: Summer | W192: Summer
E193: Coincident | Q193: Summer | R193: Summer | S193: Summer | T193: Summer | U193: Summer | V193: Summer | W193: Summer
C194: ADJUSTMENTS - EMBEDDED GENERATION | D194: MW | E194: Non-coincident | Q194: 0 | R194: 0 | S194: 0 | T194: 0 | U194: 0 | V194: 0 | W194: 0
E195: Coincident | Q195: 0 | R195: 0 | S195: 0 | T195: 0 | U195: 0 | V195: 0 | W195: 0
C196: WEATHER CORRECTED MD 10% POE | D196: MW | E196: Non-coincident | Q196: 292 | R196: 294 | S196: 296 | T196: 305 | U196: 309 | V196: 310 | W196: 313
E197: Coincident | Q197: 285 | R197: 286 | S197: 288 | T197: 298 | U197: 302 | V197: 303 | W197: 305
C198: WEATHER CORRECTED MD 10% POE | D198: MVA | E198: Non-coincident | Q198: 319 | R198: 321 | S198: 323 | T198: 333 | U198: 338 | V198: 339 | W198: 342
E199: Coincident | Q199: 315 | R199: 317 | S199: 319 | T199: 329 | U199: 334 | V199: 335 | W199: 338
C200: WEATHER CORRECTED MD 50% POE | D200: MW | E200: Non-coincident | Q200: 269 | R200: 270 | S200: 272 | T200: 281 | U200: 285 | V200: 286 | W200: 288
E201: Coincident | Q201: 264 | R201: 264 | S201: 266 | T201: 275 | U201: 278 | V201: 279 | W201: 281
... 4678 more rows

Sheet 7.1 Policies and Procedures
B1: =(LOOKUP(dms_Model,dms_Model_List,dms_Worksheet_List)) -> REGULATORY REPORTING STATEMENT
B2: =INDEX(dms_TradingNameFull_List,MATCH(dms_TradingName,dms_TradingName_List)) -> Queensland Electricity Transmission Corporation Limited trading as Powerlink Queensland
B3: =CONCATENATE(FRCP_y1," to ",FRCP_y5) -> 2017-18 to 2021-22
B4: 7.1 PLANS, POLICIES, PROCEDURES AND STRATEGIES
B6: Instructions
B7: =CONCATENATE(dms_TradingName, " must list and provide a brief description of key internal plans, "&"policies, procedures or strategies that are used by it to plan and conduct its day to day operations and that have been relied upon in the development of its regulatory proposal. "&dms_TradingName," must identify any internal plans, policies, procedures and strategies that have changed in the current regulatory control period "&"or that are expected to change before the next regulatory control period where the change has been identified as a step change.") -> Powerlink must list and provide a brief description of key internal plans, policies, procedures or strategies that are used by it to plan and conduct its day to day operations and that have been relied upon in the development of its regulatory proposal. Powerlink must identify any internal plans, policies, procedures and strategies that have changed in the current regulatory control period or that are expected to change before the next regulatory control period where the change has been identified as a step change.
B11: 7.1.1 - PLANS, POLICIES, PROCEDURES AND STRATEGIES
C13: Brief description | D13: Relevance to regulatory proposal | E13: Expenditure impact
C14: Description of the plan, policy, procedure or strategy. | D14: Identify the element of the proposal/supporting documents that the policy, plan, procedure or strategy is relevant to e.g. replacement capex, capacity utilisation thresholds, opex | E14: Is this policy, plan or procedure identified in the response to section 4 'Step Changes' of the notice (yes or no)?
B15: Corporate
B16: Statement of Corporate Intent 2014/15 | C16: Statement of the strategic intent and performance objectives for Powerlink in the most recent full financial year. | D16: Briefly describes Powerlink's business strategy and corporate objectives, which provide context for the Revenue Proposal. | E16: No
B19: Governance framework
B20: Asset Management Policy | C20: Sets out the direction and framework for the sustainable management of all network and non-network assets. | D20: Forecast capital expenditure Forecast operating expenditure | E20: No
B21: Asset Management Framework | C21: Defines the asset management framework for network assets. | D21: Forecast capital expenditure Forecast operating expenditure | E21: No
B37: Accounting policies, procedures and methodologies (including a capitalisation policy, depreciation policy and an approved expenditure allocation methodology)
B38: Powerlink Cost Allocation Methodology | C38: Sets out Powerlink’s methodology for attributing costs to, or allocating costs between or within prescribed, negotiated and other non-regulated transmission services. | D38: Guides allocation of costs to prescribed transmission services which are the subject of the Revenue Proposal. | E38: No
B39: Property Plant & Equipment - Recognition | C39: Sets out the policies and procedures for capitalisation of asset expenditure | D39: Allocation of expendituture to forecast capital or operating expenditure categories | E39: No
B40: Depreciation of Fixed Assets | C40: Sets out the approach to depreciation (methodology and assignment of useful life) for fixed assets. | D40: Forecast depreciation | E40: No
B41: Asset management plan or equivalent documentation
B42: Asset Management Policies
B43: Asset Risk - Framework | C43: Outlines the risk framework applied by Powerlink in the development of its Asset Management Plan. | D43: Forecast capital expenditure Forecast operating expenditure | E43: No
B44: Asset Planning Criteria | C44: Outlines the criteria Powerlink applies in planning of the transmission network. | D44: Forecast capital expenditure | E44: No
B45: Asset End of Life Policy | C45: Establishes the overarching approach to network assets which have reached end of life. | D45: Forecast capital expenditure Forecast operating expenditure | E45: No
B46: Asset Refurbishment Policy | C46: Establishes the overarching approach to operational refurbishment needs, plans & projects. | D46: Forecast operating expenditure | E46: No
B47: Asset Maintenance Policy | C47: Establishes the overarching approach to maintenance needs, plans and work. | D47: Forecast operating expenditure | E47: No
B48: Asset Management Strategies
B49: Asset Management Strategy | C49: Outlines the asset management strategy applied over the life cycle of network assets. | D49: Forecast capital expenditure Forecast operating expenditure | E49: No
B50: Transmission Line Asset Methodology | C50: Sets out the whole of life asset management philosophy for Powerlink’s Transmission Line assets. | D50: Forecast capital expenditure Forecast operating expenditure | E50: No
B51: Substation Asset Methodology | C51: Sets out the whole of life asset management philosophy for Powerlink’s Substation assets. | D51: Forecast capital expenditure Forecast operating expenditure | E51: No
B52: Land Asset Methodology | C52: Sets out the whole of life asset management philosophy for Powerlink’s Land assets. | D52: Forecast capital expenditure Forecast operating expenditure | E52: No
B53: Digital Asset Management | C53: Sets out the whole of life asset management philosophy for Powerlink’s Digital assets. | D53: Forecast capital expenditure Forecast operating expenditure | E53: No
B54: HV Underground Cable Asset Methodology | C54: Sets out the whole of life asset management philosophy for Powerlink’s HV underground cable assets. | D54: Forecast capital expenditure Forecast operating expenditure | E54: No
B55: Operational Technology Asset Strategy 2015-2022 | C55: Outlines the approach to asset management for Operational Technology systems. | D55: Forecast capital expenditure | E55: No
B56: Operational Technology Business Strategy 2015-2022 | C56: Outlines strategic initiatives for Operational Technology (OT) systems | D56: Forecast capital expenditure | E56: No
B57: Secondary Systems Asset Strategy 2015-2022 | C57: Outlines the approach to asset management for Secondary systems | D57: Forecast capital expenditure | E57: No
B58: Secondary Systems Business Strategy 2015-2022 | C58: Outlines strategic initiatives for Secondary Systems. | D58: Forecast capital expenditure | E58: No
B59: Telecommunications Asset Strategy 2015-2022 - Strategy | C59: Outlines the approach to asset management for Telecommunications systems. | D59: Forecast capital expenditure | E59: No
B60: Telecommunications Business Strategy 2015-2022 | C60: Outlines strategic initiatives for Telecommunications systems. | D60: Forecast capital expenditure | E60: No
B63: Asset Management Plans
B64: Asset Management Plan | C64: Outlines optimised network investment plans. | D64: Forecast capital expenditure Forecast operating expenditure | E64: No
B65: Transmission Annual Planning Report 2015 | C65: Provides information to interested stakeholders on the planning and development of the Queensland transmission network. | D65: Forecast capital expenditure | E65: No
B66: Operational Technology Development Plan 2015-2022 | C66: Outlines development plans for Operational Technology | D66: Forecast capital expenditure | E66: No
B67: Secondary Systems Development Plan 2015-2022 | C67: Outlines development plans for Secondary Systems | D67: Forecast capital expenditure | E67: No
B68: Telecommunications Development Plan 2015-2022 | C68: Outlines development plans for Telecommunications | D68: Forecast capital expenditure | E68: No
B87: Capital expenditure policies and procedures (including capex approval policies and procedures and replacement policy)
B88: Expenditure Forecasting Methodology | C88: Sets out Powerlink's capital (and operating) expenditure forecating methodology. | D88: Forecast capital expenditure | E88: No
B89: Non load-driven capital expenditure forecasting methodology | C89: Methodology for forecasting of non load-driven capital expenditure | D89: Forecast capital expenditure | E89: No
B90: Project Approval Process for Regulated Network Capital Projects - Procedure | C90: Provides a high level overview of network capital project approval process. | D90: Forecast capital expenditure Forecast operating expenditure | E90: No
B92: Internal standards for network planning, design, maintenance and operation
B93: Asset Planning Criteria | C93: Outlines the criteria Powerlink applies in planning of the transmission network. | D93: Forecast capital expenditure | E93: No
B94: Asset End of Life Policy | C94: Establishes the overarching approach to network assets which have reached end of life. | D94: Forecast capital expenditure Forecast operating expenditure | E94: No
B172: Procurement and contracting out policies
B173: Procurement standard | C173: Describes approach to procurement practices. | D173: Forecast capital expenditure Forecast operating expenditure | E173: No
B174: Information technology policies or strategies
B175: Non-network Plan | C175: Describes Powerlink's non-network programs to 2022. | D175: Forecast capital expenditure | E175: No
B211: Demand management policies or strategies
B212: Transmission Annual Planning Report 2015 | C212: Provides information to interested parties on network developments and potential opportunities for provision of demand management solutions. | D212: Forecast capital expenditure Forecast operating expenditure | E212: No
B215: Self insurance guidelines or policy
B216: Finity Report on Self Insurance | C216: Sets out Powerlink's independent advice on self insurance requirements for the 2018-22 regulatory period. | D216: Forecast operating expenditure | E216: No
B217: Land and easement acquisition polices
B218: Powerlink - Understanding Designation for Transmission Line Infrastructure | C218: Sets out process and requirements for community infrastructure designation | D218: Forecast capital expenditure | E218: No
B219: Powerlink - Understanding resumptions for Transmission Line Infrastructure | C219: Sets out process and requirements for resumption of land and easements | D219: Forecast capital expenditure | E219: No
B220: Appendix 4 - Powerlink Manual, Guidelines for environmental assessment and consultation procedures for designation of land for community infrastructure | C220: Sets out guidelines for environmental and public consultation procedures under the Sustainable Planning Act | D220: Forecast capital expenditure | E220: No
B222: Asset security plans and policies
B223: Security Strategy | C223: Outlines Powerlink’s security drivers and strategy in regard to physical security, personnel security and information security. | D223: Forecast capital expenditure | E223: No
B233: Disaster recovery policy
B234: Business resilience policy | C234: Sets out Powerlink's approach to proactively plan for and management the impact of emergencies and natural disasters to the transmission network and its business operations. | E234: No

Sheet 7.2 Contingent projects
B1: =(LOOKUP(dms_Model,dms_Model_List,dms_Worksheet_List)) -> REGULATORY REPORTING STATEMENT
B2: =INDEX(dms_TradingNameFull_List,MATCH(dms_TradingName,dms_TradingName_List)) -> Queensland Electricity Transmission Corporation Limited trading as Powerlink Queensland
B3: =CONCATENATE(FRCP_y1," to ",FRCP_y5) -> 2017-18 to 2021-22
B4: 7.2 CONTINGENT PROJECTS
B7: 7.2.1 - PROPOSED CONTINGENT PROJECTS FOR THE FORTHCOMING REGULATORY CONTROL PERIOD
B8: Instructions
B9: =CONCATENATE(dms_TradingName," is required to populate all input cells (yellow) in table 7.2.1 presented below. Additional rows may be added by ",dms_TradingName," if required." ) -> Powerlink is required to populate all input cells (yellow) in table 7.2.1 presented below. Additional rows may be added by Powerlink if required.
B11: Proposed contingent project name | C11: Proposed contingent capital expenditure ($0's, nominal) | D11: Proposed trigger events | E11: =CONCATENATE("Proposed MAR for ", FRCP_y1," ($0's, nominal)") -> Proposed MAR for 2017-18 ($0's, nominal) | F11: =CONCATENATE("5 per cent of the ", FRCP_y1," ($0's, nominal) MAR") -> 5 per cent of the 2017-18 ($0's, nominal) MAR
B12: North West Surat Basin Area | C12: 147202350 | D12: • Commitment of additional load in the north west Surat Basin area that results in forecast net transfer on the transmission system that exceeds the thermal and/or voltage stability limits; • Successful completion of the RIT-T, including a comprehensive assessment of credible options, that demonstrates a network investment by Powerlink maximises the net market benefits while meeting Powerlink’s reliability of supply obligations to the north west Surat Basin area; and • Powerlink Board commitment to proceed with the project subject to the AER amending Powerlink’s revenue determination pursuant to the Rules. | E12: 767374032 | F12: =+E12*0.05 -> 38368701.6
B13: Central to North Queensland Reinforcement | C13: 55133629 | D13: • Commitment of additional load to be connected to the Central West and/or North Queensland zones that requires the dispatch of higher cost generation in northern Queensland to maintain power transfers within limits ; • Successful completion of the RIT-T, including a comprehensive assessment of credible options, that demonstrates a network investment by Powerlink maximises the net market benefits while meeting Powerlink’s reliability of supply obligations to North Queensland; • Determination by the AER under clause 5.16.6 of the Rules that the proposed investment satisfies the RIT-T; and • Powerlink Board commitment to proceed with the project subject to the AER amending Powerlink’s revenue determination pursuant to the Rules. | E13: =+$E$12 -> 767374032 | F13: =+E13*0.05 -> 38368701.6
B14: Souther Galilee Basin Connection Shared Network Works | C14: 116884270 | D14: • Commitment of additional load in excess of 195 MW to be supplied from the Lilyvale Substation; • Successful completion of the RIT-T, including a comprehensive assessment of credible options, that demonstrates a network investment by Powerlink maximises the net market benefits while meeting reliability of supply obligations to North Queensland; and • Powerlink Board commitment to proceed with the project subject to the AER amending Powerlink’s revenue determination pursuant to the Rules. | E14: =+$E$12 -> 767374032 | F14: 38368701.6
B15: Northern Bowen Basin Area | C15: 55654410.55 | D15: • Commitment of additional load in excess of 30 MW to be supplied from the network between Moranbah and Collinsville 132kV substations, including supply directly from either of these substations; • Successful completion of the RIT-T, including a comprehensive assessment of the credible options, that demonstrates a network investment by Powerlink maximises the net market benefits while meeting reliability of supply obligations to the Northern Bowen Basin area; and • Powerlink Board commitment to proceed with the project subject to the AER amending Powerlink’s revenue determination pursuant to the Rules. | E15: 767374032 | F15: 38368701.6
B16: Bowen Industrial Estate | C16: 42945677.21 | D16: • Commitment of additional load in excess of 10 MW to be supplied from Bowen North Substation; • Successful completion of the RIT-T, including a comprehensive assessment of the credible options, that demonstrates a network investment by Powerlink maximises the net market benefits while meeting reliability of supply obligations to the Bowen area; and • Powerlink Board commitment to proceed with the project subject to the AER amending Powerlink’s revenue determination pursuant to the Rules. | E16: 767374032 | F16: 38368701.6
B17: QNI Upgrade (Queensland Component) | C17: 66662072 | D17: • Successful completion of the RIT-T demonstrating a network investment by Powerlink maximises the net market benefits from increasing the capacity of QNI either northward or southward or in both directions; • Determination by the AER under clause 5.16.6 of the Rules that the proposed investment satisfies the RIT-T; and • Powerlink Board commitment to proceed with the project subject to the AER amending Powerlink’s revenue determination pursuant to the Rules. | E17: 767374032 | F17: 38368701.6
B18: Central West to Gladstone Area Reinforcement | C18: 105499614 | D18: • Successful completion of the RIT-T demonstrating a network investment by Powerlink maximises the net market benefits from increasing the capacity the 275kV network between the Central West and Gladstone zones; • Determination by the AER under clause 5.16.6 of the Rules that the proposed investment satisfies the RIT-T; and • Powerlink Board commitment to proceed with the project subject to the AER amending Powerlink’s revenue determination pursuant to the Rules. | E18: 767374032 | F18: 38368701.6
E19: 767374032 | F19: 38368701.6
E20: 767374032 | F20: 38368701.6
E21: 767374032 | F21: 38368701.6
E22: 767374032 | F22: 38368701.6
E23: 767374032 | F23: 38368701.6
E24: 767374032 | F24: 38368701.6
E25: 767374032 | F25: 38368701.6
E26: 767374032 | F26: 38368701.6
E27: 767374032 | F27: 38368701.6
E28: 767374032 | F28: 38368701.6
E29: 767374032 | F29: 38368701.6
E30: 767374032 | F30: 38368701.6
E31: 767374032 | F31: 38368701.6

Sheet 7.3 Obligations
B1: =(LOOKUP(dms_Model,dms_Model_List,dms_Worksheet_List)) -> REGULATORY REPORTING STATEMENT
B2: =INDEX(dms_TradingNameFull_List,MATCH(dms_TradingName,dms_TradingName_List)) -> Queensland Electricity Transmission Corporation Limited trading as Powerlink Queensland
B3: =CONCATENATE(FRCP_y1," to ",FRCP_y5) -> 2017-18 to 2021-22
B4: 7.3 OBLIGATIONS, REQUIREMENTS & STANDARDS
B7: Instructions
B8: =CONCATENATE("Outline those obligations and requirements that ",dms_TradingName, " identifies as having a material impact on expenditure requirements.") -> Outline those obligations and requirements that Powerlink identifies as having a material impact on expenditure requirements.
B11: 7.3.1 - OBLIGATIONS OR REQUIREMENTS
C12: Brief description | D12: Relevance to regulatory proposal | E12: Expenditure impact
C13: Description of relevant obligations or requirements within the instrument (e.g. safety obligations, reliability targets) | D13: Identify what element of the proposal/supporting documents the obligation or requirement is relevant to e.g. replacement capex, capacity utilisation thresholds, opex | E13: Is the obligation or requirement identified in the response to section 4 'Step Changes' of the notice (yes or no)?
B14: Legislation
B15: National Electricity Law (NEL) | C15: Electricity transmission entities have a large number of obligations under the NEL. The most significant obligations are to: register with AEMO as a "Registered Participant"; comply with the transmission determination that applies to the electricity transmission network services provided; provide the AER with the necessary information or prepare, maintain or keep the information as is requested by the AER in either a "relevant notice" or a "regulatory information instrument"; provide information to the AER for the purpose of the preparation of a NSP's performance or financial report; comply with the guidelines established by AEMO in relation to the shedding and restoration of loads in order to ensure the safety and security of the National Electricity System; comply with a wide range of obligations relating to the determination and resolution of access disputes, as well as to the restrictions on, variation of and compliance with access determinations; and comply with the general obligation not to prevent or hinder the access of another person to a regulated network service. | D15: Revenue Proposal | E15: No
B16: Electricity Act 1994 (Qld) | C16: This Act includes the following key obligations: (a) comply with technical conditions for operating the transmission grid in the transmission authority area, regulations and National Electricity Law and Rules; (b) must properly take into account the environmental impacts of its activities; (c) pay the amounts required under the authority or the regulations for administering the authority and its conditions; (d) must also pay an annual fee that is a proportion of the cost of the State’s funding commitments to national energy market regulation (AEMC Levy). | D16: Forecast capital expenditure Forecast operating expenditure | E16: No
B17: Electricity Regulation 2006 (Qld) | C17: This Regulation is focused on ensuring a secure, efficient and economic supply of electricity to customers on fair and reasonable terms, ensuring customers' interests are adequately protected, provide for proper measurement and information provision regarding the energy efficiency and performance of electrical equipment and prescribes particular conditions of employees in the government owned electricity industry. | D17: Forecast capital expenditure Forecast operating expenditure | E17: No
B18: Electrical Safety Act 2002(Qld) | C18: This Act sets out compliance obligations for electricity entities, particularly the responsibility to ensure that all electricity inspection, testing and maintenance works are operated in a way that is electrically safe. | D18: Forecast capital expenditure Forecast operating expenditure | E18: No
B19: Electrical Safety Regulation 2013 (Qld) | C19: This Regulation sets out the more detailed requirements for how an electricity entity complies with the Electrical Safety Act. | D19: Forecast capital expenditure Forecast operating expenditure | E19: No
B20: Workplace Health and Safety Act 2011(Qld) | C20: This Act sets out the requirements for Powerlink to maintain appropriate health and safety standards at its place of business to ensure the safety of its employees and other persons. | D20: Forecast capital expenditure Forecast operating expenditure | E20: No
B21: Workplace Health and Safety Regulation 2011 (Qld) | C21: The Regulation sets out the legal requirements intended to prevent or control workplace health and safety hazards | D21: Forecast capital expenditure Forecast operating expenditure | E21: No
B22: Acquisition of Land Act 1967 (Qld) | C22: This Act relates to the acquiring of land for the purpose of constructing an easement and the payment of compensation to the holder of the land over which an easement is to be taken. | D22: Forecast capital expenditure | E22: No
B23: Acquisition of Land Regulation 2003 (Qld) | C23: The Regulation sets out the more detailed legal requirements to ensure compliance with the Acquisition of Land Act 1967. | D23: Forecast capital expenditure | E23: No
B24: Land Act 1994 (Qld) | C24: This Act sets out a range of legal obligations related to the registration and administration of easements | D24: Forecast capital expenditure Forecast operating expenditure | E24: No
B25: Land Title Act 1994 (Qld) | C25: This Act relates to the registration and administration of easements and are broadly similar to its obligations under the Land Act 1994. | D25: Forecast capital expenditure Forecast operating expenditure | E25: No
B26: Land Act Regulation 2009 (Qld) | C26: This Regulation sets out the obligations under the Land Act relating to the issuing and managing of Trustee issued leases and permits to third parties. | D26: Forecast capital expenditure Forecast operating expenditure | E26: No
B27: Sustainable Planning Act 2009 (Qld) and associated regulation | C27: This Act sets out the framework to achieve ecological sustainability by managing the process by which development takes place, managing the effects of development on the environment and continuing the coordination and integration of planning at the local, regional and State levels. Community infrastructure designation processes that are applied for the development of Powerlink's network infrastructure are provided for within this Act. | D27: Forecast capital expenditure | E27: No
B28: Environmental Protection Act 1994 and subordinate legislation (Qld) | C28: This Act sets out the environmental requirements that Powerlink must take into account when constructing, operating and maintaining its network infrastructure or related operations. | D28: Forecast capital expenditure Forecast operating expenditure | E28: No
B29: Nature Conservation Act 1992 and subordinate legislation (Qld) | C29: This Act and related subordinate legislation sets out the framework under which Powerlink may obtain permission to construct, operate and maintain network infrastructure within national park areas. | D29: Forecast capital expenditure Forecast operating expenditure | E29: No
B30: Vegetation Management Act 1999 (Qld) Vegetation Management Regulations 2000 | C30: This Act sets out requirements for the clearing, conservation and management of native vegetation related to Powerlink constructing, operating and maintaining its transmission network infrastructure. | D30: Forecast capital expenditure Forecast operating expenditure | E30: No
B31: Biosecurity Act 2014 (Qld) | C31: This Acts sets out a framework for managing biosecurity risks that Powerlink must apply when constructing, operating and maintaining transmission infrastructure. | D31: Forecast capital expenditure Forecast operating expenditure | E31: No
B32: Plant Protection Act 1989 (Qld) and associated regulation | C32: This Act is focused on the prevention, control and removal of plants classified as pests in Queensland. | D32: Forecast capital expenditure Forecast operating expenditure | E32: No
B33: Environmental Offsets Act 2014 (Qld) and associated regulation | C33: This Act sets out the requirements for implementing environmental offsets for certain prescribed activities that have an environmental impact. | D33: Forecast capital expenditure Forecast operating expenditure | E33: No
B34: National Greenhouse and Energy Reporting Act 2007 (Cth) and associated regulation | C34: This Act establishes a single national reporting framework for the reporting and dissemination of information related to greenhouse gas emissions, projects, energy consumption and energy production of businesses. | D34: Forecast operating expenditure | E34: No
B35: Environmental Protection and Biodiversity Conservation Act 1999 (Cth) and associated regulation | C35: This Act aims to protect the environment, particularly related to National Environmental Significance. Powerlink must comply with this Act when developing and constructing transmission network infrastructure. | D35: Forecast capital expenditure Forecast operating expenditure | E35: No
B36: Aboriginal Cultural Heritage Act 2003(Qld) | C36: This Act is focused on the protection and conservation of Aboriginal cultural heritage and will impact Powerlink's activities related to the construction, operating and maintenance of transmission network infrastructure. | D36: Forecast capital expenditure Forecast operating expenditure | E36: No
B37: Water Act 2000 (Qld) | C37: This Act provides for the sustainable management of water and other resources and the establishment and operation of water authorities. | D37: Forecast capital expenditure Forecast operating expenditure | E37: No
B38: Industrial Relations Act 1996(Qld) | C38: This Act provides a framework for industrial relations that supports economic prosperity and social justice. | D38: Escalation Rates & Project Cost Escalation Forecast capital expenditure Forecast operating expenditure | E38: No
B39: Fair Work Act and Regulations 2009 (Cth) | C39: This Act and Regulation is focused on providing a balanced framework for cooperative and productive workplace relations that promotes national economic prosperity and social inclusion for all Australians. | D39: Escalation Rates & Project Cost Escalation Forecast capital expenditure Forecast operating expenditure | E39: No
B226: Licences
B227: Electricity Act 1994 (Qld) | C227: Powerlink's Transmission Authority sets out the licence obligations and reliability standard to which Powerlink must comply. | D227: Forecast capital expenditure Forecast operating expenditure | E227: No
B231: Rules
B232: National Electricity Rules | C232: The Rules contain provisions that impose specific obligations on the different entities that operate within the electricity industry. TNSPs, such as Powerlink, have a number of obligations under the Rules which apply to different parts of their operations, including registration as a NSP, technical standards of operation, network connections, economic regulation and metering. | D232: Revenue Proposal | E232: No
B236: Orders
B237: Nil
B238: Codes
B239: Electrical Code of Practice 2013 Managing Electrical Risks in the Workplace | C239: This Code sets out practices to manage electrical risk when working near exposed live parts. | D239: Forecast capital expenditure Forecast operating expenditure | E239: No
B240: Electrical Code of Practice 2010 Works | C240: This Code sets out practices to manage electrical safety risks associated with earthing systems, underground cable systems and supporting structures for overhead lines forming part of the works of an electricity entity. | D240: Forecast capital expenditure Forecast operating expenditure | E240: No
B241: Code of Practice 2011 How to Manage and Control Asbestos in the workplace. | C241: This Code sets out practices to control the risks of asbestos-containing materials in workplaces. | D241: Forecast capital expenditure Forecast operating expenditure | E241: No
B242: Code of Practice 2011 How to Safely remove Asbestos | C242: This Code sets out practices for the safe removal of asbestos and asbestos-containing material from buildings and structures, plant and equipment and vehicles. | D242: Forecast capital expenditure Forecast operating expenditure | E242: No
B243: Code of Practice 2010 - Working Near Overhead and Underground Electric Lines | C243: This Code sets out compliance requirements to ensure that no person, plant or thing comes within an unsafe distance (exclusion zone) of an overhead electric line. | D243: Forecast capital expenditure Forecast operating expenditure | E243: No
B254: Guidelines
B255: AER's Better Regulation Guidelines and Schemes | C255: Guidelines relate to confidentiality, expenditure forecast assessment, cost allocation, capital expenditure incentives, rate of return and consumer engagement. Schemes include STPIS and EBSS. | D255: Revenue Proposal
B293: Default agreements
B294: Nil
B295: Other
B296: Nil

Sheet 7.4 Shared Assets
B1: =(LOOKUP(dms_Model,dms_Model_List,dms_Worksheet_List)) -> REGULATORY REPORTING STATEMENT
B2: =INDEX(dms_TradingNameFull_List,MATCH(dms_TradingName,dms_TradingName_List)) -> Queensland Electricity Transmission Corporation Limited trading as Powerlink Queensland
B3: =CONCATENATE(FRCP_y1," to ",dms_FRCP_FinalYear_Num) -> 2017-18 to 2021-22
B4: 7.4 SHARED ASSETS
B6: 7.4.1 - TOTAL UNREGULATED REVENUE EARNED WITH SHARED ASSETS
B7: Name of shared asset unregulated service | C7: Description of shared assets used to provide the service | D7: Shared asset unregulated revenue ($0's, nominal) | L7: =CONCATENATE("Shared asset unregulated revenue ($0's, real ", dms_DollarReal,")") -> Shared asset unregulated revenue ($0's, real June 2017)
D8: =PRCP_y1 -> 2007-08 | E8: =PRCP_y2 -> 2008-09 | F8: =PRCP_y3 -> 2009-10 | G8: =PRCP_y4 -> 2010-11 | H8: =PRCP_y5 -> 2011-12 | I8: =CRCP_y1 -> 2012-13 | J8: =CRCP_y2 -> 2013-14 | K8: =CRCP_y3 -> 2014-15 | L8: =CRCP_y4 -> 2015-16 | M8: =CRCP_y5 -> 2016-17 | N8: =CONCATENATE("Total ", PRCP_y1, "-", CRCP_y5) -> Total 2007-08-2016-17 | O8: =FRCP_y1 -> 2017-18 | P8: =FRCP_y2 -> 2018-19 | Q8: =FRCP_y3 -> 2019-20 | R8: =FRCP_y4 -> 2020-21 | S8: =FRCP_y5 -> 2021-22 | T8: =CONCATENATE("Total ",FRCP_y1, "-", FRCP_y5) -> Total 2017-18-2021-22
B9: Oil Testing | C9: Oil lab, tools and equipment. | D9: 521418.25 | E9: 293097.56 | F9: 294038.87 | G9: 373143.89 | H9: 305507.56 | I9: 347400.6 | J9: 260391.96 | K9: 423787.22 | L9: 432807.9756 | M9: 477785.3758 | N9: =SUM(D9:M9) -> 3729379.261 | O9: 525595.071 | P9: 576393.2616 | Q9: 630344.3227 | R9: 687621.2218 | S9: 748405.9579 | T9: =SUM(O9:S9) -> 3168359.835
B10: Property Rentals | C10: Relevant properties and land. | D10: 945543.33 | E10: 1327217.23 | F10: 1323264.19 | G10: 1367105.98 | H10: 1351173.52 | I10: 1466338.19 | J10: 206046.77 | K10: 326439.92 | L10: 155620.2942 | M10: 239429.7901 | N10: =SUM(D10:M10) -> 8708179.214 | O10: 349298.0054 | P10: 359662.9314 | Q10: 370027.8574 | R10: 380392.7833 | S10: 391535.0788 | T10: =SUM(O10:S10) -> 1850916.656
B11: Tower Access | C11: Transmission and telecommunications towers. | D11: 1908301.14 | E11: 1761401.34 | F11: 2236877.9 | G11: 2188569.42 | H11: 2697079.44 | I11: 2826870.66 | J11: 3056775.34 | K11: 2724748.26 | L11: 2202546.77 | M11: 2202546.77 | N11: 23805717.04 | O11: 2202546.77 | P11: 2202546.77 | Q11: 2202546.77 | R11: 2202546.77 | S11: 2202546.77 | T11: 11012733.85
N12: 0 | T12: 0
N13: 0 | T13: 0
N14: 0 | T14: 0
N15: 0 | T15: 0
N16: 0 | T16: 0
N17: 0 | T17: 0
N18: 0 | T18: 0
N19: 0 | T19: 0
N20: =SUM(D20:M20) -> 0 | T20: =SUM(O20:S20) -> 0
N21: =SUM(D21:M21) -> 0 | T21: =SUM(O21:S21) -> 0
N22: =SUM(D22:M22) -> 0 | T22: =SUM(O22:S22) -> 0
N23: =SUM(D23:M23) -> 0 | T23: =SUM(O23:S23) -> 0
B25: 7.4.2 - SHARED ASSET UNREGULATED SERVICES - APPORTIONMENT METHODOLOGY
B26: Name of shared asset unregulated service for which revenues were apportioned | C26: Apportionment methodology

Sheet 7.5 EBSS
B1: =(LOOKUP(dms_Model,dms_Model_List,dms_Worksheet_List)) -> REGULATORY REPORTING STATEMENT
B2: =INDEX(dms_TradingNameFull_List,MATCH(dms_TradingName,dms_TradingName_List)) -> Queensland Electricity Transmission Corporation Limited trading as Powerlink Queensland
B3: =CONCATENATE(FRCP_y1," to ",dms_FRCP_FinalYear_Num) -> 2017-18 to 2021-22
B4: 7.5 EBSS
B7: Instructions
B8: =CONCATENATE(dms_TradingName, " is required to populate all input cells (yellow) in tableS 7.5.1 and 7.5.2 presented below.") -> Powerlink is required to populate all input cells (yellow) in tableS 7.5.1 and 7.5.2 presented below.
B9: Efficiency gains are calculated using the formulae below. Adjusted target and actual amounts are used to calculate the carry-over amounts. We will calculate the efficiency gain in 2012–13 (year 6) as follows: E6 = (F6 – A6) – (F5 – A5) + (F3 – A3) where F6 is the forecast opex we approved for year 6 (2012-13), and A6 is the actual opex incurred for year 6, and so on. The formula references year 3 (2009-10) because it is the base year used to forecast opex.
B12: CPI
C13: 2006-07 | D13: 2007-08 | E13: 2008-09 | F13: 2009-10 | G13: 2010-11 | H13: 2011-12 | I13: 2012-13 | J13: 2013-14 | K13: 2014-15 | L13: 2015-16 | M13: 2016-17
B14: ABS CPI index Jun qtr (old base) | C14: 157.5 | D14: 164.6 | E14: 167 | F14: 172.1 | G14: 178.3
B15: ABS CPI index Jun qtr (rebased index) | F15: 95.8 | G15: 99.2 | H15: 100.4 | I15: 102.8 | J15: 105.9 | K15: 107.5 | L15: 110 | M15: 112.7
B16: Inflation rate (per cent) | D16: =D14/C14-1 -> 0.04507936508 | E16: 0.01458080194 | F16: 0.03053892216 | G16: =G14/F14-1 -> 0.03602556653 | H16: =H15/G15-1 -> 0.01209677419 | I16: 0.02390438247 | J16: 0.03015564202 | K16: 0.01510859301 | L16: 0.02325581395 | M16: 0.02454545455
B17: Reconstructed cumulative index (2015=1) | C17: =D17/(1+D16) -> 0.7775296712 | D17: 0.8125802151 | E17: 0.8244282863 | F17: 0.8496054375 | G17: 0.8802129547 | H17: 0.8908606921 | I17: 0.9121561668 | J17: 0.9396628217 | K17: 0.9538598048 | L17: 0.9760425909 | M17: 1
B21: 7.5.1 - The carryover amounts that arise from applying the EBSS during the current regulatory control period
B23: 7.5.1.1 - Opex allowance applicable to EBSS (EBSS target)
C24: $m, Jun 2007 | G24: $m, Jun 2012 | M24: $m, Jun 2017
C25: Previous period | G25: Current regulatory control period | M25: Previous period | Q25: Current regulatory control period
C26: =PRCP_y2 -> 2008-09 | D26: =PRCP_y3 -> 2009-10 | E26: =PRCP_y4 -> 2010-11 | F26: =PRCP_y5 -> 2011-12 | G26: =CRCP_y1 -> 2012-13 | H26: =CRCP_y2 -> 2013-14 | I26: =CRCP_y3 -> 2014-15 | J26: =CRCP_y4 -> 2015-16 | K26: =CRCP_y5 -> 2016-17 | M26: =PRCP_y2 -> 2008-09 | N26: =PRCP_y3 -> 2009-10 | O26: =PRCP_y4 -> 2010-11 | P26: =PRCP_y5 -> 2011-12 | Q26: =CRCP_y1 -> 2012-13 | R26: =CRCP_y2 -> 2013-14 | S26: =CRCP_y3 -> 2014-15 | T26: =CRCP_y4 -> 2015-16 | U26: =CRCP_y5 -> 2016-17
B27: Total opex allowance | M27: =+C27/$C$17 -> 0 | N27: =+D27/$C$17 -> 0 | O27: 0 | P27: 0 | Q27: =+G27/$H$17 -> 0 | R27: =+H27/$H$17 -> 0 | S27: 0 | T27: 0 | U27: 0
B28: Approved excludable costs - allowance
B29: Equity raising costs | M29: =+C29/$C$17 -> 0 | N29: =+D29/$C$17 -> 0 | O29: 0 | P29: 0
B30: Debt raising costs | M30: =+C30/$C$17 -> 0 | N30: 0 | O30: 0 | P30: 0 | Q30: =+G30/$H$17 -> 0 | R30: 0 | S30: 0 | T30: 0 | U30: 0
B31: Network support costs | M31: 0 | N31: 0 | O31: 0 | P31: 0 | Q31: 0 | R31: 0 | S31: 0 | T31: 0 | U31: 0
B32: Insurance | M32: 0 | N32: 0 | O32: 0 | P32: 0 | Q32: 0 | R32: 0 | S32: 0 | T32: 0 | U32: 0
B33: Self insurance | M33: 0 | N33: 0 | O33: 0 | P33: 0 | Q33: 0 | R33: 0 | S33: 0 | T33: 0 | U33: 0
B34: Network growth adjustment | M34: 0 | N34: 0 | O34: 0 | P34: 0 | Q34: 0 | R34: 0 | S34: 0 | T34: 0 | U34: 0
B35: Capitalisation policy changes | M35: 0 | N35: 0 | O35: 0 | P35: 0 | Q35: 0 | R35: 0 | S35: 0 | T35: 0 | U35: 0
B36: Movements in provisions related to opex | M36: 0 | N36: 0 | O36: 0 | P36: 0 | Q36: 0 | R36: 0 | S36: 0 | T36: 0 | U36: 0
B37: Opex associated with pass throughs | M37: 0 | N37: 0 | O37: 0 | P37: 0 | Q37: 0 | R37: 0 | S37: 0 | T37: 0 | U37: 0
B38: Other adjustments or exclusions required by the EBSS | M38: 0 | N38: 0 | O38: 0 | P38: 0 | Q38: 0 | R38: 0 | S38: 0 | T38: 0 | U38: 0
B39: Forecast opex for EBSS purposes | C39: =(C27+SUM(C29:C38)) -> 0 | D39: =(D27+SUM(D29:D38)) -> 0 | E39: 0 | F39: 0 | G39: 0 | H39: 0 | I39: 0 | J39: 0 | K39: 0 | M39: =+SUM(M27:M38) -> 0 | N39: 0 | O39: 0 | P39: 0 | Q39: 0 | R39: 0 | S39: 0 | T39: 0 | U39: 0
B41: 7.5.1.2 - Actual and estimated opex applicable to EBSS
C42: $m, Actual | M42: $m, Jun 2017
C43: Previous period | G43: Current regulatory control period | M43: Previous period | Q43: Current regulatory control period
C44: =PRCP_y2 -> 2008-09 | D44: =PRCP_y3 -> 2009-10 | E44: =PRCP_y4 -> 2010-11 | F44: =PRCP_y5 -> 2011-12 | G44: =CRCP_y1 -> 2012-13 | H44: =CRCP_y2 -> 2013-14 | I44: =CRCP_y3 -> 2014-15 | J44: =CRCP_y4 -> 2015-16 | K44: =CRCP_y5 -> 2016-17 | M44: =PRCP_y2 -> 2008-09 | N44: =PRCP_y3 -> 2009-10 | O44: =PRCP_y4 -> 2010-11 | P44: =PRCP_y5 -> 2011-12 | Q44: =CRCP_y1 -> 2012-13 | R44: =CRCP_y2 -> 2013-14 | S44: =CRCP_y3 -> 2014-15 | T44: =CRCP_y4 -> 2015-16 | U44: =CRCP_y5 -> 2016-17
B45: Total opex | M45: =+C45/E$17*(1+E$16)^0.5 -> 0 | N45: =+D45/F$17*(1+F$16)^0.5 -> 0 | O45: 0 | P45: 0 | Q45: =+G45/I$17*(1+I$16)^0.5 -> 0 | R45: 0 | S45: 0 | T45: 0 | U45: 0
B46: Approved excludable costs
B47: =B29 -> Equity raising costs | M47: =+C47/E$17*(1+E$16)^0.5 -> 0 | N47: =+D47/F$17*(1+F$16)^0.5 -> 0 | O47: 0 | P47: 0 | Q47: 0 | R47: 0 | S47: 0 | T47: 0 | U47: 0
B48: Debt raising costs | M48: =+C48/E$17*(1+E$16)^0.5 -> 0 | N48: 0 | O48: 0 | P48: 0 | Q48: 0 | R48: 0 | S48: 0 | T48: 0 | U48: 0
B49: Network support costs | M49: 0 | N49: 0 | O49: 0 | P49: 0 | Q49: 0 | R49: 0 | S49: 0 | T49: 0 | U49: 0
B50: Insurance | M50: 0 | N50: 0 | O50: 0 | P50: 0 | Q50: 0 | R50: 0 | S50: 0 | T50: 0 | U50: 0
B51: Self insurance | M51: 0 | N51: 0 | O51: 0 | P51: 0 | Q51: 0 | R51: 0 | S51: 0 | T51: 0 | U51: 0
B52: Network growth adjustment | M52: 0 | N52: 0 | O52: 0 | P52: 0 | Q52: 0 | R52: 0 | S52: 0 | T52: 0 | U52: 0
B53: Capitalisation policy changes | M53: 0 | N53: 0 | O53: 0 | P53: 0 | Q53: 0 | R53: 0 | S53: 0 | T53: 0 | U53: 0
B54: Movements in provisions related to opex | M54: 0 | N54: 0 | O54: 0 | P54: 0 | Q54: 0 | R54: 0 | S54: 0 | T54: 0 | U54: 0
B55: =B38 -> Other adjustments or exclusions required by the EBSS | M55: 0 | N55: 0 | O55: 0 | P55: 0 | Q55: 0 | R55: 0 | S55: 0 | T55: 0 | U55: 0
B56: Actual opex for EBSS purposes | C56: =C45+SUM(C47:C55) -> 0 | D56: =D45+SUM(D47:D55) -> 0 | E56: 0 | F56: 0 | G56: 0 | H56: 0 | I56: 0 | J56: 0 | K56: 0 | M56: =M45+SUM(M47:M55) -> 0 | N56: =N45+SUM(N47:N55) -> 0 | O56: =O45+SUM(O47:O55) -> 0 | P56: =P45+SUM(P47:P55) -> 0 | Q56: =Q45+SUM(Q47:Q55) -> 0 | R56: =R45+SUM(R47:R55) -> 0 | S56: 0 | T56: 0 | U56: =U39-(S39-S56) -> 0
J57: estimates | N57: base year | S57: base year
M58: =CONCATENATE("Incremental gain ($m, ",dms_FRCP_FinalYear_Num,")") -> Incremental gain ($m, 2021-22)
Q59: =(Q39-Q56)-(P39-P56)+(N39-N56) -> 0 | R59: =(R39-R56)-(Q39-Q56) -> 0 | S59: =(S39-S56)-(R39-R56) -> 0 | T59: 0 | U59: 0
M61: Carryover
Q62: Current regulatory control period | V62: Forthcoming regulatory control period
O63: =CONCATENATE("$m, real ",dms_DollarReal) -> $m, real June 2017
Q64: =CRCP_y1 -> 2012-13 | R64: =CRCP_y2 -> 2013-14 | S64: =CRCP_y3 -> 2014-15 | T64: =CRCP_y4 -> 2015-16 | U64: =CRCP_y5 -> 2016-17 | V64: =FRCP_y1 -> 2017-18 | W64: =FRCP_y2 -> 2018-19 | X64: =FRCP_y3 -> 2019-20 | Y64: =FRCP_y4 -> 2020-21 | Z64: =FRCP_y5 -> 2021-22 | AA64: Total
M65: =CRCP_y3 -> 2014-15 | R65: =$Q$59 -> 0 | S65: 0 | T65: 0 | U65: 0 | V65: 0 | W65: 0 | X65: 0
M66: =CRCP_y4 -> 2015-16 | U66: =$T$59 -> 0 | V66: =$T$59 -> 0 | W66: =$T$59 -> 0 | X66: =$T$59 -> 0 | Y66: =$T$59 -> 0
M67: =CRCP_y5 -> 2016-17 | V67: =+$U$59 -> 0 | W67: =+$U$59 -> 0 | X67: =+$U$59 -> 0 | Y67: =+$U$59 -> 0 | Z67: =+$U$59 -> 0
M68: =CONCATENATE("Total Carryover Amount ($m, ",CRCP_y5,")") -> Total Carryover Amount ($m, 2016-17) | V68: =+SUM(V65:V67) -> 0 | W68: =+SUM(W65:W67) -> 0 | X68: =+SUM(X65:X67) -> 0 | Y68: =+SUM(Y66:Y67) -> 0 | Z68: =+SUM(Z67) -> 0 | AA68: =SUM(V68:Z68) -> 0
M70: =CONCATENATE("PTRM inputs ($m, ",CRCP_y5,")") -> PTRM inputs ($m, 2016-17) | V70: =V68 -> 0 | W70: =W68 -> 0 | X70: =X68 -> 0 | Y70: =Y68 -> 0 | Z70: =Z68 -> 0 | AA70: =SUM(V70:Z70) -> 0
B72: 7.5.2 - Proposed forecast opex for the EBSS for the forthcoming regulatory control period
C74: Forthcoming regulatory control period
C75: =CONCATENATE("$m, real ",dms_DollarReal) -> $m, real June 2017
C76: =FRCP_y1 -> 2017-18 | D76: =FRCP_y2 -> 2018-19 | E76: =FRCP_y3 -> 2019-20 | F76: =FRCP_y4 -> 2020-21 | G76: =FRCP_y5 -> 2021-22
B77: Forecast opex | H77: =+SUM(A77:E77) -> 0 | I77: =+SUM(B77:F77) -> 0 | J77: =+SUM(C77:G77) -> 0
B78: Less excluded costs
B79: < Enter category proposed for exclusion > eg. Debt raising costs | C79: 0 | D79: 0 | E79: 0 | F79: 0 | G79: 0 | H79: =+SUM(A79:E79) -> 0 | I79: 0 | J79: 0
C80: 0 | D80: 0 | E80: 0 | F80: 0 | G80: 0 | H80: 0 | I80: 0 | J80: 0
C81: 0 | D81: 0 | E81: 0 | F81: 0 | G81: 0 | H81: 0 | I81: 0 | J81: 0
C82: 0 | D82: 0 | E82: 0 | F82: 0 | G82: 0 | H82: 0 | I82: 0 | J82: 0
C83: 0 | D83: 0 | E83: 0 | F83: 0 | G83: 0 | H83: 0 | I83: 0 | J83: 0
C84: 0 | D84: 0 | E84: 0 | F84: 0 | G84: 0 | H84: 0 | I84: 0 | J84: 0
C85: 0 | D85: 0 | E85: 0 | F85: 0 | G85: 0 | H85: 0 | I85: 0 | J85: 0
C86: 0 | D86: 0 | E86: 0 | F86: 0 | G86: 0 | H86: 0 | I86: 0 | J86: 0
C87: 0 | D87: 0 | E87: 0 | F87: 0 | G87: 0 | H87: 0 | I87: 0 | J87: 0
C88: 0 | D88: 0 | E88: 0 | F88: 0 | G88: 0 | H88: 0 | I88: 0 | J88: 0
B89: =CONCATENATE("Adjusted forecast opex ($m, ",CRCP_y5,")") -> Adjusted forecast opex ($m, 2016-17) | C89: =+C77-SUM(C79:C88) -> 0 | D89: 0 | E89: 0 | F89: 0 | G89: 0 | H89: =+H77-SUM(H79:H88) -> 0 | I89: 0 | J89: 0

Sheet Unprotected 7.5 EBSS
B1: REGULATORY REPORTING STATEMENT
B2: =INDEX(dms_TradingNameFull_List,MATCH(dms_TradingName,dms_TradingName_List)) -> Queensland Electricity Transmission Corporation Limited trading as Powerlink Queensland
B3: =CONCATENATE(FRCP_y1," to ",dms_FRCP_FinalYear_Num) -> 2017-18 to 2021-22
B4: 7.5 EBSS
B7: Instructions
B8: Powerlink is required to populate all input cells (yellow) in tableS 7.5.1 and 7.5.2 presented below.
B9: Efficiency gains are calculated using the formulae below. Adjusted target and actual amounts are used to calculate the carry-over amounts. We will calculate the efficiency gain in 2012–13 (year 6) as follows: E6 = (F6 – A6) – (F5 – A5) + (F3 – A3) where F6 is the forecast opex we approved for year 6 (2012-13), and A6 is the actual opex incurred for year 6, and so on. The formula references year 3 (2009-10) because it is the base year used to forecast opex.
B12: SELECT BASE YEAR USED TO FORECAST OPEX FOR 2017-22 | D12: 2014-15
B16: CPI
C17: 2006-07 | D17: 2007-08 | E17: 2008-09 | F17: 2009-10 | G17: 2010-11 | H17: 2011-12 | I17: 2012-13 | J17: 2013-14 | K17: 2014-15 | L17: 2015-16 | M17: 2016-17
B18: ABS CPI index Jun qtr (old base) | C18: 157.5 | D18: 164.6 | E18: 167 | F18: 172.1 | G18: 178.3
B19: ABS CPI index Jun qtr (rebased index) | F19: 95.8 | G19: 99.2 | H19: 100.4 | I19: 102.8 | J19: 105.9 | K19: 107.5 | L19: 110 | M19: 112.7
B20: Inflation rate (per cent) | D20: =D18/C18-1 -> 0.04507936508 | E20: 0.01458080194 | F20: 0.03053892216 | G20: =G18/F18-1 -> 0.03602556653 | H20: =H19/G19-1 -> 0.01209677419 | I20: 0.02390438247 | J20: 0.03015564202 | K20: 0.01510859301 | L20: 0.02325581395 | M20: 0.02454545455
B21: Reconstructed cumulative index (2016-17=1) | C21: =D21/(1+D20) -> 0.7775296712 | D21: 0.8125802151 | E21: 0.8244282863 | F21: 0.8496054375 | G21: 0.8802129547 | H21: 0.8908606921 | I21: 0.9121561668 | J21: 0.9396628217 | K21: 0.9538598048 | L21: 0.9760425909 | M21: 1
B25: 7.5.1 - The carryover amounts that arise from applying the EBSS during the current regulatory control period
B27: 7.5.1.1 - Opex allowance applicable to EBSS (EBSS target)
C28: $m, Jun 2007 | G28: $m, Jun 2012 | M28: $m, Jun 2017
C29: Previous period | G29: Current regulatory control period | M29: Previous period | Q29: Current regulatory control period
C30: =PRCP_y2 -> 2008-09 | D30: =PRCP_y3 -> 2009-10 | E30: =PRCP_y4 -> 2010-11 | F30: =PRCP_y5 -> 2011-12 | G30: =CRCP_y1 -> 2012-13 | H30: =CRCP_y2 -> 2013-14 | I30: =CRCP_y3 -> 2014-15 | J30: =CRCP_y4 -> 2015-16 | K30: =CRCP_y5 -> 2016-17 | M30: =PRCP_y2 -> 2008-09 | N30: =PRCP_y3 -> 2009-10 | O30: =PRCP_y4 -> 2010-11 | P30: =PRCP_y5 -> 2011-12 | Q30: =CRCP_y1 -> 2012-13 | R30: =CRCP_y2 -> 2013-14 | S30: =CRCP_y3 -> 2014-15 | T30: =CRCP_y4 -> 2015-16 | U30: =CRCP_y5 -> 2016-17
B31: Total opex allowance | D31: 154.227 | E31: 147.589 | F31: 151.914 | G31: 177.936 | H31: 184.712 | I31: 189.464 | J31: 196.549 | K31: 202.292 | N31: =+D31/$C$21 -> 198.3551313 | O31: 189.8178365 | P31: 195.3803252 | Q31: =+G31/$H$21 -> 199.7349323 | R31: =+H31/$H$21 -> 207.3410598 | S31: 212.6752271 | T31: 220.6282102 | U31: 227.0747849
B32: Approved excludable costs - allowance | D32: 0 | E32: 0 | F32: 0 | G32: 0 | H32: 0 | I32: 0 | J32: 0 | K32: 0
B33: Equity raising costs | D33: 0 | E33: 0 | F33: 0 | G33: 0 | H33: 0 | I33: 0 | J33: 0 | K33: 0 | N33: =+D33/$C$21 -> 0 | O33: 0 | P33: 0
B34: Debt raising costs | D34: -2.26823 | E34: -2.3885 | F34: -2.5252 | G34: -3.496356373 | H34: -3.760880046 | I34: -3.948708258 | J34: -4.048357093 | K34: -4.183270595 | N34: -2.917226293 | O34: -3.071908492 | P34: -3.247721719 | Q34: =+G34/$H$21 -> -3.924694853 | R34: -4.22162531 | S34: -4.43246435 | T34: -4.54432116 | U34: -4.695762909
B35: Network support costs | D35: -22.15 | E35: -8.22 | F35: -8.3 | G35: 0 | H35: 0 | I35: 0 | J35: 0 | K35: 0 | N35: -28.48765883 | O35: -10.57194382 | P35: -10.67483378 | Q35: 0 | R35: 0 | S35: 0 | T35: 0 | U35: 0
B36: Insurance & Self Insurance | D36: -5.9503 | E36: -6.16182 | F36: -6.34835 | G36: -8.655056345 | H36: -9.183829361 | I36: -9.916478119 | J36: -10.44640643 | K36: -11.18024257 | N36: -7.652826922 | O36: -7.924867987 | P36: -8.1647688 | Q36: -9.715386953 | R36: -10.30893993 | S36: -11.13134546 | T36: -11.72619526 | U36: -12.54993365
B37: Capex Efficiencies | D37: -3.19478 | E37: -3.19478 | F37: -3.19478 | G37: 0 | H37: 0 | I37: 0 | J37: 0 | K37: 0
B38: Network growth adjustment | D38: 0 | E38: 0 | F38: 0 | G38: -0.6951117764 | H38: -1.738804399 | I38: -2.748208889 | J38: -3.645332374 | K38: -4.439440751 | N38: 0 | O38: 0 | P38: 0 | Q38: -0.7802698925 | R38: -1.951825257 | S38: -3.084891851 | T38: -4.091921898 | U38: -4.983316461
B39: Capitalisation policy changes | D39: 0 | E39: 0 | F39: 0 | G39: 0 | H39: 0 | I39: 0 | J39: 0 | K39: 0 | N39: 0 | O39: 0 | P39: 0 | Q39: 0 | R39: 0 | S39: 0 | T39: 0 | U39: 0
B40: Movements in provisions related to opex | D40: -2.274620613 | E40: -2.33963454 | F40: -2.449724791 | G40: -0.71449944 | H40: -0.75129961 | I40: -0.8199094085 | J40: -0.8227901275 | K40: -0.8542102505 | N40: -2.925445417 | O40: -3.009061425 | P40: -3.150651199 | Q40: -0.802032738 | R40: -0.8433412952 | S40: -0.9203564775 | T40: -0.9235901132 | U40: -0.9588595142
B41: Opex associated with pass throughs | D41: 0 | E41: 0 | F41: 0 | G41: 0 | H41: 0 | I41: 0 | J41: 0 | K41: 0 | N41: 0 | O41: 0 | P41: 0 | Q41: 0 | R41: 0 | S41: 0 | T41: 0 | U41: 0
B42: Other adjustments or exclusions required by the EBSS | D42: 0 | E42: 0 | F42: 0 | G42: 0 | H42: 0 | I42: 0 | J42: 0 | K42: 0 | N42: 0 | O42: 0 | P42: 0 | Q42: 0 | R42: 0 | S42: 0 | T42: 0 | U42: 0
B43: Forecast opex for EBSS purposes | D43: =(D31+SUM(D33:D42)) -> 118.3890694 | E43: 125.2842655 | F43: 129.0959452 | G43: 164.3749761 | H43: 169.2771866 | I43: 172.0306953 | J43: 177.586114 | K43: 181.6348358 | N43: =+SUM(N31:N42) -> 156.3719738 | O43: 165.2400548 | P43: 170.1423497 | Q43: 184.5125478 | R43: 190.015328 | S43: 193.106169 | T43: 199.3421817 | U43: 203.8869123
B45: 7.5.1.2 - Actual and estimated opex applicable to EBSS
C46: $m, Actual | M46: $m, Jun 2017
C47: Previous period | G47: Current regulatory control period | M47: Previous period | Q47: Current regulatory control period
C48: =PRCP_y2 -> 2008-09 | D48: =PRCP_y3 -> 2009-10 | E48: =PRCP_y4 -> 2010-11 | F48: =PRCP_y5 -> 2011-12 | G48: =CRCP_y1 -> 2012-13 | H48: =CRCP_y2 -> 2013-14 | I48: =CRCP_y3 -> 2014-15 | J48: =CRCP_y4 -> 2015-16 | K48: =CRCP_y5 -> 2016-17 | M48: =PRCP_y2 -> 2008-09 | N48: =PRCP_y3 -> 2009-10 | O48: =PRCP_y4 -> 2010-11 | P48: =PRCP_y5 -> 2011-12 | Q48: =CRCP_y1 -> 2012-13 | R48: =CRCP_y2 -> 2013-14 | S48: =CRCP_y3 -> 2014-15 | T48: =CRCP_y4 -> 2015-16 | U48: =CRCP_y5 -> 2016-17
B49: Total opex | D49: 151.884 | E49: 150.88 | F49: 160.384 | G49: 167.3775967 | H49: 181.016 | I49: 211.26 | J49: 216.540544 | N49: =+D49/F$21*(1+F$20)^0.5 -> 181.4792361 | O49: 174.4733724 | P49: 181.1182712 | Q49: =+G49/I$21*(1+I$20)^0.5 -> 185.6768801 | R49: 195.5223203 | S49: 223.1459348 | T49: 224.4205203
B50: Approved excludable costs | D50: 0 | E50: 0 | F50: 0 | G50: 0 | H50: 0 | I50: 0 | J50: 0
B51: =B33 -> Equity raising costs | D51: 0 | E51: 0 | F51: 0 | G51: 0 | H51: 0 | I51: 0 | J51: 0 | N51: =+D51/F$21*(1+F$20)^0.5 -> 0 | O51: 0 | P51: 0
B52: =B34 -> Debt raising costs | D52: -0.32 | E52: -0.249 | F52: -0.265 | G52: -0.501 | H52: -0.5 | I52: -0.5 | J52: -1 | N52: -0.3823533456 | O52: -0.2879365704 | P52: -0.2992589153 | Q52: -0.5557740029 | R52: -0.5400691661 | S52: -0.5281310583 | T52: -1.036390304
B53: =B35 -> Network support costs | D53: -12.718 | E53: 0 | F53: 0 | G53: 0 | H53: 0 | I53: -2.644 | J53: -3.54 | N53: -15.19615578 | O53: 0 | P53: 0 | Q53: 0 | R53: 0 | S53: -2.792757036 | T53: -3.668821677
B54: =B36 -> Insurance & Self Insurance | D54: -6.713 | E54: -7.344 | F54: -7.596 | G54: -7.844 | H54: -8.153 | I54: -8.373 | J54: -8.597837 | N54: -8.021056279 | O54: -8.492394268 | P54: -8.57800272 | Q54: -8.701579398 | R54: -8.806367822 | S54: -8.844082702 | T54: -8.910714904
B55: AEMC Levy | D55: 0 | E55: 0 | F55: 0 | G55: 0 | H55: 0 | I55: -3.79 | J55: -4.1 | N55: 0 | O55: 0 | P55: 0 | Q55: 0 | R55: 0 | S55: -4.003233422 | T55: -4.249200247
B56: 500Kv Write Off | D56: 0 | E56: 0 | F56: 0 | G56: 0 | H56: 0 | I56: -12.054 | J56: 0 | N56: 0 | O56: 0 | P56: 0 | Q56: 0 | R56: 0 | S56: -12.73218355 | T56: 0
B57: Redundancy related costs | D57: 0 | E57: 0 | F57: 0 | G57: 0 | H57: 0 | I57: 0 | J57: -9.756455616 | N57: 0 | O57: 0 | P57: 0 | Q57: 0 | R57: 0 | S57: 0 | T57: -10.111496
B58: =B38 -> Network growth adjustment | D58: 0 | E58: 0 | F58: 0 | G58: 0 | H58: 0 | I58: 0 | J58: 0 | N58: 0 | O58: 0 | P58: 0 | Q58: 0 | R58: 0 | S58: 0 | T58: 0
B59: =B39 -> Capitalisation policy changes | D59: 0 | E59: 0 | F59: 0 | G59: 0 | H59: 0 | I59: 0 | J59: 0 | N59: 0 | O59: 0 | P59: 0 | Q59: 0 | R59: 0 | S59: 0 | T59: 0
B60: =B40 -> Movements in provisions related to opex | D60: 0.4667935462 | E60: -1.05484443 | F60: -1.941248962 | G60: -0.0135887346 | H60: -0.4509289263 | I60: 0.2598389549 | J60: 1.490399255 | N60: 0.5577502316 | O60: -1.219792318 | P60: -2.192211542 | Q60: -0.01507438208 | R60: -0.4870656183 | S60: 0.2744580444 | T60: 1.544635337
B61: =B42 -> Other adjustments or exclusions required by the EBSS | D61: 0 | E61: 0 | F61: 0 | G61: 0 | H61: 0 | I61: 0 | J61: 0 | N61: 0 | O61: 0 | P61: 0 | Q61: 0 | R61: 0 | S61: 0 | T61: 0
B62: Actual opex for EBSS purposes | D62: =D49+SUM(D51:D61) -> 132.5997935 | E62: 142.2321556 | F62: 150.581751 | G62: 159.019008 | H62: 171.9120711 | I62: 184.158839 | J62: 191.0366507 | N62: =N49+SUM(N51:N61) -> 158.4374209 | O62: 164.4732493 | P62: 170.0487981 | Q62: 176.4044523 | R62: 185.6888177 | S62: 194.520005 | T62: 197.9885325
M64: =CONCATENATE("Incremental gain ($m, ",dms_FRCP_FinalYear_Num,")") -> Incremental gain ($m, 2021-22)
Q65: =(Q43-Q62)-(P43-P62)+(N43-N62) -> 5.949096845 | R65: =(R43-R62)-(Q43-Q62) -> -3.781585319 | S65: =(S43-S62)-(R43-R62) -> -5.740346317 | T65: =(T43-T62)-(S43-S62) -> 2.767485304
M67: Carryover
Q68: Current regulatory control period | V68: Forthcoming regulatory control period
Q69: =CONCATENATE("$m, real ",dms_DollarReal) -> $m, real June 2017
Q70: =CRCP_y1 -> 2012-13 | R70: =CRCP_y2 -> 2013-14 | S70: =CRCP_y3 -> 2014-15 | T70: =CRCP_y4 -> 2015-16 | U70: =CRCP_y5 -> 2016-17 | V70: =FRCP_y1 -> 2017-18 | W70: =FRCP_y2 -> 2018-19 | X70: =FRCP_y3 -> 2019-20 | Y70: =FRCP_y4 -> 2020-21 | Z70: =FRCP_y5 -> 2021-22 | AA70: Total
M71: =CRCP_y1 -> 2012-13 | R71: =$Q$65 -> 5.949096845 | S71: =$Q$65 -> 5.949096845 | T71: 5.949096845 | U71: 5.949096845 | V71: =$Q$65 -> 5.949096845
M72: =CRCP_y2 -> 2013-14 | S72: =$R$65 -> -3.781585319 | T72: =$R$65 -> -3.781585319 | U72: -3.781585319 | V72: -3.781585319 | W72: =$R$65 -> -3.781585319
M73: =CRCP_y3 -> 2014-15 | T73: =$S$65 -> -5.740346317 | U73: =$S$65 -> -5.740346317 | V73: =$S$65 -> -5.740346317 | W73: -5.740346317 | X73: =$S$65 -> -5.740346317
M74: =CRCP_y4 -> 2015-16 | U74: =$T$65 -> 2.767485304 | V74: =$T$65 -> 2.767485304 | W74: 2.767485304 | X74: 2.767485304 | Y74: =$T$65 -> 2.767485304
M75: =CRCP_y5 -> 2016-17 | V75: =$U$65 -> 0 | W75: =$U$65 -> 0 | X75: 0 | Y75: 0 | Z75: =$U$65 -> 0
M76: =CONCATENATE("Total Carryover Amount") -> Total Carryover Amount | V76: =+SUM(V71:V75) -> -0.8053494875 | W76: =+SUM(W72:W75) -> -6.754446332 | X76: =+SUM(X73:X75) -> -2.972861013 | Y76: =+SUM(Y74:Y75) -> 2.767485304 | Z76: =+SUM(Z75) -> 0 | AA76: =SUM(V76:Z76) -> -7.765171529
M78: =CONCATENATE("PTRM inputs") -> PTRM inputs | V78: =V76 -> -0.8053494875 | W78: =W76 -> -6.754446332 | X78: =X76 -> -2.972861013 | Y78: =Y76 -> 2.767485304 | Z78: =Z76 -> 0 | AA78: =SUM(V78:Z78) -> -7.765171529
B80: 7.5.2 - Proposed forecast opex for the EBSS for the forthcoming regulatory control period
C81: Forthcoming regulatory control period
C82: =CONCATENATE("$m, real ",dms_DollarReal) -> $m, real June 2017
C83: =FRCP_y1 -> 2017-18 | D83: =FRCP_y2 -> 2018-19 | E83: =FRCP_y3 -> 2019-20 | F83: =FRCP_y4 -> 2020-21 | G83: =FRCP_y5 -> 2021-22
B84: Forecast opex | C84: 196.8944993 | D84: 196.0367214 | E84: 195.1135382 | F84: 194.3970058 | G84: 194.2725143
B85: Less excluded costs
B86: Insurance Premiums | C86: 7.606997063 | D86: 7.786258478 | E86: 7.942616764 | F86: 8.094781133 | G86: 8.286455644
B87: Self-Insurance | C87: 1.485684916 | D87: 1.484743913 | E87: 1.47787011 | F87: 1.470405414 | G87: 1.468948661
B88: AEMC Levy | C88: 4.2 | D88: 4.2 | E88: 4.2 | F88: 4.2 | G88: 4.2
B89: Debt Raising | C89: 3.600106959 | D89: 3.568597603 | E89: 3.529296207 | F89: 3.482200555 | G89: 3.432423959
B90: Redundancy related costs | C90: 0 | D90: 0 | E90: 0 | F90: 0 | G90: 0
B96: Adjusted forecast opex | C96: =+C84-SUM(C86:C95) -> 180.0017104 | D96: 178.9971214 | E96: 177.9637552 | F96: 177.1496187 | G96: 176.8846861

Sheet 7.6 Indicative bill impact
B1: =(LOOKUP(dms_Model,dms_Model_List,dms_Worksheet_List)) -> REGULATORY REPORTING STATEMENT
B2: =INDEX(dms_TradingNameFull_List,MATCH(dms_TradingName,dms_TradingName_List)) -> Queensland Electricity Transmission Corporation Limited trading as Powerlink Queensland
B3: =CONCATENATE(FRCP_y1," to ",dms_FRCP_FinalYear_Num) -> 2017-18 to 2021-22
B4: 7.6 INDICATIVE IMPACT ON TRANSMISSION CHARGES AND ELECTRICITY BILLS
B7: 7.6.1 Indicative impact of the revenue proposal on the average residential electricity bills
B8: =CONCATENATE("Instructions ",dms_TradingName," is required to populate all input cells (yellow) in table 7.6.1 presented below. Transmission pricing impact should refer to ",dms_TradingName,"'s related transmission costs only.") -> Instructions Powerlink is required to populate all input cells (yellow) in table 7.6.1 presented below. Transmission pricing impact should refer to Powerlink's related transmission costs only.
B10: Transmission costs as a proportion of a typical residential customer's electricity bill (per cent) | C10: 0.093
B11: Transmission costs as a proportion of a typical business customer's electricity bill (per cent) | C11: 0.093
B12: Source data: | C12: AEMC Final Report: 2015 Residential Electricity Price Trends. 4th December 2015
B14: Typical electricity bill - Residential customer
B15: Tariff type | C15: Description of tariff type | D15: =CONCATENATE("Annual bill amount ($", CRCP_y5,")") -> Annual bill amount ($2016-17)
B16: Average Electricity Residential Bill QLD | C16: Based of indicative usage of 2500kWh | D16: 856
B17: Average Electricity Residential Bill QLD | C17: Based of indicative usage of 5173kWh | D17: 1438
B19: <NSP to insert any additional items>
B20: <NSP to insert any additional items>
B21: Source data: | C21: AEMC Final Report: 2015 Residential Electricity Price Trends 4th December 2015
B23: Typical electricity bill - Business customer
B24: Tariff type | C24: Description of tariff type | D24: =CONCATENATE("Annual bill amount ($", CRCP_y5,")") -> Annual bill amount ($2016-17)
B25: Average Electricity Business Bill QLD | C25: Based of indicative usage of 10000kWh | D25: 3014
B26: Average Electricity Business Bill QLD | C26: Based of indicative usage of 20000kWh | D26: 5248.799447
B27: <NSP to insert any additional items>
B28: <NSP to insert any additional items>
B29: Source data: | C29: Energy Made Easy
B31: Indicative annual average transmission price impact as shown in the proposed PTRM (per cent)
C32: =CRCP_y5 -> 2016-17 | D32: =FRCP_y1 -> 2017-18 | E32: =FRCP_y2 -> 2018-19 | F32: =FRCP_y3 -> 2019-20 | G32: =FRCP_y4 -> 2020-21 | H32: =FRCP_y5 -> 2021-22 | I32: Average
B33: Annual price path (per cent, nominal) | D33: -0.276671536 | E33: 0.02073744856 | F33: 0.02239768114 | G33: 0.02809786578 | H33: 0.02033639074 | I33: =+AVERAGE(D33:H33) -> -0.03702042996
B34: Annual price path (per cent, $2013-14) | D34: -0.2939692885 | E34: -0.003672573388 | F34: -0.002052043788 | G34: 0.003511826045 | H34: -0.004064040273 | I34: =+AVERAGE(D34:H34) -> -0.06004922397
B37: Transmission bill component - Residential customer | C37: =CONCATENATE("Real ", CRCP_y5) -> Real 2016-17
B38: Tariff type | C38: =CRCP_y5 -> 2016-17 | D38: =FRCP_y1 -> 2017-18 | E38: =FRCP_y2 -> 2018-19 | F38: =FRCP_y3 -> 2019-20 | G38: =FRCP_y4 -> 2020-21 | H38: =FRCP_y5 -> 2021-22 | I38: =CONCATENATE("Total ",FRCP_y1," to ", FRCP_y5) -> Total 2017-18 to 2021-22 | J38: Annual average | K38: Annual impact on customer bill (%)
B40: =+B16 -> Average Electricity Residential Bill QLD | C40: =+D16*$C$10 -> 79.608 | D40: =+C40*(1+IF($C$37="Nominal",D$33,D$34)) -> 56.20569288 | E40: =+D40*(1+IF($C$37="Nominal",E$33,E$34)) -> 55.99927335 | F40: =+E40*(1+IF($C$37="Nominal",F$33,F$34)) -> 55.88436039 | G40: =+F40*(1+IF($C$37="Nominal",G$33,G$34)) -> 56.08061654 | H40: =+G40*(1+IF($C$37="Nominal",H$33,H$34)) -> 55.85270266 | I40: =+SUM(D40:H40) -> 280.0226458 | J40: =+AVERAGE(D40:H40) -> 56.00452917
B41: Annual change | D41: =+D40-C40 -> -23.40230712 | E41: =+E40-D40 -> -0.206419532 | F41: =+F40-E40 -> -0.114912961 | G41: =+G40-F40 -> 0.1962561523 | H41: =+H40-G40 -> -0.2279138842 | I41: =+SUM(D41:H41) -> -23.75529734 | J41: =+AVERAGE(D41:H41) -> -4.751059468 | K41: =+J41/D16 -> -0.005550303117
B43: =+B17 -> Average Electricity Residential Bill QLD | C43: =+D17*$C$10 -> 133.734 | D43: =+C43*(1+IF($C$37="Nominal",D$33,D$34)) -> 94.42031118 | E43: =+D43*(1+IF($C$37="Nominal",E$33,E$34)) -> 94.07354565 | F43: =+E43*(1+IF($C$37="Nominal",F$33,F$34)) -> 93.88050262 | G43: =+F43*(1+IF($C$37="Nominal",G$33,G$34)) -> 94.21019461 | H43: =+G43*(1+IF($C$37="Nominal",H$33,H$34)) -> 93.82732059 | I43: 470.4118747 | J43: =+AVERAGE(D43:H43) -> 94.08237493
B44: Annual change | D44: =+D43-C43 -> -39.31368882 | E44: =+E43-D43 -> -0.3467655222 | F44: =+F43-E43 -> -0.1930430349 | G44: =+G43-F43 -> 0.3296919942 | H44: =+H43-G43 -> -0.3828740251 | I44: -39.90667941 | J44: -7.981335882 | K44: =+J44/D17 -> -0.005550303117
B46: =+B18 -> 0 | C46: =+D18*$C$10 -> 0 | D46: =+C46*(1+IF($C$37="Nominal",D$33,D$34)) -> 0 | E46: =+D46*(1+IF($C$37="Nominal",E$33,E$34)) -> 0 | F46: =+E46*(1+IF($C$37="Nominal",F$33,F$34)) -> 0 | G46: =+F46*(1+IF($C$37="Nominal",G$33,G$34)) -> 0 | H46: =+G46*(1+IF($C$37="Nominal",H$33,H$34)) -> 0 | I46: 0 | J46: 0
B47: Annual change | D47: =+D46-C46 -> 0 | E47: =+E46-D46 -> 0 | F47: =+F46-E46 -> 0 | G47: =+G46-F46 -> 0 | H47: =+H46-G46 -> 0 | I47: 0 | J47: 0 | K47: =+J47/D18 -> 
B49: =+B19 -> <NSP to insert any additional items> | C49: =+D19*$C$10 -> 0 | D49: =+C49*(1+IF($C$37="Nominal",D$33,D$34)) -> 0 | E49: =+D49*(1+IF($C$37="Nominal",E$33,E$34)) -> 0 | F49: =+E49*(1+IF($C$37="Nominal",F$33,F$34)) -> 0 | G49: =+F49*(1+IF($C$37="Nominal",G$33,G$34)) -> 0 | H49: =+G49*(1+IF($C$37="Nominal",H$33,H$34)) -> 0 | I49: 0 | J49: 0
B50: Annual change | D50: =+D49-C49 -> 0 | E50: =+E49-D49 -> 0 | F50: =+F49-E49 -> 0 | G50: =+G49-F49 -> 0 | H50: =+H49-G49 -> 0 | I50: 0 | J50: 0 | K50: =+J50/D19 -> 
B52: =+B20 -> <NSP to insert any additional items> | C52: =+D20*$C$10 -> 0 | D52: =+C52*(1+IF($C$37="Nominal",D$33,D$34)) -> 0 | E52: =+D52*(1+IF($C$37="Nominal",E$33,E$34)) -> 0 | F52: =+E52*(1+IF($C$37="Nominal",F$33,F$34)) -> 0 | G52: =+F52*(1+IF($C$37="Nominal",G$33,G$34)) -> 0 | H52: =+G52*(1+IF($C$37="Nominal",H$33,H$34)) -> 0 | I52: =+SUM(D52:H52) -> 0 | J52: =+AVERAGE(D52:H52) -> 0
B53: Annual change | D53: =+D52-C52 -> 0 | E53: =+E52-D52 -> 0 | F53: =+F52-E52 -> 0 | G53: =+G52-F52 -> 0 | H53: =+H52-G52 -> 0 | I53: =+SUM(D53:H53) -> 0 | J53: =+AVERAGE(D53:H53) -> 0 | K53: =+J53/D20 -> 
B56: Transmission bill component - Business customer | C56: =CONCATENATE("Real ", CRCP_y5) -> Real 2016-17
B57: Tariff type | C57: =CRCP_y5 -> 2016-17 | D57: =FRCP_y1 -> 2017-18 | E57: =FRCP_y2 -> 2018-19 | F57: =FRCP_y3 -> 2019-20 | G57: =FRCP_y4 -> 2020-21 | H57: =FRCP_y5 -> 2021-22 | I57: =CONCATENATE("Total ",FRCP_y1," to ", FRCP_y5) -> Total 2017-18 to 2021-22 | J57: Annual average | K57: Annual impact on customer bill (%)
B59: =+B25 -> Average Electricity Business Bill QLD | C59: =+D25*$C$11 -> 280.302 | D59: =+C59*(1+IF($C$56="Nominal",D$33,D$34)) -> 197.9018205 | E59: =+D59*(1+IF(D56="Nominal",E$33,E$34)) -> 197.1750115 | F59: =+E59*(1+IF(E56="Nominal",F$33,F$34)) -> 196.7703998 | G59: =+F59*(1+IF(F56="Nominal",G$33,G$34)) -> 197.4614232 | H59: =+G59*(1+IF(G56="Nominal",H$33,H$34)) -> 196.658932 | I59: =+SUM(D59:H59) -> 985.9675871 | J59: =+AVERAGE(D59:H59) -> 197.1935174
B60: Annual change | D60: =+D59-C59 -> -82.4001795 | E60: =+E59-D59 -> -0.7268089595 | F60: =+F59-E59 -> -0.4046117575 | G60: =+G59-F59 -> 0.6910234149 | H60: =+H59-G59 -> -0.8024911763 | I60: =+SUM(D60:H60) -> -83.64306797 | J60: =+AVERAGE(D60:H60) -> -16.72861359 | K60: =+J60/D25 -> -0.005550303117
B62: =+B26 -> Average Electricity Business Bill QLD | C62: =+D26*$C$11 -> 488.1383485 | D62: =+C62*(1+IF(C59="Nominal",D$33,D$34)) -> 344.6406656 | E62: =+D62*(1+IF(D59="Nominal",E$33,E$34)) -> 343.3749474 | F62: =+E62*(1+IF(E59="Nominal",F$33,F$34)) -> 342.670327 | G62: =+F62*(1+IF(F59="Nominal",G$33,G$34)) -> 343.8737256 | H62: =+G62*(1+IF(G59="Nominal",H$33,H$34)) -> 342.4762089 | I62: 1717.035874 | J62: 343.4071749
B63: Annual change | D63: =+D62-C62 -> -143.497683 | E63: =+E62-D62 -> -1.265718137 | F63: =+F62-E62 -> -0.7046204276 | G63: =+G62-F62 -> 1.203398579 | H63: =+H62-G62 -> -1.39751667 | I63: -145.6621396 | J63: -29.13242793 | K63: =+J63/D26 -> -0.005550303117
B65: =+B27 -> <NSP to insert any additional items> | C65: =+D27*$C$11 -> 0 | D65: =+C65*(1+IF(C62="Nominal",D$33,D$34)) -> 0 | E65: =+D65*(1+IF(D62="Nominal",E$33,E$34)) -> 0 | F65: =+E65*(1+IF(E62="Nominal",F$33,F$34)) -> 0 | G65: =+F65*(1+IF(F62="Nominal",G$33,G$34)) -> 0 | H65: =+G65*(1+IF(G62="Nominal",H$33,H$34)) -> 0 | I65: 0 | J65: 0
B66: Annual change | D66: =+D65-C65 -> 0 | E66: =+E65-D65 -> 0 | F66: =+F65-E65 -> 0 | G66: =+G65-F65 -> 0 | H66: =+H65-G65 -> 0 | I66: 0 | J66: 0 | K66: =+J66/D27 -> 
B68: =+B28 -> <NSP to insert any additional items> | C68: =+D28*$C$11 -> 0 | D68: =+C68*(1+IF(C65="Nominal",D$33,D$34)) -> 0 | E68: =+D68*(1+IF(D65="Nominal",E$33,E$34)) -> 0 | F68: =+E68*(1+IF(E65="Nominal",F$33,F$34)) -> 0 | G68: =+F68*(1+IF(F65="Nominal",G$33,G$34)) -> 0 | H68: =+G68*(1+IF(G65="Nominal",H$33,H$34)) -> 0 | I68: =+SUM(D68:H68) -> 0 | J68: =+AVERAGE(D68:H68) -> 0
B69: Annual change | D69: =+D68-C68 -> 0 | E69: =+E68-D68 -> 0 | F69: =+F68-E68 -> 0 | G69: =+G68-F68 -> 0 | H69: =+H68-G68 -> 0 | I69: =+SUM(D69:H69) -> 0 | J69: =+AVERAGE(D69:H69) -> 0 | K69: =+J69/D28 -> 

Sheet 7.9 STPIS
B1: =(LOOKUP(dms_Model,dms_Model_List,dms_Worksheet_List)) -> REGULATORY REPORTING STATEMENT
B2: =INDEX(dms_TradingNameFull_List,MATCH(dms_TradingName,dms_TradingName_List)) -> Queensland Electricity Transmission Corporation Limited trading as Powerlink Queensland
B3: =CONCATENATE(FRCP_y1," to ",dms_FRCP_FinalYear_Num) -> 2017-18 to 2021-22
B4: 7.9 SERVICE TARGET PERFORMANCE INCENTIVE SCHEME (STPIS)
B7: Instructions
B8: =dms_TradingName&" is required to provide the performance actuals for the most recent five years, and the proposed caps, collars and targets for the next regulatory control period for the parameters under the service component of the STPIS in table 7.9.1 below." -> Powerlink is required to provide the performance actuals for the most recent five years, and the proposed caps, collars and targets for the next regulatory control period for the parameters under the service component of the STPIS in table 7.9.1 below.
B10: 7.9.1 Historical performance and proposed floor, caps and targets for the service component of the STPIS
B11: Parameter | C11: Performance actuals | H11: Average of actual performance | I11: Floor | J11: Target | K11: Cap | L11: Weighting (% of MAR)
C12: =(LEFT(PRCP_y4,2)&RIGHT(PRCP_y4,2)) -> 2011 | D12: =LEFT(PRCP_y5,2)&RIGHT(PRCP_y5,2) -> 2012 | E12: =(LEFT(CRCP_y1,2)&RIGHT(CRCP_y1,2)) -> 2013 | F12: =(LEFT(CRCP_y2,2)&RIGHT(CRCP_y2,2)) -> 2014 | G12: =(LEFT(CRCP_y3,2)&RIGHT(CRCP_y3,2)) -> 2015
B13: Unplanned outage circuit event rate:
B14: Transmission line outage - fault | C14: Refer "Unprotected 7.9 STPIS" | H14: =+AVERAGE(C14:G14) ->  | L14: 0.002
B15: Transformer outage – fault | H15: =+AVERAGE(C15:G15) ->  | L15: 0.002
B16: Reactive plant – fault | L16: 0.001
B17: Transmission line outage – forced outage | L17: 0.001
B18: Transformer outage – forced outage | L18: 0.001
B19: Reactive plant – forced outage | L19: 0.0005
B20: Loss of supply event frequency (number of events):
B21: > (x) system minutes | L21: 0.0015
B22: > (y) system minutes | L22: 0.0015
B23: Average outage duration (minutes): | L23: 0.002
B24: Proper operation of equipment (number of events):
B25: Failure of protection system | L25: 0
B26: Material failure of SCADA | L26: 0
B27: Incorrect operational isolation of primary or secondary equipment | L27: 0
B29: Instructions
B30: =dms_TradingName&" is required to provide a list of proposed priority projects for the network capability incentive parameter including a brief description and the cost for each proposed project in table 7.9.2 below." -> Powerlink is required to provide a list of proposed priority projects for the network capability incentive parameter including a brief description and the cost for each proposed project in table 7.9.2 below.
B32: 7.9.2 - Proposed priority projects for the network capability incentive parameter
B33: Project ranking | C33: Transmission Circuit / Injection Point | D33: Scope of works | E33: =CONCATENATE(("If applicable, the present value of quantified benefits associated with the project ($0's, "),CRCP_y5,")") -> If applicable, the present value of quantified benefits associated with the project ($0's, 2016-17) | F33: =CONCATENATE(("Project cost ($0's, "),CRCP_y5,")") -> Project cost ($0's, 2016-17)
F34: =FRCP_y1 -> 2017-18 | G34: =FRCP_y2 -> 2018-19 | H34: =FRCP_y3 -> 2019-20 | I34: =FRCP_y4 -> 2020-21 | J34: =FRCP_y5 -> 2021-22 | K34: Opex | L34: Capex
B35: 1 | C35: Refer "Unprotected 7.9 STPIS".
B36: 2
B37: 3
B38: 4
B39: 5
B40: 6
B41: 7
B42: 8
B43: 9
B44: 10
B45: 11
B46: 12
B47: 13
B48: 14
B49: 15
B50: 16
B55: Instructions
B56: =dms_TradingName&" is required to provide the following information in table 7.9.3 below." -> Powerlink is required to provide the following information in table 7.9.3 below.
B58: 7.9.3 – Network limit information
B59: Limit identification | C59: Define limit | D59: Reason for the limit | E59: Is limit addressed by priority project | F59: Supporting information reference
B60: Refer "Unprotected 7.9 STPIS".
B72: Instructions
B73: =dms_TradingName&" is required to provide performance data in accordance with Appendix C of the STPIS for the preceding six calendar years in table 7.9.4 below. "&dms_TradingName&" is also required to provide relevant information in the MIC workbook attached to Appendix G of the Notice." -> Powerlink is required to provide performance data in accordance with Appendix C of the STPIS for the preceding six calendar years in table 7.9.4 below. Powerlink is also required to provide relevant information in the MIC workbook attached to Appendix G of the Notice.
B75: 7.9.4 - Market impact component
D76: Market impact parameter
D77: Planned outage count(DI) | F77: Unplanned outage count (DI)
B78: Year | C78: Month | D78: without exclusions | E78: with exclusions | F78: without exclusions | G78: with exclusions | H78: Market impact parameters
B79: =LEFT(PRCP_y3,4) -> 2009 | C79: January | D79: Refer "Unprotected 7.9 STPIS". | H79: =+E79/12 -> 0
B80: 2009 | C80: February | H80: 0
B81: 2009 | C81: March | H81: 0
B82: 2009 | C82: April | H82: 0
B83: 2009 | C83: May | H83: 0
B84: 2009 | C84: June | H84: 0
B85: 2009 | C85: July | H85: 0
B86: 2009 | C86: August | H86: 0
B87: 2009 | C87: September | H87: 0
B88: 2009 | C88: October | H88: 0
B89: 2009 | C89: November | H89: 0
B90: 2009 | C90: December | H90: 0
B91: =CONCATENATE("Total ",LEFT(PRCP_y3,4)) -> Total 2009 | D91: =+SUM(D79:D90) -> 0 | E91: =+SUM(E79:E90) -> 0 | F91: =+SUM(F79:F90) -> 0 | G91: =+SUM(G79:G90) -> 0 | H91: =+SUM(H79:H90) -> 0
B92: =LEFT(PRCP_y4,4) -> 2010 | C92: January | H92: =+E92/12 -> 0
B93: 2010 | C93: February | H93: 0
B94: 2010 | C94: March | H94: 0
B95: 2010 | C95: April | H95: 0
B96: 2010 | C96: May | H96: 0
B97: 2010 | C97: June | H97: 0
B98: 2010 | C98: July | H98: 0
B99: 2010 | C99: August | H99: 0
B100: 2010 | C100: September | H100: 0
B101: 2010 | C101: October | H101: 0
B102: 2010 | C102: November | H102: 0
B103: 2010 | C103: December | H103: 0
B104: =CONCATENATE("Total ", LEFT(PRCP_y4,4)) -> Total 2010 | D104: =+SUM(D92:D103) -> 0 | E104: =+SUM(E92:E103) -> 0 | F104: =+SUM(F92:F103) -> 0 | G104: =+SUM(G92:G103) -> 0 | H104: =+SUM(H92:H103) -> 0
B105: =LEFT(PRCP_y5,4) -> 2011 | C105: January | H105: =+E105/12 -> 0
B106: 2011 | C106: February | H106: 0
B107: 2011 | C107: March | H107: 0
B108: 2011 | C108: April | H108: 0
B109: 2011 | C109: May | H109: 0
B110: 2011 | C110: June | H110: 0
B111: 2011 | C111: July | H111: 0
B112: 2011 | C112: August | H112: 0
B113: 2011 | C113: September | H113: 0
B114: 2011 | C114: October | H114: 0
B115: 2011 | C115: November | H115: 0
B116: 2011 | C116: December | H116: 0
B117: =CONCATENATE("Total ", LEFT(PRCP_y5,4)) -> Total 2011 | D117: =+SUM(D105:D116) -> 0 | E117: =+SUM(E105:E116) -> 0 | F117: =+SUM(F105:F116) -> 0 | G117: =+SUM(G105:G116) -> 0 | H117: =+SUM(H105:H116) -> 0
B118: =LEFT(CRCP_y1,4) -> 2012 | C118: January | H118: =+E118/12 -> 0
B119: 2012 | C119: February | H119: 0
B120: 2012 | C120: March | H120: 0
B121: 2012 | C121: April | H121: 0
B122: 2012 | C122: May | H122: 0
B123: 2012 | C123: June | H123: 0
B124: 2012 | C124: July | H124: 0
B125: 2012 | C125: August | H125: 0
B126: 2012 | C126: September | H126: 0
B127: 2012 | C127: October | H127: 0
B128: 2012 | C128: November | H128: 0
B129: 2012 | C129: December | H129: 0
B130: =CONCATENATE("Total ", LEFT(CRCP_y1,4)) -> Total 2012 | D130: =+SUM(D118:D129) -> 0 | E130: =+SUM(E118:E129) -> 0 | F130: =+SUM(F118:F129) -> 0 | G130: =+SUM(G118:G129) -> 0 | H130: =+SUM(H118:H129) -> 0
B131: =LEFT(CRCP_y2,4) -> 2013 | C131: January | H131: =+E131/12 -> 0
B132: 2013 | C132: February | H132: 0
B133: 2013 | C133: March | H133: 0
B134: 2013 | C134: April | H134: 0
B135: 2013 | C135: May | H135: 0
B136: 2013 | C136: June | H136: 0
B137: 2013 | C137: July | H137: 0
B138: 2013 | C138: August | H138: 0
B139: 2013 | C139: September | H139: 0
B140: 2013 | C140: October | H140: 0
B141: 2013 | C141: November | H141: 0
B142: 2013 | C142: December | H142: 0
B143: =CONCATENATE("Total ", LEFT(CRCP_y2,4)) -> Total 2013 | D143: =+SUM(D131:D142) -> 0 | E143: =+SUM(E131:E142) -> 0 | F143: =+SUM(F131:F142) -> 0 | G143: =+SUM(G131:G142) -> 0 | H143: =+SUM(H131:H142) -> 0
B144: =LEFT(CRCP_y3,4) -> 2014 | C144: January | H144: =+E144/12 -> 0
B145: 2014 | C145: February | H145: 0
B146: 2014 | C146: March | H146: 0
B147: 2014 | C147: April | H147: 0
B148: 2014 | C148: May | H148: 0
B149: 2014 | C149: June | H149: 0
B150: 2014 | C150: July | H150: 0
B151: 2014 | C151: August | H151: 0
B152: 2014 | C152: September | H152: 0
B153: 2014 | C153: October | H153: 0
B154: 2014 | C154: November | H154: 0
B155: 2014 | C155: December | H155: 0
B156: =CONCATENATE("Total ", LEFT(CRCP_y3,4)) -> Total 2014 | D156: =+SUM(D144:D155) -> 0 | E156: =+SUM(E144:E155) -> 0 | F156: =+SUM(F144:F155) -> 0 | G156: =+SUM(G144:G155) -> 0 | H156: =+SUM(H144:H155) -> 0
B157: =LEFT(CRCP_y4,4) -> 2015 | C157: January | H157: =+E157/12 -> 0
B158: 2015 | C158: February | H158: 0
B159: 2015 | C159: March | H159: 0
B160: 2015 | C160: April | H160: 0
B161: 2015 | C161: May | H161: 0
B162: 2015 | C162: June | H162: 0
B163: 2015 | C163: July | H163: 0
B164: 2015 | C164: August | H164: 0
B165: 2015 | C165: September | H165: 0
B166: 2015 | C166: October | H166: 0
B167: 2015 | C167: November | H167: 0
B168: 2015 | C168: December | H168: 0
B169: =CONCATENATE("Total ", LEFT(CRCP_y4,4)) -> Total 2015 | D169: =+SUM(D157:D168) -> 0 | E169: =+SUM(E157:E168) -> 0 | F169: =+SUM(F157:F168) -> 0 | G169: =+SUM(G157:G168) -> 0 | H169: =+SUM(H157:H168) -> 0

Sheet Unprotected 7.9 STPIS
A1: REGULATORY REPORTING STATEMENT
A2: Queensland Electricity Transmission Corporation Limited trading as Powerlink Queensland
A3: 2017-18 to 2021-22
A4: 7.9 SERVICE TARGET PERFORMANCE INCENTIVE SCHEME (STPIS)
A7: Instructions
A8: Powerlink is required to provide the performance actuals for the most recent seven years, and the proposed caps, collars and targets for the next regulatory control period for the parameters under the service component of the STPIS in table 7.9.1 below.
A10: 7.9.1 Historical performance and proposed floor, caps and targets for the service component of the STPIS
A11: Parameter | B11: Performance actuals | G11: Average of actual performance | H11: Floor | I11: Target | J11: Cap | K11: Weighting (% of MAR)
B12: 2011 | C12: 2012 | D12: 2013 | E12: 2014 | F12: 2015
A13: Unplanned outage circuit event rate:
A14: Transmission line outage - fault | B14: 0.2631578947 | C14: 0.2335766423 | D14: 0.1663778163 | E14: 0.1959459459 | F14: 0.1851851852 | G14: =+AVERAGE(B14:F14) -> 0.2088486969 | H14: 27.17 | I14: 20.88 | J14: 15.86 | K14: 0.002
A15: Transformer outage – fault | B15: 0.2095808383 | C15: 0.1785714286 | D15: 0.1839762611 | E15: 0.1941176471 | F15: 0.1791907514 | G15: =+AVERAGE(B15:F15) -> 0.1890873853 | H15: 20.84 | I15: 18.91 | J15: 17.09 | K15: 0.002
A16: Reactive plant – fault | B16: 0.3507462687 | C16: 0.3913043478 | D16: 0.2365591398 | E16: 0.2907801418 | F16: 0.2230215827 | G16: 0.2984822962 | H16: 43.42 | I16: 29.85 | J16: 19.49 | K16: 0.001
A17: Transmission line outage – forced outage | B17: 0.1729323308 | C17: 0.2335766423 | D17: 0.2183708839 | E17: 0.222972973 | F17: 0.1717171717 | G17: 0.2039140003 | H17: 24.09 | I17: 20.39 | J17: 15.9 | K17: 0.001
A18: Transformer outage – forced outage | B18: 0.2275449102 | C18: 0.1726190476 | D18: 0.2195845697 | E18: 0.1882352941 | F18: 0.1502890173 | G18: 0.1916545678 | H18: 23.49 | I18: 19.17 | J18: 13.96 | K18: 0.001
A19: Reactive plant – forced outage | B19: 0.1865671642 | C19: 0.2173913043 | D19: 0.2867383513 | E19: 0.3191489362 | F19: 0.2014388489 | G19: 0.242256921 | H19: 34.25 | I19: 24.23 | J19: 15.95 | K19: 0.0005
A20: Loss of supply event frequency (number of events):
A21: > (x) system minutes | B21: 7 | C21: 2 | D21: 1 | E21: 5 | F21: 2 | G21: 3.4 | H21: 7 | I21: 3 | J21: 1 | K21: 0.0015
A22: > (y) system minutes | B22: 2 | C22: 0 | D22: 0 | E22: 2 | F22: 1 | G22: 1 | H22: 3 | I22: 1 | J22: 0 | K22: 0.0015
A23: Average outage duration (minutes): | B23: 86.76942158 | C23: 26.08666667 | D23: 5.621428571 | E23: 115.971 | F23: 236.2286666 | G23: 94.13543668 | H23: 282 | I23: 94.14 | J23: 4.83 | K23: 0.002
A24: Proper operation of equipment (number of events):
A25: Failure of protection system | B25: 27 | C25: 38 | D25: 39 | E25: 23 | F25: 25 | G25: 30.4 | K25: 0
A26: Material failure of SCADA | B26: 0 | C26: 0 | D26: 1 | E26: 0 | F26: 1 | G26: 0.4 | K26: 0
A27: Incorrect operational isolation of primary or secondary equipment | B27: 11 | C27: 20 | D27: 9 | E27: 10 | F27: 8 | G27: 11.6 | K27: 0
A29: Instructions
A30: Powerlink is required to provide a list of proposed priority projects for the network capability incentive parameter including a brief description and the cost for each proposed project in table 7.9.2 below.
A32: 7.9.2 - Proposed priority projects for the network capability incentive parameter
A33: Project ranking | B33: Transmission Circuit / Injection Point | C33: Scope of works | D33: If applicable, the present value of quantified benefits associated with the project ($0's, 2016-17) | E33: Project cost ($0's, 2016-17)
E34: 2017-18 | F34: 2018-19 | G34: 2019-20 | H34: 2020-21 | I34: 2021-22 | J34: Opex | K34: Capex
A35: 1 | B35: Bouldercombe to Raglan and Larcom Creek to Calliope River 275kV | C35: Increase design temperature of Bouldercombe to Raglan and Larcom Creek to Calliope River 275kV Transmission Lines | D35: 505646 | E35: 22524 | F35: 483122 | G35: 0 | H35: 0 | I35: 0 | J35: 505646 | K35: 0
A36: 2 | B36: Greenbank 275kV Substation | C36: Greenbank System Integrity Protection Scheme (SIPS) | D36: 1821523 | E36: 30611 | F36: 1790912 | G36: 0 | H36: 0 | I36: 0 | J36: 1821523 | K36: 0
A37: 3 | B37: Network wide | C37: Load Model Enhancement and Validation | D37: 876852 | E37: 21883 | F37: 618866 | G37: 62540 | H37: 114870 | I37: 58693 | J37: 876852 | K37: 0
A41: Instructions
A42: Powerlink is required to provide the following information in table 7.9.3 below.
A44: 7.9.3 – Network limit information
A45: Limit identification | B45: Define limit | C45: Reason for the limit | D45: Is limit addressed by priority project | E45: Supporting information reference
A46: Bouldercombe to Raglan transmission line | B46: Feeder is rated at 541MVA, summer rating. | C46: Feeder is rated to a lower design temperature to maintain ground clearance. | D46: Yes | E46: Refer RIN attachment - STPIS NCC Network Limits Information
A47: Larcom Creek to Calliope River transmission line | B47: Feeder is rated at 541MVA, summer rating. | C47: Feeder is rated to a lower design temperature to maintain ground clearance. | D47: Yes | E47: Refer RIN attachment - STPIS NCC Network Limits Information
A48: Gold Coast cutset | B48: Voltage stability constraint Q^NIL_GC. | C48: To manage voltage stability in the Gold Coast area for specific outages at Greenbank. | D48: Yes | E48: Refer RIN attachment - STPIS NCC Network Limits Information
A49: Feeder 835 Greenbank to Mudgeeraba cutset | B49: Feeder is limited to 300MVA. | C49: Specific outages at Greenbank result in the stability limit being reached. | D49: Yes | E49: Refer RIN attachment - STPIS NCC Network Limits Information
A50: Blackwall to Belmont transmission line | B50: Feeder is rated at 718MVA, summer rating. | C50: Specific outages at Greenbank result in the thermal limit being reached. Feeder is rated to the design temperature. | D50: Yes | E50: Refer RIN attachment - STPIS NCC Network Limits Information
A51: Blackwall to Goodna transmission line | B51: Feeder is rated at 718MVA, summer rating. | C51: Specific outages at Greenbank result in the thermal limit being reached. Feeder is rated to the design temperature. | D51: Yes | E51: Refer RIN attachment - STPIS NCC Network Limits Information
A52: Swanbank E to Greenbank transmission line | B52: Feeder is rated at 618MVA, summer rating. | C52: Specific outages at Greenbank result in the thermal limit being reached. Feeder is rated to the design temperature. | D52: Yes | E52: Refer RIN attachment - STPIS NCC Network Limits Information
A53: Goodna to Belmont transmission line | B53: Feeder is rated at 718MVA, summer rating. | C53: Specific outages at Greenbank result in the thermal limit being reached. Feeder is rated to the design temperature. | D53: Yes | E53: Refer RIN attachment - STPIS NCC Network Limits Information
A56: Instructions
A57: Powerlink is required to provide performance data in accordance with Appendix C of the STPIS for the preceding six calendar years in table 7.9.4 below. Powerlink is also required to provide relevant information in the MIC workbook attached to Appendix G of the Notice.
A59: 7.9.4 - Market impact component
C60: Market impact parameter
C61: Planned outage count(DI) | E61: Unplanned outage count (DI)
A62: Year | B62: Month | C62: without exclusions | D62: with exclusions | E62: without exclusions | F62: with exclusions | G62: Market impact parameters
A63: 2009 | B63: January | C63: 0 | D63: 0 | E63: 47 | F63: 47 | G63: =(SUM(D63,F63)/12) -> 3.916666667
A64: 2009 | B64: February | C64: 0 | D64: 0 | E64: 0 | F64: 0 | G64: =(SUM(D64,F64)/12) -> 0
A65: 2009 | B65: March | C65: 0 | D65: 0 | E65: 18 | F65: 0 | G65: 0
A66: 2009 | B66: April | C66: 0 | D66: 0 | E66: 30 | F66: 14 | G66: 1.166666667
A67: 2009 | B67: May | C67: 0 | D67: 0 | E67: 0 | F67: 0 | G67: 0
A68: 2009 | B68: June | C68: 3 | D68: 3 | E68: 0 | F68: 0 | G68: 0.25
A69: 2009 | B69: July | C69: 16 | D69: 0 | E69: 0 | F69: 0 | G69: 0
A70: 2009 | B70: August | C70: 0 | D70: 0 | E70: 0 | F70: 0 | G70: 0
A71: 2009 | B71: September | C71: 5 | D71: 0 | E71: 0 | F71: 0 | G71: 0
A72: 2009 | B72: October | C72: 0 | D72: 0 | E72: 196 | F72: 0 | G72: 0
A73: 2009 | B73: November | C73: 75 | D73: 67 | E73: 631 | F73: 12 | G73: 6.583333333
A74: 2009 | B74: December | C74: 0 | D74: 0 | E74: 276 | F74: 0 | G74: 0
A75: Total 2009 | C75: =+SUM(C63:C74) -> 99 | D75: =+SUM(D63:D74) -> 70 | E75: =+SUM(E63:E74) -> 1198 | F75: =+SUM(F63:F74) -> 73 | G75: =+SUM(G63:G74) -> 11.91666667
A76: 2010 | B76: January | C76: 0 | D76: 0 | E76: 12 | F76: 12 | G76: 1
A77: 2010 | B77: February | C77: 0 | D77: 0 | E77: 120 | F77: 0 | G77: 0
A78: 2010 | B78: March | C78: 0 | D78: 0 | E78: 0 | F78: 0 | G78: 0
A79: 2010 | B79: April | C79: 110 | D79: 1 | E79: 0 | F79: 0 | G79: 0.08333333333
A80: 2010 | B80: May | C80: 1347 | D80: 1331 | E80: 2 | F80: 0 | G80: 110.9166667
A81: 2010 | B81: June | C81: 39 | D81: 38 | E81: 13 | F81: 11 | G81: 4.083333333
A82: 2010 | B82: July | C82: 1 | D82: 1 | E82: 0 | F82: 0 | G82: 0.08333333333
A83: 2010 | B83: August | C83: 39 | D83: 4 | E83: 0 | F83: 0 | G83: 0.3333333333
A84: 2010 | B84: September | C84: 0 | D84: 0 | E84: 0 | F84: 0 | G84: 0
A85: 2010 | B85: October | C85: 19 | D85: 0 | E85: 1 | F85: 0 | G85: 0
A86: 2010 | B86: November | C86: 4 | D86: 3 | E86: 0 | F86: 0 | G86: 0.25
A87: 2010 | B87: December | C87: 0 | D87: 0 | E87: 4 | F87: 4 | G87: 0.3333333333
A88: Total 2010 | C88: =+SUM(C76:C87) -> 1559 | D88: =+SUM(D76:D87) -> 1378 | E88: =+SUM(E76:E87) -> 152 | F88: =+SUM(F76:F87) -> 27 | G88: =+SUM(G76:G87) -> 117.0833333
A89: 2011 | B89: January | C89: 4 | D89: 2 | E89: 795 | F89: 0 | G89: 0.1666666667
A90: 2011 | B90: February | C90: 6 | D90: 0 | E90: 11 | F90: 0 | G90: 0
A91: 2011 | B91: March | C91: 62 | D91: 0 | E91: 3 | F91: 0 | G91: 0
A92: 2011 | B92: April | C92: 36 | D92: 2 | E92: 0 | F92: 0 | G92: 0.1666666667
A93: 2011 | B93: May | C93: 0 | D93: 0 | E93: 0 | F93: 0 | G93: 0
A94: 2011 | B94: June | C94: 25 | D94: 0 | E94: 0 | F94: 0 | G94: 0
A95: 2011 | B95: July | C95: 4 | D95: 0 | E95: 0 | F95: 0 | G95: 0
A96: 2011 | B96: August | C96: 0 | D96: 0 | E96: 48 | F96: 0 | G96: 0
A97: 2011 | B97: September | C97: 1 | D97: 1 | E97: 0 | F97: 0 | G97: 0.08333333333
A98: 2011 | B98: October | C98: 0 | D98: 0 | E98: 1 | F98: 1 | G98: 0.08333333333
A99: 2011 | B99: November | C99: 31 | D99: 31 | E99: 0 | F99: 0 | G99: 2.583333333
A100: 2011 | B100: December | C100: 172 | D100: 0 | E100: 0 | F100: 0 | G100: 0
A101: Total 2011 | C101: =+SUM(C89:C100) -> 341 | D101: =+SUM(D89:D100) -> 36 | E101: =+SUM(E89:E100) -> 858 | F101: =+SUM(F89:F100) -> 1 | G101: =+SUM(G89:G100) -> 3.083333333
A102: 2012 | B102: January | C102: 105 | D102: 0 | E102: 53 | F102: 0 | G102: 0
A103: 2012 | B103: February | C103: 0 | D103: 0 | E103: 5 | F103: 0 | G103: 0
A104: 2012 | B104: March | C104: 0 | D104: 0 | E104: 0 | F104: 0 | G104: 0
A105: 2012 | B105: April | C105: 1 | D105: 1 | E105: 0 | F105: 0 | G105: 0.08333333333
A106: 2012 | B106: May | C106: 5 | D106: 5 | E106: 25 | F106: 0 | G106: 0.4166666667
A107: 2012 | B107: June | C107: 0 | D107: 0 | E107: 0 | F107: 0 | G107: 0
A108: 2012 | B108: July | C108: 0 | D108: 0 | E108: 0 | F108: 0 | G108: 0
A109: 2012 | B109: August | C109: 0 | D109: 0 | E109: 0 | F109: 0 | G109: 0
A110: 2012 | B110: September | C110: 11 | D110: 0 | E110: 0 | F110: 0 | G110: 0
A111: 2012 | B111: October | C111: 6 | D111: 0 | E111: 0 | F111: 0 | G111: 0
A112: 2012 | B112: November | C112: 99 | D112: 99 | E112: 31 | F112: 0 | G112: 8.25
A113: 2012 | B113: December | C113: 0 | D113: 0 | E113: 292 | F113: 0 | G113: 0
A114: Total 2012 | C114: =+SUM(C102:C113) -> 227 | D114: =+SUM(D102:D113) -> 105 | E114: =+SUM(E102:E113) -> 406 | F114: =+SUM(F102:F113) -> 0 | G114: =+SUM(G102:G113) -> 8.75
A115: 2013 | B115: January | C115: 0 | D115: 0 | E115: 2 | F115: 0 | G115: 0
A116: 2013 | B116: February | C116: 0 | D116: 0 | E116: 19 | F116: 13 | G116: 1.083333333
A117: 2013 | B117: March | C117: 0 | D117: 0 | E117: 14 | F117: 0 | G117: 0
A118: 2013 | B118: April | C118: 0 | D118: 0 | E118: 0 | F118: 0 | G118: 0
A119: 2013 | B119: May | C119: 6 | D119: 0 | E119: 4 | F119: 3 | G119: 0.25
A120: 2013 | B120: June | C120: 87 | D120: 81 | E120: 0 | F120: 0 | G120: 6.75
A121: 2013 | B121: July | C121: 5 | D121: 0 | E121: 0 | F121: 0 | G121: 0
A122: 2013 | B122: August | C122: 0 | D122: 0 | E122: 0 | F122: 0 | G122: 0
A123: 2013 | B123: September | C123: 0 | D123: 0 | E123: 0 | F123: 0 | G123: 0
A124: 2013 | B124: October | C124: 1 | D124: 0 | E124: 0 | F124: 0 | G124: 0
A125: 2013 | B125: November | C125: 0 | D125: 0 | E125: 0 | F125: 0 | G125: 0
A126: 2013 | B126: December | C126: 0 | D126: 0 | E126: 0 | F126: 0 | G126: 0
A127: Total 2013 | C127: =+SUM(C115:C126) -> 99 | D127: =+SUM(D115:D126) -> 81 | E127: =+SUM(E115:E126) -> 39 | F127: =+SUM(F115:F126) -> 16 | G127: =+SUM(G115:G126) -> 8.083333333
A128: 2014 | B128: January | C128: 39 | D128: 0 | E128: 0 | F128: 0 | G128: 0
A129: 2014 | B129: February | C129: 0 | D129: 0 | E129: 0 | F129: 0 | G129: =(SUM(D129,F129)/12) -> 0
A130: 2014 | B130: March | C130: 13 | D130: 0 | E130: 0 | F130: 0 | G130: 0
A131: 2014 | B131: April | C131: 8 | D131: 0 | E131: 0 | F131: 0 | G131: 0
A132: 2014 | B132: May | C132: 149 | D132: 2 | E132: 0 | F132: 0 | G132: 0.1666666667
A133: 2014 | B133: June | C133: 25 | D133: 25 | E133: 0 | F133: 0 | G133: 2.083333333
A134: 2014 | B134: July | C134: 833 | D134: 811 | E134: 0 | F134: 0 | G134: 67.58333333
A135: 2014 | B135: August | C135: 115 | D135: 6 | E135: 0 | F135: 0 | G135: 0.5
A136: 2014 | B136: September | C136: 1850 | D136: 1192 | E136: 9 | F136: 5 | G136: 99.75
A137: 2014 | B137: October | C137: 1930 | D137: 1900 | E137: 17 | F137: 0 | G137: 158.3333333
A138: 2014 | B138: November | C138: 97 | D138: 0 | E138: 0 | F138: 0 | G138: 0
A139: 2014 | B139: December | C139: 44 | D139: 0 | E139: 0 | F139: 0 | G139: 0
A140: Total 2014 | C140: =+SUM(C128:C139) -> 5103 | D140: =+SUM(D128:D139) -> 3936 | E140: =+SUM(E128:E139) -> 26 | F140: =+SUM(F128:F139) -> 5 | G140: =+SUM(G128:G139) -> 328.4166667
A141: 2015 | B141: January | C141: 323 | D141: 0 | E141: 30 | F141: 1 | G141: =(SUM(D141,F141)/12) -> 0.08333333333
A142: 2015 | B142: February | C142: 15 | D142: 0 | E142: 337 | F142: 0 | G142: 0
A143: 2015 | B143: March | C143: 6 | D143: 0 | E143: 0 | F143: 0 | G143: 0
A144: 2015 | B144: April | C144: 361 | D144: 2 | E144: 0 | F144: 0 | G144: 0.1666666667
A145: 2015 | B145: May | C145: 68 | D145: 0 | E145: 0 | F145: 0 | G145: 0
A146: 2015 | B146: June | C146: 1 | D146: 0 | E146: 0 | F146: 0 | G146: 0
A147: 2015 | B147: July | C147: 20 | D147: 1 | E147: 0 | F147: 0 | G147: 0.08333333333
A148: 2015 | B148: August | C148: 249 | D148: 0 | E148: 0 | F148: 0 | G148: 0
A149: 2015 | B149: September | C149: 774 | D149: 1 | E149: 3 | F149: 0 | G149: 0.08333333333
A150: 2015 | B150: October | C150: 268 | D150: 58 | E150: 2 | F150: 0 | G150: 4.833333333
A151: 2015 | B151: November | C151: 10 | D151: 3 | E151: 33 | F151: 0 | G151: 0.25
A152: 2015 | B152: December | C152: 6 | D152: 0 | E152: 2 | F152: 0 | G152: 0
A153: Total 2015 | C153: =+SUM(C141:C152) -> 2101 | D153: =+SUM(D141:D152) -> 65 | E153: =+SUM(E141:E152) -> 407 | F153: =+SUM(F141:F152) -> 1 | G153: =+SUM(G141:G152) -> 5.5

Sheet Unprotected Worksheet (5)

Sheet Unprotected Worksheet (6)

Sheet Unprotected Worksheet (7)

Sheet Unprotected Worksheet (8)
